Workbook

Sheet Data Entry

Sheet Input_Database
A1: Country | B1: Region/Province/State | C1: District | D1: Facility | E1: Month | F1: Year | G1: Total Confirmed Malaria Cases | H1: Total Severe Malaria Cases | I1: Total Suspected Malaria Cases Tested with mRDTs | J1: Total Monthly LLIN Clients | K1: ALU 6x1 (Artemether/Lumefantrine 20/120 mg Tablet, 6x1 tablets per Blister Pack) | L1: ALU 6x2 (Artemether/Lumefantrine 20/120 mg Tablet, 6x2 tablets per Blister Pack) | M1: ALU 6x3 (Artemether/Lumefantrine 20/120 mg Tablet, 6x3 tablets per Blister Pack) | N1: ALU 6x4 (Artemether/Lumefantrine 20/120 mg Tablet, 6x4 tablets per Blister Pack) | O1: mRDT | P1: Artesunate (w/ 1 Amp NaHCO3 5% + 1 Amp NaCl 0.9%) 60 mg Vial, 1 Set | Q1: Artesunate (w/ 1 Amp NaHCO3 5% + 1 Amp NaCl 0.9%) 30 mg Vial, 1 Set | R1: Artesunate (w/ 1 Amp NaHCO3 5% + 1 Amp NaCl 0.9%) 120 mg Vial, 1 Set | S1: Artesunate suppository 100 mg (Rectal Artesunate) | T1: ASAQ 100/270 mg x 3 (Artesunate/Amodiaquine 100/270 mg Tablet, 3 Tablets per Blister Pack) | U1: ASAQ 100/270 mg x 6 (Artesunate/Amodiaquine 100/270 mg Tablet, 6 Tablets per Blister Pack) | V1: ASAQ 25/67.5 mg x 3 (Artesunate/Amodiaquine 25/67.5 mg Tablet, 3 Tablets per Blister Pack) | W1: ASAQ 50/135 mg x3 (Artesunate/Amodiaquine 50/135 mg Tablet, 3 Tablets per Blister Pack) | X1: Chloroquine 150mg base Tablet (= Chloroquine Phosphate 250mg, or Chloroquine sulfate 200mg) | Y1: Chloroquine 50 mg base/5 mL Syrup, 60 mL | Z1: Primaquine 7.5 mg Tablet | AA1: Primaquine 15 mg Tablet | AB1: Quinine Sulfate 300 mg Tablet | AC1: Quinine Dihydrochloride 600mg/2ml injectable (= Quinine Dihydrochloride 300mg/ml inj. or Quinine 250mg base/ml inj.) | AD1: Quinine Resorcine 400mg/4ml injectable | AE1: SP (Sulfadoxine/pyrimethamine 500mg/25mg, 3 tablets) | AF1: Long Lasting Insecticide Treated Nets (LLINs) | AG1: Long Lasting Insecticide Treated Hammock Net (LLIHN) | AH1: Dihydroartemisinin-Piperaquine (DHA-PPQ) | AI1: Pyronaridine-Artesunate | AJ1: SP+AQ 76.5mg + 250/12.5mg Tablets | AK1: SP+AQ 153mg + 500/25mg Tablets | AL1: Data Collector | AM1: Timestamp | AN1: Total ALU | AO1: Total Artesunate | AP1: Total ASAQ | AQ1: Total Chloroquine | AR1: Total Primaquine | AS1: Total Quinine | AT1: Total LLINs | AU1: Total Other Treatments | AV1: Total Malaria Cases | AW1: Total Treatments Issued | AX1: Total Treatments/Total Malaria Cases | AY1: Severe Malaria Commodities/Severe Malaria Services Rendered | AZ1: Total Malaria/ Malaria Service Rendered | BA1: Total ALU/Total Malaria Cases | BB1: LLINs | BC1: ACT Treatments Issued Overage | BD1: Acceptable Ratio | BE1: Current Ratio | BF1: DATE | BG1: Quarter
A2: NIUE ** | C2: NEW | D2: THIRD PHARMACY | E2: FEBRUARY | F2: 2026 | G2: 444 | H2: 555 | I2: 10 | J2: 60 | K2: 100 | L2: 200 | M2: 300 | N2: 400 | P2: 1300 | Q2: 1200 | R2: 1400 | T2: 900 | U2: 1000 | V2: 700 | W2: 800 | X2: 2000 | Y2: 2100 | Z2: 1800 | AA2: 1900 | AB2: 2200 | AC2: 2300 | AD2: 2400 | AE2: 1700 | AF2: 1500 | AG2: 1600 | AH2: 1100 | AL2: ISRAEL | AM2: 2024-02-20T11:55:51 | AN2: =SUM(Input_Database[[#This Row],[ALU 6x1 (Artemether/Lumefantrine 20/120 mg Tablet, 6x1 tablets per Blister Pack)]:[ALU 6x4 (Artemether/Lumefantrine 20/120 mg Tablet, 6x4 tablets per Blister Pack)]]) -> 1000 | AO2: =SUM(Input_Database[[#This Row],[Artesunate (w/ 1 Amp NaHCO3 5% + 1 Amp NaCl 0.9%) 60 mg Vial, 1 Set]:[Artesunate suppository 100 mg (Rectal Artesunate)]]) -> 3900 | AP2: =SUM(Input_Database[[#This Row],[ASAQ 100/270 mg x 3 (Artesunate/Amodiaquine 100/270 mg Tablet, 3 Tablets per Blister Pack)]:[ASAQ 50/135 mg x3 (Artesunate/Amodiaquine 50/135 mg Tablet, 3 Tablets per Blister Pack)]]) -> 3400 | AQ2: =SUM(Input_Database[[#This Row],[Chloroquine 150mg base Tablet (= Chloroquine Phosphate 250mg, or Chloroquine sulfate 200mg)]:[Chloroquine 50 mg base/5 mL Syrup, 60 mL]]) -> 4100 | AR2: =SUM(Input_Database[[#This Row],[Primaquine 7.5 mg Tablet]:[Primaquine 15 mg Tablet]]) -> 3700 | AS2: =SUM(Input_Database[[#This Row],[Quinine Sulfate 300 mg Tablet]:[Quinine Resorcine 400mg/4ml injectable]]) -> 6900 | AT2: =SUM(Input_Database[[#This Row],[Long Lasting Insecticide Treated Nets (LLINs)]:[Long Lasting Insecticide Treated Hammock Net (LLIHN)]]) -> 3100 | AU2: =SUM(Input_Database[[#This Row],[SP (Sulfadoxine/pyrimethamine 500mg/25mg, 3 tablets)]:[Dihydroartemisinin-Piperaquine (DHA-PPQ)]]) -> 5900 | AV2: =Input_Database[[#This Row],[Total Confirmed Malaria Cases]] -> 444 | AW2: =SUM(Input_Database[[#This Row],[ALU 6x1 (Artemether/Lumefantrine 20/120 mg Tablet, 6x1 tablets per Blister Pack)]:[ALU 6x4 (Artemether/Lumefantrine 20/120 mg Tablet, 6x4 tablets per Blister Pack)]])+SUM(Input_Database[[#This Row],[ASAQ 100/270 mg x 3 (Artesunate/Amodiaquine 100/270 mg Tablet, 3 Tablets per Blister Pack)]:[ASAQ 50/135 mg x3 (Artesunate/Amodiaquine 50/135 mg Tablet, 3 Tablets per Blister Pack)]])+SUM(Input_Database[[#This Row],[Primaquine 7.5 mg Tablet]:[Primaquine 15 mg Tablet]])+SUM(Input_Database[[#This Row],[Dihydroartemisinin-Piperaquine (DHA-PPQ)]:[Pyronaridine-Artesunate]]) -> 9200 | AX2: =IF(Input_Database[[#This Row],[Total Malaria Cases]]=0,"- ",Input_Database[[#This Row],[Total Treatments Issued]]/Input_Database[[#This Row],[Total Malaria Cases]]) -> 20.72072072 | AY2: =IF(Input_Database[[#This Row],[Total Severe Malaria Cases]]=0,"- ",Input_Database[[#This Row],[Total Artesunate]]/Input_Database[[#This Row],[Total Severe Malaria Cases]]) -> 7.027027027 | AZ2: =IF(Input_Database[[#This Row],[Total Suspected Malaria Cases Tested with mRDTs]]=0,"- ",Input_Database[[#This Row],[Total Malaria Cases]]/Input_Database[[#This Row],[Total Suspected Malaria Cases Tested with mRDTs]]) -> 44.4 | BA2: =IF(Input_Database[[#This Row],[Total Malaria Cases]]=0,"- ",Input_Database[[#This Row],[Total ALU]]/Input_Database[[#This Row],[Total Malaria Cases]]) -> 2.252252252 | BB2: =IF(Input_Database[[#This Row],[Total Monthly LLIN Clients]]=0,"- ",Input_Database[[#This Row],[Total LLINs]]/Input_Database[[#This Row],[Total Monthly LLIN Clients]]) -> 51.66666667 | BC2: =Input_Database[[#This Row],[Total Treatments Issued]]-Input_Database[[#This Row],[Total Malaria Cases]] -> 8756 | BD2: =_xlfn.IFNA(INDEX(TreatmentAcceptableRatio[],MATCH(Input_Database[[#This Row],[Country]],TreatmentAcceptableRatio[Commodity],0),2),"- ") -> - | BE2: =IF(Input_Database[[#This Row],[Total Malaria Cases]]=0,"- ",Input_Database[[#This Row],[Total Treatments Issued]]/Input_Database[[#This Row],[Total Malaria Cases]]) -> 20.72072072 | BF2: =IFERROR(DATE(Input_Database[[#This Row],[Year]],IF(Input_Database[[#This Row],[Month]]="January",1,IF(Input_Database[[#This Row],[Month]]="February",2,IF(Input_Database[[#This Row],[Month]]="March",3,IF(Input_Database[[#This Row],[Month]]="April",4,IF(Input_Database[[#This Row],[Month]]="May",5,IF(Input_Database[[#This Row],[Month]]="June",6,IF(Input_Database[[#This Row],[Month]]="July",7,IF(Input_Database[[#This Row],[Month]]="August",8,IF(Input_Database[[#This Row],[Month]]="September",9,IF(Input_Database[[#This Row],[Month]]="October",10,IF(Input_Database[[#This Row],[Month]]="November",11,IF(Input_Database[[#This Row],[Month]]="December",12,"Error")))))))))))),1),"- ") -> 2026-02-01
A3: NIUE ** | C3: NEW | D3: PHARMACY | E3: FEBRUARY | F3: 2026 | G3: 3434 | H3: 4545 | I3: 19 | J3: 342 | K3: 111 | L3: 222 | M3: 333 | N3: 444 | P3: 3330 | Q3: 2220 | R3: 4440 | T3: 999 | U3: 1000 | V3: 777 | W3: 888 | X3: 1212 | Y3: 1313 | Z3: 8880 | AA3: 9990 | AB3: 1414 | AC3: 1515 | AD3: 1616 | AE3: 7770 | AF3: 5550 | AG3: 6660 | AH3: 1110 | AL3: STEVE | AM3: 2024-02-20T12:27:05 | AN3: =SUM(Input_Database[[#This Row],[ALU 6x1 (Artemether/Lumefantrine 20/120 mg Tablet, 6x1 tablets per Blister Pack)]:[ALU 6x4 (Artemether/Lumefantrine 20/120 mg Tablet, 6x4 tablets per Blister Pack)]]) -> 1110 | AO3: =SUM(Input_Database[[#This Row],[Artesunate (w/ 1 Amp NaHCO3 5% + 1 Amp NaCl 0.9%) 60 mg Vial, 1 Set]:[Artesunate suppository 100 mg (Rectal Artesunate)]]) -> 9990 | AP3: =SUM(Input_Database[[#This Row],[ASAQ 100/270 mg x 3 (Artesunate/Amodiaquine 100/270 mg Tablet, 3 Tablets per Blister Pack)]:[ASAQ 50/135 mg x3 (Artesunate/Amodiaquine 50/135 mg Tablet, 3 Tablets per Blister Pack)]]) -> 3664 | AQ3: =SUM(Input_Database[[#This Row],[Chloroquine 150mg base Tablet (= Chloroquine Phosphate 250mg, or Chloroquine sulfate 200mg)]:[Chloroquine 50 mg base/5 mL Syrup, 60 mL]]) -> 2525 | AR3: =SUM(Input_Database[[#This Row],[Primaquine 7.5 mg Tablet]:[Primaquine 15 mg Tablet]]) -> 18870 | AS3: =SUM(Input_Database[[#This Row],[Quinine Sulfate 300 mg Tablet]:[Quinine Resorcine 400mg/4ml injectable]]) -> 4545 | AT3: =SUM(Input_Database[[#This Row],[Long Lasting Insecticide Treated Nets (LLINs)]:[Long Lasting Insecticide Treated Hammock Net (LLIHN)]]) -> 12210 | AU3: =SUM(Input_Database[[#This Row],[SP (Sulfadoxine/pyrimethamine 500mg/25mg, 3 tablets)]:[Dihydroartemisinin-Piperaquine (DHA-PPQ)]]) -> 21090 | AV3: =Input_Database[[#This Row],[Total Confirmed Malaria Cases]] -> 3434 | AW3: =SUM(Input_Database[[#This Row],[ALU 6x1 (Artemether/Lumefantrine 20/120 mg Tablet, 6x1 tablets per Blister Pack)]:[ALU 6x4 (Artemether/Lumefantrine 20/120 mg Tablet, 6x4 tablets per Blister Pack)]])+SUM(Input_Database[[#This Row],[ASAQ 100/270 mg x 3 (Artesunate/Amodiaquine 100/270 mg Tablet, 3 Tablets per Blister Pack)]:[ASAQ 50/135 mg x3 (Artesunate/Amodiaquine 50/135 mg Tablet, 3 Tablets per Blister Pack)]])+SUM(Input_Database[[#This Row],[Primaquine 7.5 mg Tablet]:[Primaquine 15 mg Tablet]])+SUM(Input_Database[[#This Row],[Dihydroartemisinin-Piperaquine (DHA-PPQ)]:[Pyronaridine-Artesunate]]) -> 24754 | AX3: =IF(Input_Database[[#This Row],[Total Malaria Cases]]=0,"- ",Input_Database[[#This Row],[Total Treatments Issued]]/Input_Database[[#This Row],[Total Malaria Cases]]) -> 7.208503203 | AY3: =IF(Input_Database[[#This Row],[Total Severe Malaria Cases]]=0,"- ",Input_Database[[#This Row],[Total Artesunate]]/Input_Database[[#This Row],[Total Severe Malaria Cases]]) -> 2.198019802 | AZ3: =IF(Input_Database[[#This Row],[Total Suspected Malaria Cases Tested with mRDTs]]=0,"- ",Input_Database[[#This Row],[Total Malaria Cases]]/Input_Database[[#This Row],[Total Suspected Malaria Cases Tested with mRDTs]]) -> 180.7368421 | BA3: =IF(Input_Database[[#This Row],[Total Malaria Cases]]=0,"- ",Input_Database[[#This Row],[Total ALU]]/Input_Database[[#This Row],[Total Malaria Cases]]) -> 0.3232382062 | BB3: =IF(Input_Database[[#This Row],[Total Monthly LLIN Clients]]=0,"- ",Input_Database[[#This Row],[Total LLINs]]/Input_Database[[#This Row],[Total Monthly LLIN Clients]]) -> 35.70175439 | BC3: =Input_Database[[#This Row],[Total Treatments Issued]]-Input_Database[[#This Row],[Total Malaria Cases]] -> 21320 | BD3: =_xlfn.IFNA(INDEX(TreatmentAcceptableRatio[],MATCH(Input_Database[[#This Row],[Country]],TreatmentAcceptableRatio[Commodity],0),2),"- ") -> - | BE3: =IF(Input_Database[[#This Row],[Total Malaria Cases]]=0,"- ",Input_Database[[#This Row],[Total Treatments Issued]]/Input_Database[[#This Row],[Total Malaria Cases]]) -> 7.208503203 | BF3: =IFERROR(DATE(Input_Database[[#This Row],[Year]],IF(Input_Database[[#This Row],[Month]]="January",1,IF(Input_Database[[#This Row],[Month]]="February",2,IF(Input_Database[[#This Row],[Month]]="March",3,IF(Input_Database[[#This Row],[Month]]="April",4,IF(Input_Database[[#This Row],[Month]]="May",5,IF(Input_Database[[#This Row],[Month]]="June",6,IF(Input_Database[[#This Row],[Month]]="July",7,IF(Input_Database[[#This Row],[Month]]="August",8,IF(Input_Database[[#This Row],[Month]]="September",9,IF(Input_Database[[#This Row],[Month]]="October",10,IF(Input_Database[[#This Row],[Month]]="November",11,IF(Input_Database[[#This Row],[Month]]="December",12,"Error")))))))))))),1),"- ") -> 2026-02-01
A4: NIUE ** | C4: NEW | D4: PHARMACY | E4: APRIL | F4: 2020 | G4: 222 | H4: 22 | I4: 28 | J4: 624 | K4: 22 | L4: 22 | M4: 22 | N4: 22 | O4: 222 | P4: 22 | Q4: 222 | R4: 222 | T4: 22 | U4: 222 | V4: 22 | W4: 22 | X4: 222 | Y4: 22 | Z4: 222 | AA4: 222 | AB4: 222 | AC4: 222 | AD4: 222 | AE4: 222 | AF4: 222 | AG4: 22 | AH4: 22 | AJ4: 222 | AK4: 222 | AL4: STEVE | AM4: 2024-02-26T17:23:10 | AN4: =SUM(Input_Database[[#This Row],[ALU 6x1 (Artemether/Lumefantrine 20/120 mg Tablet, 6x1 tablets per Blister Pack)]:[ALU 6x4 (Artemether/Lumefantrine 20/120 mg Tablet, 6x4 tablets per Blister Pack)]]) -> 88 | AO4: =SUM(Input_Database[[#This Row],[Artesunate (w/ 1 Amp NaHCO3 5% + 1 Amp NaCl 0.9%) 60 mg Vial, 1 Set]:[Artesunate suppository 100 mg (Rectal Artesunate)]]) -> 466 | AP4: =SUM(Input_Database[[#This Row],[ASAQ 100/270 mg x 3 (Artesunate/Amodiaquine 100/270 mg Tablet, 3 Tablets per Blister Pack)]:[ASAQ 50/135 mg x3 (Artesunate/Amodiaquine 50/135 mg Tablet, 3 Tablets per Blister Pack)]]) -> 288 | AQ4: =SUM(Input_Database[[#This Row],[Chloroquine 150mg base Tablet (= Chloroquine Phosphate 250mg, or Chloroquine sulfate 200mg)]:[Chloroquine 50 mg base/5 mL Syrup, 60 mL]]) -> 244 | AR4: =SUM(Input_Database[[#This Row],[Primaquine 7.5 mg Tablet]:[Primaquine 15 mg Tablet]]) -> 444 | AS4: =SUM(Input_Database[[#This Row],[Quinine Sulfate 300 mg Tablet]:[Quinine Resorcine 400mg/4ml injectable]]) -> 666 | AT4: =SUM(Input_Database[[#This Row],[Long Lasting Insecticide Treated Nets (LLINs)]:[Long Lasting Insecticide Treated Hammock Net (LLIHN)]]) -> 244 | AU4: =SUM(Input_Database[[#This Row],[SP (Sulfadoxine/pyrimethamine 500mg/25mg, 3 tablets)]:[Dihydroartemisinin-Piperaquine (DHA-PPQ)]]) -> 488 | AV4: =Input_Database[[#This Row],[Total Confirmed Malaria Cases]] -> 222 | AW4: =SUM(Input_Database[[#This Row],[ALU 6x1 (Artemether/Lumefantrine 20/120 mg Tablet, 6x1 tablets per Blister Pack)]:[ALU 6x4 (Artemether/Lumefantrine 20/120 mg Tablet, 6x4 tablets per Blister Pack)]])+SUM(Input_Database[[#This Row],[ASAQ 100/270 mg x 3 (Artesunate/Amodiaquine 100/270 mg Tablet, 3 Tablets per Blister Pack)]:[ASAQ 50/135 mg x3 (Artesunate/Amodiaquine 50/135 mg Tablet, 3 Tablets per Blister Pack)]])+SUM(Input_Database[[#This Row],[Primaquine 7.5 mg Tablet]:[Primaquine 15 mg Tablet]])+SUM(Input_Database[[#This Row],[Dihydroartemisinin-Piperaquine (DHA-PPQ)]:[Pyronaridine-Artesunate]]) -> 842 | AX4: =IF(Input_Database[[#This Row],[Total Malaria Cases]]=0,"- ",Input_Database[[#This Row],[Total Treatments Issued]]/Input_Database[[#This Row],[Total Malaria Cases]]) -> 3.792792793 | AY4: =IF(Input_Database[[#This Row],[Total Severe Malaria Cases]]=0,"- ",Input_Database[[#This Row],[Total Artesunate]]/Input_Database[[#This Row],[Total Severe Malaria Cases]]) -> 21.18181818 | AZ4: =IF(Input_Database[[#This Row],[Total Suspected Malaria Cases Tested with mRDTs]]=0,"- ",Input_Database[[#This Row],[Total Malaria Cases]]/Input_Database[[#This Row],[Total Suspected Malaria Cases Tested with mRDTs]]) -> 7.928571429 | BA4: =IF(Input_Database[[#This Row],[Total Malaria Cases]]=0,"- ",Input_Database[[#This Row],[Total ALU]]/Input_Database[[#This Row],[Total Malaria Cases]]) -> 0.3963963964 | BB4: =IF(Input_Database[[#This Row],[Total Monthly LLIN Clients]]=0,"- ",Input_Database[[#This Row],[Total LLINs]]/Input_Database[[#This Row],[Total Monthly LLIN Clients]]) -> 0.391025641 | BC4: =Input_Database[[#This Row],[Total Treatments Issued]]-Input_Database[[#This Row],[Total Malaria Cases]] -> 620 | BD4: =_xlfn.IFNA(INDEX(TreatmentAcceptableRatio[],MATCH(Input_Database[[#This Row],[Country]],TreatmentAcceptableRatio[Commodity],0),2),"- ") -> - | BE4: =IF(Input_Database[[#This Row],[Total Malaria Cases]]=0,"- ",Input_Database[[#This Row],[Total Treatments Issued]]/Input_Database[[#This Row],[Total Malaria Cases]]) -> 3.792792793 | BF4: =IFERROR(DATE(Input_Database[[#This Row],[Year]],IF(Input_Database[[#This Row],[Month]]="January",1,IF(Input_Database[[#This Row],[Month]]="February",2,IF(Input_Database[[#This Row],[Month]]="March",3,IF(Input_Database[[#This Row],[Month]]="April",4,IF(Input_Database[[#This Row],[Month]]="May",5,IF(Input_Database[[#This Row],[Month]]="June",6,IF(Input_Database[[#This Row],[Month]]="July",7,IF(Input_Database[[#This Row],[Month]]="August",8,IF(Input_Database[[#This Row],[Month]]="September",9,IF(Input_Database[[#This Row],[Month]]="October",10,IF(Input_Database[[#This Row],[Month]]="November",11,IF(Input_Database[[#This Row],[Month]]="December",12,"Error")))))))))))),1),"- ") -> 2020-04-01
A5: NIUE ** | C5: NEW | D5: PHARMACY | E5: JUNE | F5: 2027 | G5: 444 | H5: 444 | I5: 37 | J5: 906 | K5: 444 | L5: 444 | M5: 444 | N5: 444 | O5: 444 | P5: 444 | Q5: 444 | R5: 444 | T5: 444 | U5: 444 | V5: 444 | W5: 444 | X5: 444 | Y5: 444 | Z5: 444 | AA5: 444 | AB5: 444 | AC5: 444 | AD5: 444 | AE5: 444 | AF5: 444 | AG5: 444 | AH5: 444 | AJ5: 444 | AK5: 444 | AL5: John Smith | AM5: 2024-02-26T17:34:09 | AN5: =SUM(Input_Database[[#This Row],[ALU 6x1 (Artemether/Lumefantrine 20/120 mg Tablet, 6x1 tablets per Blister Pack)]:[ALU 6x4 (Artemether/Lumefantrine 20/120 mg Tablet, 6x4 tablets per Blister Pack)]]) -> 1776 | AO5: =SUM(Input_Database[[#This Row],[Artesunate (w/ 1 Amp NaHCO3 5% + 1 Amp NaCl 0.9%) 60 mg Vial, 1 Set]:[Artesunate suppository 100 mg (Rectal Artesunate)]]) -> 1332 | AP5: =SUM(Input_Database[[#This Row],[ASAQ 100/270 mg x 3 (Artesunate/Amodiaquine 100/270 mg Tablet, 3 Tablets per Blister Pack)]:[ASAQ 50/135 mg x3 (Artesunate/Amodiaquine 50/135 mg Tablet, 3 Tablets per Blister Pack)]]) -> 1776 | AQ5: =SUM(Input_Database[[#This Row],[Chloroquine 150mg base Tablet (= Chloroquine Phosphate 250mg, or Chloroquine sulfate 200mg)]:[Chloroquine 50 mg base/5 mL Syrup, 60 mL]]) -> 888 | AR5: =SUM(Input_Database[[#This Row],[Primaquine 7.5 mg Tablet]:[Primaquine 15 mg Tablet]]) -> 888 | AS5: =SUM(Input_Database[[#This Row],[Quinine Sulfate 300 mg Tablet]:[Quinine Resorcine 400mg/4ml injectable]]) -> 1332 | AT5: =SUM(Input_Database[[#This Row],[Long Lasting Insecticide Treated Nets (LLINs)]:[Long Lasting Insecticide Treated Hammock Net (LLIHN)]]) -> 888 | AU5: =SUM(Input_Database[[#This Row],[SP (Sulfadoxine/pyrimethamine 500mg/25mg, 3 tablets)]:[Dihydroartemisinin-Piperaquine (DHA-PPQ)]]) -> 1776 | AV5: =Input_Database[[#This Row],[Total Confirmed Malaria Cases]] -> 444 | AW5: =SUM(Input_Database[[#This Row],[ALU 6x1 (Artemether/Lumefantrine 20/120 mg Tablet, 6x1 tablets per Blister Pack)]:[ALU 6x4 (Artemether/Lumefantrine 20/120 mg Tablet, 6x4 tablets per Blister Pack)]])+SUM(Input_Database[[#This Row],[ASAQ 100/270 mg x 3 (Artesunate/Amodiaquine 100/270 mg Tablet, 3 Tablets per Blister Pack)]:[ASAQ 50/135 mg x3 (Artesunate/Amodiaquine 50/135 mg Tablet, 3 Tablets per Blister Pack)]])+SUM(Input_Database[[#This Row],[Primaquine 7.5 mg Tablet]:[Primaquine 15 mg Tablet]])+SUM(Input_Database[[#This Row],[Dihydroartemisinin-Piperaquine (DHA-PPQ)]:[Pyronaridine-Artesunate]]) -> 4884 | AX5: =IF(Input_Database[[#This Row],[Total Malaria Cases]]=0,"- ",Input_Database[[#This Row],[Total Treatments Issued]]/Input_Database[[#This Row],[Total Malaria Cases]]) -> 11 | AY5: =IF(Input_Database[[#This Row],[Total Severe Malaria Cases]]=0,"- ",Input_Database[[#This Row],[Total Artesunate]]/Input_Database[[#This Row],[Total Severe Malaria Cases]]) -> 3 | AZ5: =IF(Input_Database[[#This Row],[Total Suspected Malaria Cases Tested with mRDTs]]=0,"- ",Input_Database[[#This Row],[Total Malaria Cases]]/Input_Database[[#This Row],[Total Suspected Malaria Cases Tested with mRDTs]]) -> 12 | BA5: =IF(Input_Database[[#This Row],[Total Malaria Cases]]=0,"- ",Input_Database[[#This Row],[Total ALU]]/Input_Database[[#This Row],[Total Malaria Cases]]) -> 4 | BB5: =IF(Input_Database[[#This Row],[Total Monthly LLIN Clients]]=0,"- ",Input_Database[[#This Row],[Total LLINs]]/Input_Database[[#This Row],[Total Monthly LLIN Clients]]) -> 0.9801324503 | BC5: =Input_Database[[#This Row],[Total Treatments Issued]]-Input_Database[[#This Row],[Total Malaria Cases]] -> 4440 | BD5: =_xlfn.IFNA(INDEX(TreatmentAcceptableRatio[],MATCH(Input_Database[[#This Row],[Country]],TreatmentAcceptableRatio[Commodity],0),2),"- ") -> - | BE5: =IF(Input_Database[[#This Row],[Total Malaria Cases]]=0,"- ",Input_Database[[#This Row],[Total Treatments Issued]]/Input_Database[[#This Row],[Total Malaria Cases]]) -> 11 | BF5: =IFERROR(DATE(Input_Database[[#This Row],[Year]],IF(Input_Database[[#This Row],[Month]]="January",1,IF(Input_Database[[#This Row],[Month]]="February",2,IF(Input_Database[[#This Row],[Month]]="March",3,IF(Input_Database[[#This Row],[Month]]="April",4,IF(Input_Database[[#This Row],[Month]]="May",5,IF(Input_Database[[#This Row],[Month]]="June",6,IF(Input_Database[[#This Row],[Month]]="July",7,IF(Input_Database[[#This Row],[Month]]="August",8,IF(Input_Database[[#This Row],[Month]]="September",9,IF(Input_Database[[#This Row],[Month]]="October",10,IF(Input_Database[[#This Row],[Month]]="November",11,IF(Input_Database[[#This Row],[Month]]="December",12,"Error")))))))))))),1),"- ") -> 2027-06-01
A6: NIUE ** | C6: NEW | D6: OTHER PHARMACY | E6: MARCH | F6: 2023 | G6: 29 | H6: 30 | I6: 46 | J6: 1188 | K6: 1 | L6: 2 | M6: 3 | N6: 4 | O6: 13 | P6: 15 | Q6: 14 | R6: 16 | T6: 9 | U6: 10 | V6: 7 | W6: 8 | X6: 24 | Y6: 25 | Z6: 22 | AA6: 23 | AB6: 26 | AC6: 27 | AD6: 28 | AE6: 19 | AF6: 17 | AG6: 18 | AH6: 11 | AI6: 12 | AJ6: 20 | AK6: 21 | AL6: Tim Burton | AM6: 2024-02-27T17:34:09 | AN6: =SUM(Input_Database[[#This Row],[ALU 6x1 (Artemether/Lumefantrine 20/120 mg Tablet, 6x1 tablets per Blister Pack)]:[ALU 6x4 (Artemether/Lumefantrine 20/120 mg Tablet, 6x4 tablets per Blister Pack)]]) -> 10 | AO6: =SUM(Input_Database[[#This Row],[Artesunate (w/ 1 Amp NaHCO3 5% + 1 Amp NaCl 0.9%) 60 mg Vial, 1 Set]:[Artesunate suppository 100 mg (Rectal Artesunate)]]) -> 45 | AP6: =SUM(Input_Database[[#This Row],[ASAQ 100/270 mg x 3 (Artesunate/Amodiaquine 100/270 mg Tablet, 3 Tablets per Blister Pack)]:[ASAQ 50/135 mg x3 (Artesunate/Amodiaquine 50/135 mg Tablet, 3 Tablets per Blister Pack)]]) -> 34 | AQ6: =SUM(Input_Database[[#This Row],[Chloroquine 150mg base Tablet (= Chloroquine Phosphate 250mg, or Chloroquine sulfate 200mg)]:[Chloroquine 50 mg base/5 mL Syrup, 60 mL]]) -> 49 | AR6: =SUM(Input_Database[[#This Row],[Primaquine 7.5 mg Tablet]:[Primaquine 15 mg Tablet]]) -> 45 | AS6: =SUM(Input_Database[[#This Row],[Quinine Sulfate 300 mg Tablet]:[Quinine Resorcine 400mg/4ml injectable]]) -> 81 | AT6: =SUM(Input_Database[[#This Row],[Long Lasting Insecticide Treated Nets (LLINs)]:[Long Lasting Insecticide Treated Hammock Net (LLIHN)]]) -> 35 | AU6: =SUM(Input_Database[[#This Row],[SP (Sulfadoxine/pyrimethamine 500mg/25mg, 3 tablets)]:[Dihydroartemisinin-Piperaquine (DHA-PPQ)]]) -> 65 | AV6: =Input_Database[[#This Row],[Total Confirmed Malaria Cases]] -> 29 | AW6: =SUM(Input_Database[[#This Row],[ALU 6x1 (Artemether/Lumefantrine 20/120 mg Tablet, 6x1 tablets per Blister Pack)]:[ALU 6x4 (Artemether/Lumefantrine 20/120 mg Tablet, 6x4 tablets per Blister Pack)]])+SUM(Input_Database[[#This Row],[ASAQ 100/270 mg x 3 (Artesunate/Amodiaquine 100/270 mg Tablet, 3 Tablets per Blister Pack)]:[ASAQ 50/135 mg x3 (Artesunate/Amodiaquine 50/135 mg Tablet, 3 Tablets per Blister Pack)]])+SUM(Input_Database[[#This Row],[Primaquine 7.5 mg Tablet]:[Primaquine 15 mg Tablet]])+SUM(Input_Database[[#This Row],[Dihydroartemisinin-Piperaquine (DHA-PPQ)]:[Pyronaridine-Artesunate]]) -> 112 | AX6: =IF(Input_Database[[#This Row],[Total Malaria Cases]]=0,"- ",Input_Database[[#This Row],[Total Treatments Issued]]/Input_Database[[#This Row],[Total Malaria Cases]]) -> 3.862068966 | AY6: =IF(Input_Database[[#This Row],[Total Severe Malaria Cases]]=0,"- ",Input_Database[[#This Row],[Total Artesunate]]/Input_Database[[#This Row],[Total Severe Malaria Cases]]) -> 1.5 | AZ6: =IF(Input_Database[[#This Row],[Total Suspected Malaria Cases Tested with mRDTs]]=0,"- ",Input_Database[[#This Row],[Total Malaria Cases]]/Input_Database[[#This Row],[Total Suspected Malaria Cases Tested with mRDTs]]) -> 0.6304347826 | BA6: =IF(Input_Database[[#This Row],[Total Malaria Cases]]=0,"- ",Input_Database[[#This Row],[Total ALU]]/Input_Database[[#This Row],[Total Malaria Cases]]) -> 0.3448275862 | BB6: =IF(Input_Database[[#This Row],[Total Monthly LLIN Clients]]=0,"- ",Input_Database[[#This Row],[Total LLINs]]/Input_Database[[#This Row],[Total Monthly LLIN Clients]]) -> 0.02946127946 | BC6: =Input_Database[[#This Row],[Total Treatments Issued]]-Input_Database[[#This Row],[Total Malaria Cases]] -> 83 | BD6: =_xlfn.IFNA(INDEX(TreatmentAcceptableRatio[],MATCH(Input_Database[[#This Row],[Country]],TreatmentAcceptableRatio[Commodity],0),2),"- ") -> - | BE6: =IF(Input_Database[[#This Row],[Total Malaria Cases]]=0,"- ",Input_Database[[#This Row],[Total Treatments Issued]]/Input_Database[[#This Row],[Total Malaria Cases]]) -> 3.862068966 | BF6: =IFERROR(DATE(Input_Database[[#This Row],[Year]],IF(Input_Database[[#This Row],[Month]]="January",1,IF(Input_Database[[#This Row],[Month]]="February",2,IF(Input_Database[[#This Row],[Month]]="March",3,IF(Input_Database[[#This Row],[Month]]="April",4,IF(Input_Database[[#This Row],[Month]]="May",5,IF(Input_Database[[#This Row],[Month]]="June",6,IF(Input_Database[[#This Row],[Month]]="July",7,IF(Input_Database[[#This Row],[Month]]="August",8,IF(Input_Database[[#This Row],[Month]]="September",9,IF(Input_Database[[#This Row],[Month]]="October",10,IF(Input_Database[[#This Row],[Month]]="November",11,IF(Input_Database[[#This Row],[Month]]="December",12,"Error")))))))))))),1),"- ") -> 2023-03-01
A7: LIBERIA | C7: NEW | D7: THIRD PHARMACY | E7: JULY | F7: 2024 | G7: 111 | H7: 111 | I7: 55 | J7: 1470 | K7: 1 | L7: 2 | M7: 2 | N7: 2 | O7: 111 | P7: 111 | Q7: 111 | R7: 111 | T7: 10 | U7: 3 | V7: 4 | W7: 5 | X7: 111 | Y7: 111 | Z7: 111 | AA7: 111 | AB7: 111 | AC7: 111 | AD7: 111 | AE7: 7 | AF7: 111 | AG7: 111 | AH7: 111 | AI7: 111 | AJ7: 111 | AK7: 111 | AL7: ISRAEL | AM7: 2024-02-28T17:34:09 | AN7: =SUM(Input_Database[[#This Row],[ALU 6x1 (Artemether/Lumefantrine 20/120 mg Tablet, 6x1 tablets per Blister Pack)]:[ALU 6x4 (Artemether/Lumefantrine 20/120 mg Tablet, 6x4 tablets per Blister Pack)]]) -> 7 | AO7: =SUM(Input_Database[[#This Row],[Artesunate (w/ 1 Amp NaHCO3 5% + 1 Amp NaCl 0.9%) 60 mg Vial, 1 Set]:[Artesunate suppository 100 mg (Rectal Artesunate)]]) -> 333 | AP7: =SUM(Input_Database[[#This Row],[ASAQ 100/270 mg x 3 (Artesunate/Amodiaquine 100/270 mg Tablet, 3 Tablets per Blister Pack)]:[ASAQ 50/135 mg x3 (Artesunate/Amodiaquine 50/135 mg Tablet, 3 Tablets per Blister Pack)]]) -> 22 | AQ7: =SUM(Input_Database[[#This Row],[Chloroquine 150mg base Tablet (= Chloroquine Phosphate 250mg, or Chloroquine sulfate 200mg)]:[Chloroquine 50 mg base/5 mL Syrup, 60 mL]]) -> 222 | AR7: =SUM(Input_Database[[#This Row],[Primaquine 7.5 mg Tablet]:[Primaquine 15 mg Tablet]]) -> 222 | AS7: =SUM(Input_Database[[#This Row],[Quinine Sulfate 300 mg Tablet]:[Quinine Resorcine 400mg/4ml injectable]]) -> 333 | AT7: =SUM(Input_Database[[#This Row],[Long Lasting Insecticide Treated Nets (LLINs)]:[Long Lasting Insecticide Treated Hammock Net (LLIHN)]]) -> 222 | AU7: =SUM(Input_Database[[#This Row],[SP (Sulfadoxine/pyrimethamine 500mg/25mg, 3 tablets)]:[Dihydroartemisinin-Piperaquine (DHA-PPQ)]]) -> 340 | AV7: =Input_Database[[#This Row],[Total Confirmed Malaria Cases]] -> 111 | AW7: =SUM(Input_Database[[#This Row],[ALU 6x1 (Artemether/Lumefantrine 20/120 mg Tablet, 6x1 tablets per Blister Pack)]:[ALU 6x4 (Artemether/Lumefantrine 20/120 mg Tablet, 6x4 tablets per Blister Pack)]])+SUM(Input_Database[[#This Row],[ASAQ 100/270 mg x 3 (Artesunate/Amodiaquine 100/270 mg Tablet, 3 Tablets per Blister Pack)]:[ASAQ 50/135 mg x3 (Artesunate/Amodiaquine 50/135 mg Tablet, 3 Tablets per Blister Pack)]])+SUM(Input_Database[[#This Row],[Primaquine 7.5 mg Tablet]:[Primaquine 15 mg Tablet]])+SUM(Input_Database[[#This Row],[Dihydroartemisinin-Piperaquine (DHA-PPQ)]:[Pyronaridine-Artesunate]]) -> 473 | AX7: =IF(Input_Database[[#This Row],[Total Malaria Cases]]=0,"- ",Input_Database[[#This Row],[Total Treatments Issued]]/Input_Database[[#This Row],[Total Malaria Cases]]) -> 4.261261261 | AY7: =IF(Input_Database[[#This Row],[Total Severe Malaria Cases]]=0,"- ",Input_Database[[#This Row],[Total Artesunate]]/Input_Database[[#This Row],[Total Severe Malaria Cases]]) -> 3 | AZ7: =IF(Input_Database[[#This Row],[Total Suspected Malaria Cases Tested with mRDTs]]=0,"- ",Input_Database[[#This Row],[Total Malaria Cases]]/Input_Database[[#This Row],[Total Suspected Malaria Cases Tested with mRDTs]]) -> 2.018181818 | BA7: =IF(Input_Database[[#This Row],[Total Malaria Cases]]=0,"- ",Input_Database[[#This Row],[Total ALU]]/Input_Database[[#This Row],[Total Malaria Cases]]) -> 0.06306306306 | BB7: =IF(Input_Database[[#This Row],[Total Monthly LLIN Clients]]=0,"- ",Input_Database[[#This Row],[Total LLINs]]/Input_Database[[#This Row],[Total Monthly LLIN Clients]]) -> 0.1510204082 | BC7: =Input_Database[[#This Row],[Total Treatments Issued]]-Input_Database[[#This Row],[Total Malaria Cases]] -> 362 | BD7: =_xlfn.IFNA(INDEX(TreatmentAcceptableRatio[],MATCH(Input_Database[[#This Row],[Country]],TreatmentAcceptableRatio[Commodity],0),2),"- ") -> - | BE7: =IF(Input_Database[[#This Row],[Total Malaria Cases]]=0,"- ",Input_Database[[#This Row],[Total Treatments Issued]]/Input_Database[[#This Row],[Total Malaria Cases]]) -> 4.261261261 | BF7: =IFERROR(DATE(Input_Database[[#This Row],[Year]],IF(Input_Database[[#This Row],[Month]]="January",1,IF(Input_Database[[#This Row],[Month]]="February",2,IF(Input_Database[[#This Row],[Month]]="March",3,IF(Input_Database[[#This Row],[Month]]="April",4,IF(Input_Database[[#This Row],[Month]]="May",5,IF(Input_Database[[#This Row],[Month]]="June",6,IF(Input_Database[[#This Row],[Month]]="July",7,IF(Input_Database[[#This Row],[Month]]="August",8,IF(Input_Database[[#This Row],[Month]]="September",9,IF(Input_Database[[#This Row],[Month]]="October",10,IF(Input_Database[[#This Row],[Month]]="November",11,IF(Input_Database[[#This Row],[Month]]="December",12,"Error")))))))))))),1),"- ") -> 2024-07-01
A8: NIGER | C8: NEW | D8: THIRD PHARMACY | E8: MAY | F8: 2024 | G8: 111 | H8: 111 | I8: 64 | J8: 1752 | K8: 2 | L8: 5 | M8: 3 | N8: 2 | O8: 111 | P8: 111 | Q8: 111 | R8: 111 | T8: 6 | U8: 2.5 | V8: 15 | W8: 10 | X8: 111 | Y8: 111 | Z8: 1111 | AA8: 111 | AB8: 111 | AC8: 111 | AD8: 111 | AE8: 111 | AF8: 111 | AG8: 111 | AH8: 111 | AI8: 111 | AJ8: 111 | AK8: 111 | AL8: ISRAEL | AM8: 2024-02-29T17:34:09 | AN8: =SUM(Input_Database[[#This Row],[ALU 6x1 (Artemether/Lumefantrine 20/120 mg Tablet, 6x1 tablets per Blister Pack)]:[ALU 6x4 (Artemether/Lumefantrine 20/120 mg Tablet, 6x4 tablets per Blister Pack)]]) -> 12 | AO8: =SUM(Input_Database[[#This Row],[Artesunate (w/ 1 Amp NaHCO3 5% + 1 Amp NaCl 0.9%) 60 mg Vial, 1 Set]:[Artesunate suppository 100 mg (Rectal Artesunate)]]) -> 333 | AP8: =SUM(Input_Database[[#This Row],[ASAQ 100/270 mg x 3 (Artesunate/Amodiaquine 100/270 mg Tablet, 3 Tablets per Blister Pack)]:[ASAQ 50/135 mg x3 (Artesunate/Amodiaquine 50/135 mg Tablet, 3 Tablets per Blister Pack)]]) -> 33.5 | AQ8: =SUM(Input_Database[[#This Row],[Chloroquine 150mg base Tablet (= Chloroquine Phosphate 250mg, or Chloroquine sulfate 200mg)]:[Chloroquine 50 mg base/5 mL Syrup, 60 mL]]) -> 222 | AR8: =SUM(Input_Database[[#This Row],[Primaquine 7.5 mg Tablet]:[Primaquine 15 mg Tablet]]) -> 1222 | AS8: =SUM(Input_Database[[#This Row],[Quinine Sulfate 300 mg Tablet]:[Quinine Resorcine 400mg/4ml injectable]]) -> 333 | AT8: =SUM(Input_Database[[#This Row],[Long Lasting Insecticide Treated Nets (LLINs)]:[Long Lasting Insecticide Treated Hammock Net (LLIHN)]]) -> 222 | AU8: =SUM(Input_Database[[#This Row],[SP (Sulfadoxine/pyrimethamine 500mg/25mg, 3 tablets)]:[Dihydroartemisinin-Piperaquine (DHA-PPQ)]]) -> 444 | AV8: =Input_Database[[#This Row],[Total Confirmed Malaria Cases]] -> 111 | AW8: =SUM(Input_Database[[#This Row],[ALU 6x1 (Artemether/Lumefantrine 20/120 mg Tablet, 6x1 tablets per Blister Pack)]:[ALU 6x4 (Artemether/Lumefantrine 20/120 mg Tablet, 6x4 tablets per Blister Pack)]])+SUM(Input_Database[[#This Row],[ASAQ 100/270 mg x 3 (Artesunate/Amodiaquine 100/270 mg Tablet, 3 Tablets per Blister Pack)]:[ASAQ 50/135 mg x3 (Artesunate/Amodiaquine 50/135 mg Tablet, 3 Tablets per Blister Pack)]])+SUM(Input_Database[[#This Row],[Primaquine 7.5 mg Tablet]:[Primaquine 15 mg Tablet]])+SUM(Input_Database[[#This Row],[Dihydroartemisinin-Piperaquine (DHA-PPQ)]:[Pyronaridine-Artesunate]]) -> 1489.5 | AX8: =IF(Input_Database[[#This Row],[Total Malaria Cases]]=0,"- ",Input_Database[[#This Row],[Total Treatments Issued]]/Input_Database[[#This Row],[Total Malaria Cases]]) -> 13.41891892 | AY8: =IF(Input_Database[[#This Row],[Total Severe Malaria Cases]]=0,"- ",Input_Database[[#This Row],[Total Artesunate]]/Input_Database[[#This Row],[Total Severe Malaria Cases]]) -> 3 | AZ8: =IF(Input_Database[[#This Row],[Total Suspected Malaria Cases Tested with mRDTs]]=0,"- ",Input_Database[[#This Row],[Total Malaria Cases]]/Input_Database[[#This Row],[Total Suspected Malaria Cases Tested with mRDTs]]) -> 1.734375 | BA8: =IF(Input_Database[[#This Row],[Total Malaria Cases]]=0,"- ",Input_Database[[#This Row],[Total ALU]]/Input_Database[[#This Row],[Total Malaria Cases]]) -> 0.1081081081 | BB8: =IF(Input_Database[[#This Row],[Total Monthly LLIN Clients]]=0,"- ",Input_Database[[#This Row],[Total LLINs]]/Input_Database[[#This Row],[Total Monthly LLIN Clients]]) -> 0.1267123288 | BC8: =Input_Database[[#This Row],[Total Treatments Issued]]-Input_Database[[#This Row],[Total Malaria Cases]] -> 1378.5 | BD8: =_xlfn.IFNA(INDEX(TreatmentAcceptableRatio[],MATCH(Input_Database[[#This Row],[Country]],TreatmentAcceptableRatio[Commodity],0),2),"- ") -> - | BE8: =IF(Input_Database[[#This Row],[Total Malaria Cases]]=0,"- ",Input_Database[[#This Row],[Total Treatments Issued]]/Input_Database[[#This Row],[Total Malaria Cases]]) -> 13.41891892 | BF8: =IFERROR(DATE(Input_Database[[#This Row],[Year]],IF(Input_Database[[#This Row],[Month]]="January",1,IF(Input_Database[[#This Row],[Month]]="February",2,IF(Input_Database[[#This Row],[Month]]="March",3,IF(Input_Database[[#This Row],[Month]]="April",4,IF(Input_Database[[#This Row],[Month]]="May",5,IF(Input_Database[[#This Row],[Month]]="June",6,IF(Input_Database[[#This Row],[Month]]="July",7,IF(Input_Database[[#This Row],[Month]]="August",8,IF(Input_Database[[#This Row],[Month]]="September",9,IF(Input_Database[[#This Row],[Month]]="October",10,IF(Input_Database[[#This Row],[Month]]="November",11,IF(Input_Database[[#This Row],[Month]]="December",12,"Error")))))))))))),1),"- ") -> 2024-05-01
A9: ZAMBIA | C9: NEW | D9: THIRD PHARMACY | E9: JULY | F9: 2025 | G9: 111 | H9: 111 | I9: 73 | J9: 2034 | K9: 2 | L9: 1.5 | M9: 1.333333333 | N9: 2 | O9: 20 | P9: 111 | Q9: 111 | R9: 111 | T9: 111 | U9: 111 | V9: 1111 | W9: 111 | X9: 111 | Y9: 111 | Z9: 111 | AA9: 111 | AB9: 111 | AC9: 111 | AD9: 111 | AE9: 111 | AF9: 111 | AG9: 111 | AH9: 111 | AI9: 111 | AJ9: 111 | AK9: 111 | AL9: ISRAEL | AM9: 2024-03-01T17:34:09 | AN9: =SUM(Input_Database[[#This Row],[ALU 6x1 (Artemether/Lumefantrine 20/120 mg Tablet, 6x1 tablets per Blister Pack)]:[ALU 6x4 (Artemether/Lumefantrine 20/120 mg Tablet, 6x4 tablets per Blister Pack)]]) -> 6.833333333 | AO9: =SUM(Input_Database[[#This Row],[Artesunate (w/ 1 Amp NaHCO3 5% + 1 Amp NaCl 0.9%) 60 mg Vial, 1 Set]:[Artesunate suppository 100 mg (Rectal Artesunate)]]) -> 333 | AP9: =SUM(Input_Database[[#This Row],[ASAQ 100/270 mg x 3 (Artesunate/Amodiaquine 100/270 mg Tablet, 3 Tablets per Blister Pack)]:[ASAQ 50/135 mg x3 (Artesunate/Amodiaquine 50/135 mg Tablet, 3 Tablets per Blister Pack)]]) -> 1444 | AQ9: =SUM(Input_Database[[#This Row],[Chloroquine 150mg base Tablet (= Chloroquine Phosphate 250mg, or Chloroquine sulfate 200mg)]:[Chloroquine 50 mg base/5 mL Syrup, 60 mL]]) -> 222 | AR9: =SUM(Input_Database[[#This Row],[Primaquine 7.5 mg Tablet]:[Primaquine 15 mg Tablet]]) -> 222 | AS9: =SUM(Input_Database[[#This Row],[Quinine Sulfate 300 mg Tablet]:[Quinine Resorcine 400mg/4ml injectable]]) -> 333 | AT9: =SUM(Input_Database[[#This Row],[Long Lasting Insecticide Treated Nets (LLINs)]:[Long Lasting Insecticide Treated Hammock Net (LLIHN)]]) -> 222 | AU9: =SUM(Input_Database[[#This Row],[SP (Sulfadoxine/pyrimethamine 500mg/25mg, 3 tablets)]:[Dihydroartemisinin-Piperaquine (DHA-PPQ)]]) -> 444 | AV9: =Input_Database[[#This Row],[Total Confirmed Malaria Cases]] -> 111 | AW9: =SUM(Input_Database[[#This Row],[ALU 6x1 (Artemether/Lumefantrine 20/120 mg Tablet, 6x1 tablets per Blister Pack)]:[ALU 6x4 (Artemether/Lumefantrine 20/120 mg Tablet, 6x4 tablets per Blister Pack)]])+SUM(Input_Database[[#This Row],[ASAQ 100/270 mg x 3 (Artesunate/Amodiaquine 100/270 mg Tablet, 3 Tablets per Blister Pack)]:[ASAQ 50/135 mg x3 (Artesunate/Amodiaquine 50/135 mg Tablet, 3 Tablets per Blister Pack)]])+SUM(Input_Database[[#This Row],[Primaquine 7.5 mg Tablet]:[Primaquine 15 mg Tablet]])+SUM(Input_Database[[#This Row],[Dihydroartemisinin-Piperaquine (DHA-PPQ)]:[Pyronaridine-Artesunate]]) -> 1894.833333 | AX9: =IF(Input_Database[[#This Row],[Total Malaria Cases]]=0,"- ",Input_Database[[#This Row],[Total Treatments Issued]]/Input_Database[[#This Row],[Total Malaria Cases]]) -> 17.07057057 | AY9: =IF(Input_Database[[#This Row],[Total Severe Malaria Cases]]=0,"- ",Input_Database[[#This Row],[Total Artesunate]]/Input_Database[[#This Row],[Total Severe Malaria Cases]]) -> 3 | AZ9: =IF(Input_Database[[#This Row],[Total Suspected Malaria Cases Tested with mRDTs]]=0,"- ",Input_Database[[#This Row],[Total Malaria Cases]]/Input_Database[[#This Row],[Total Suspected Malaria Cases Tested with mRDTs]]) -> 1.520547945 | BA9: =IF(Input_Database[[#This Row],[Total Malaria Cases]]=0,"- ",Input_Database[[#This Row],[Total ALU]]/Input_Database[[#This Row],[Total Malaria Cases]]) -> 0.06156156156 | BB9: =IF(Input_Database[[#This Row],[Total Monthly LLIN Clients]]=0,"- ",Input_Database[[#This Row],[Total LLINs]]/Input_Database[[#This Row],[Total Monthly LLIN Clients]]) -> 0.1091445428 | BC9: =Input_Database[[#This Row],[Total Treatments Issued]]-Input_Database[[#This Row],[Total Malaria Cases]] -> 1783.833333 | BD9: =_xlfn.IFNA(INDEX(TreatmentAcceptableRatio[],MATCH(Input_Database[[#This Row],[Country]],TreatmentAcceptableRatio[Commodity],0),2),"- ") -> - | BE9: =IF(Input_Database[[#This Row],[Total Malaria Cases]]=0,"- ",Input_Database[[#This Row],[Total Treatments Issued]]/Input_Database[[#This Row],[Total Malaria Cases]]) -> 17.07057057 | BF9: =IFERROR(DATE(Input_Database[[#This Row],[Year]],IF(Input_Database[[#This Row],[Month]]="January",1,IF(Input_Database[[#This Row],[Month]]="February",2,IF(Input_Database[[#This Row],[Month]]="March",3,IF(Input_Database[[#This Row],[Month]]="April",4,IF(Input_Database[[#This Row],[Month]]="May",5,IF(Input_Database[[#This Row],[Month]]="June",6,IF(Input_Database[[#This Row],[Month]]="July",7,IF(Input_Database[[#This Row],[Month]]="August",8,IF(Input_Database[[#This Row],[Month]]="September",9,IF(Input_Database[[#This Row],[Month]]="October",10,IF(Input_Database[[#This Row],[Month]]="November",11,IF(Input_Database[[#This Row],[Month]]="December",12,"Error")))))))))))),1),"- ") -> 2025-07-01
A10: ZAMBIA | C10: NEW | D10: THIRD PHARMACY | E10: FEBRUARY | F10: 2021 | G10: 66 | H10: 66 | I10: 82 | J10: 2316 | K10: 2 | L10: 2 | M10: 2.5 | N10: 0.75 | O10: 33 | P10: 666 | Q10: 66 | R10: 66 | T10: 66 | U10: 66 | V10: 66 | W10: 66 | X10: 66 | Y10: 66 | Z10: 66 | AA10: 66 | AB10: 66 | AC10: 66 | AD10: 66 | AE10: 66 | AF10: 66 | AG10: 66 | AH10: 66 | AI10: 66 | AJ10: 66 | AK10: 66 | AL10: ISRAEL | AM10: 2024-03-02T17:34:09 | AN10: =SUM(Input_Database[[#This Row],[ALU 6x1 (Artemether/Lumefantrine 20/120 mg Tablet, 6x1 tablets per Blister Pack)]:[ALU 6x4 (Artemether/Lumefantrine 20/120 mg Tablet, 6x4 tablets per Blister Pack)]]) -> 7.25 | AO10: =SUM(Input_Database[[#This Row],[Artesunate (w/ 1 Amp NaHCO3 5% + 1 Amp NaCl 0.9%) 60 mg Vial, 1 Set]:[Artesunate suppository 100 mg (Rectal Artesunate)]]) -> 798 | AP10: =SUM(Input_Database[[#This Row],[ASAQ 100/270 mg x 3 (Artesunate/Amodiaquine 100/270 mg Tablet, 3 Tablets per Blister Pack)]:[ASAQ 50/135 mg x3 (Artesunate/Amodiaquine 50/135 mg Tablet, 3 Tablets per Blister Pack)]]) -> 264 | AQ10: =SUM(Input_Database[[#This Row],[Chloroquine 150mg base Tablet (= Chloroquine Phosphate 250mg, or Chloroquine sulfate 200mg)]:[Chloroquine 50 mg base/5 mL Syrup, 60 mL]]) -> 132 | AR10: =SUM(Input_Database[[#This Row],[Primaquine 7.5 mg Tablet]:[Primaquine 15 mg Tablet]]) -> 132 | AS10: =SUM(Input_Database[[#This Row],[Quinine Sulfate 300 mg Tablet]:[Quinine Resorcine 400mg/4ml injectable]]) -> 198 | AT10: =SUM(Input_Database[[#This Row],[Long Lasting Insecticide Treated Nets (LLINs)]:[Long Lasting Insecticide Treated Hammock Net (LLIHN)]]) -> 132 | AU10: =SUM(Input_Database[[#This Row],[SP (Sulfadoxine/pyrimethamine 500mg/25mg, 3 tablets)]:[Dihydroartemisinin-Piperaquine (DHA-PPQ)]]) -> 264 | AV10: =Input_Database[[#This Row],[Total Confirmed Malaria Cases]] -> 66 | AW10: =SUM(Input_Database[[#This Row],[ALU 6x1 (Artemether/Lumefantrine 20/120 mg Tablet, 6x1 tablets per Blister Pack)]:[ALU 6x4 (Artemether/Lumefantrine 20/120 mg Tablet, 6x4 tablets per Blister Pack)]])+SUM(Input_Database[[#This Row],[ASAQ 100/270 mg x 3 (Artesunate/Amodiaquine 100/270 mg Tablet, 3 Tablets per Blister Pack)]:[ASAQ 50/135 mg x3 (Artesunate/Amodiaquine 50/135 mg Tablet, 3 Tablets per Blister Pack)]])+SUM(Input_Database[[#This Row],[Primaquine 7.5 mg Tablet]:[Primaquine 15 mg Tablet]])+SUM(Input_Database[[#This Row],[Dihydroartemisinin-Piperaquine (DHA-PPQ)]:[Pyronaridine-Artesunate]]) -> 535.25 | AX10: =IF(Input_Database[[#This Row],[Total Malaria Cases]]=0,"- ",Input_Database[[#This Row],[Total Treatments Issued]]/Input_Database[[#This Row],[Total Malaria Cases]]) -> 8.109848485 | AY10: =IF(Input_Database[[#This Row],[Total Severe Malaria Cases]]=0,"- ",Input_Database[[#This Row],[Total Artesunate]]/Input_Database[[#This Row],[Total Severe Malaria Cases]]) -> 12.09090909 | AZ10: =IF(Input_Database[[#This Row],[Total Suspected Malaria Cases Tested with mRDTs]]=0,"- ",Input_Database[[#This Row],[Total Malaria Cases]]/Input_Database[[#This Row],[Total Suspected Malaria Cases Tested with mRDTs]]) -> 0.8048780488 | BA10: =IF(Input_Database[[#This Row],[Total Malaria Cases]]=0,"- ",Input_Database[[#This Row],[Total ALU]]/Input_Database[[#This Row],[Total Malaria Cases]]) -> 0.1098484848 | BB10: =IF(Input_Database[[#This Row],[Total Monthly LLIN Clients]]=0,"- ",Input_Database[[#This Row],[Total LLINs]]/Input_Database[[#This Row],[Total Monthly LLIN Clients]]) -> 0.05699481865 | BC10: =Input_Database[[#This Row],[Total Treatments Issued]]-Input_Database[[#This Row],[Total Malaria Cases]] -> 469.25 | BD10: =_xlfn.IFNA(INDEX(TreatmentAcceptableRatio[],MATCH(Input_Database[[#This Row],[Country]],TreatmentAcceptableRatio[Commodity],0),2),"- ") -> - | BE10: =IF(Input_Database[[#This Row],[Total Malaria Cases]]=0,"- ",Input_Database[[#This Row],[Total Treatments Issued]]/Input_Database[[#This Row],[Total Malaria Cases]]) -> 8.109848485 | BF10: =IFERROR(DATE(Input_Database[[#This Row],[Year]],IF(Input_Database[[#This Row],[Month]]="January",1,IF(Input_Database[[#This Row],[Month]]="February",2,IF(Input_Database[[#This Row],[Month]]="March",3,IF(Input_Database[[#This Row],[Month]]="April",4,IF(Input_Database[[#This Row],[Month]]="May",5,IF(Input_Database[[#This Row],[Month]]="June",6,IF(Input_Database[[#This Row],[Month]]="July",7,IF(Input_Database[[#This Row],[Month]]="August",8,IF(Input_Database[[#This Row],[Month]]="September",9,IF(Input_Database[[#This Row],[Month]]="October",10,IF(Input_Database[[#This Row],[Month]]="November",11,IF(Input_Database[[#This Row],[Month]]="December",12,"Error")))))))))))),1),"- ") -> 2021-02-01
A11: MOZAMBIQUE | C11: NEW | D11: THIRD PHARMACY | E11: FEBRUARY | F11: 2018 | G11: 33 | H11: 33 | I11: 91 | J11: 2598 | K11: 33 | L11: 33 | M11: 33 | N11: 33 | O11: 33 | P11: 33 | Q11: 33 | R11: 33 | T11: 333 | U11: 33 | V11: 33 | W11: 33 | X11: 33 | Y11: 33 | Z11: 33 | AA11: 33 | AB11: 33 | AC11: 33 | AD11: 33 | AE11: 33 | AF11: 33 | AG11: 33 | AH11: 33 | AI11: 33 | AJ11: 33 | AK11: 33 | AL11: ISRAEL | AM11: 2024-03-03T17:34:09 | AN11: =SUM(Input_Database[[#This Row],[ALU 6x1 (Artemether/Lumefantrine 20/120 mg Tablet, 6x1 tablets per Blister Pack)]:[ALU 6x4 (Artemether/Lumefantrine 20/120 mg Tablet, 6x4 tablets per Blister Pack)]]) -> 132 | AO11: =SUM(Input_Database[[#This Row],[Artesunate (w/ 1 Amp NaHCO3 5% + 1 Amp NaCl 0.9%) 60 mg Vial, 1 Set]:[Artesunate suppository 100 mg (Rectal Artesunate)]]) -> 99 | AP11: =SUM(Input_Database[[#This Row],[ASAQ 100/270 mg x 3 (Artesunate/Amodiaquine 100/270 mg Tablet, 3 Tablets per Blister Pack)]:[ASAQ 50/135 mg x3 (Artesunate/Amodiaquine 50/135 mg Tablet, 3 Tablets per Blister Pack)]]) -> 432 | AQ11: =SUM(Input_Database[[#This Row],[Chloroquine 150mg base Tablet (= Chloroquine Phosphate 250mg, or Chloroquine sulfate 200mg)]:[Chloroquine 50 mg base/5 mL Syrup, 60 mL]]) -> 66 | AR11: =SUM(Input_Database[[#This Row],[Primaquine 7.5 mg Tablet]:[Primaquine 15 mg Tablet]]) -> 66 | AS11: =SUM(Input_Database[[#This Row],[Quinine Sulfate 300 mg Tablet]:[Quinine Resorcine 400mg/4ml injectable]]) -> 99 | AT11: =SUM(Input_Database[[#This Row],[Long Lasting Insecticide Treated Nets (LLINs)]:[Long Lasting Insecticide Treated Hammock Net (LLIHN)]]) -> 66 | AU11: =SUM(Input_Database[[#This Row],[SP (Sulfadoxine/pyrimethamine 500mg/25mg, 3 tablets)]:[Dihydroartemisinin-Piperaquine (DHA-PPQ)]]) -> 132 | AV11: =Input_Database[[#This Row],[Total Confirmed Malaria Cases]] -> 33 | AW11: =SUM(Input_Database[[#This Row],[ALU 6x1 (Artemether/Lumefantrine 20/120 mg Tablet, 6x1 tablets per Blister Pack)]:[ALU 6x4 (Artemether/Lumefantrine 20/120 mg Tablet, 6x4 tablets per Blister Pack)]])+SUM(Input_Database[[#This Row],[ASAQ 100/270 mg x 3 (Artesunate/Amodiaquine 100/270 mg Tablet, 3 Tablets per Blister Pack)]:[ASAQ 50/135 mg x3 (Artesunate/Amodiaquine 50/135 mg Tablet, 3 Tablets per Blister Pack)]])+SUM(Input_Database[[#This Row],[Primaquine 7.5 mg Tablet]:[Primaquine 15 mg Tablet]])+SUM(Input_Database[[#This Row],[Dihydroartemisinin-Piperaquine (DHA-PPQ)]:[Pyronaridine-Artesunate]]) -> 696 | AX11: =IF(Input_Database[[#This Row],[Total Malaria Cases]]=0,"- ",Input_Database[[#This Row],[Total Treatments Issued]]/Input_Database[[#This Row],[Total Malaria Cases]]) -> 21.09090909 | AY11: =IF(Input_Database[[#This Row],[Total Severe Malaria Cases]]=0,"- ",Input_Database[[#This Row],[Total Artesunate]]/Input_Database[[#This Row],[Total Severe Malaria Cases]]) -> 3 | AZ11: =IF(Input_Database[[#This Row],[Total Suspected Malaria Cases Tested with mRDTs]]=0,"- ",Input_Database[[#This Row],[Total Malaria Cases]]/Input_Database[[#This Row],[Total Suspected Malaria Cases Tested with mRDTs]]) -> 0.3626373626 | BA11: =IF(Input_Database[[#This Row],[Total Malaria Cases]]=0,"- ",Input_Database[[#This Row],[Total ALU]]/Input_Database[[#This Row],[Total Malaria Cases]]) -> 4 | BB11: =IF(Input_Database[[#This Row],[Total Monthly LLIN Clients]]=0,"- ",Input_Database[[#This Row],[Total LLINs]]/Input_Database[[#This Row],[Total Monthly LLIN Clients]]) -> 0.02540415704 | BC11: =Input_Database[[#This Row],[Total Treatments Issued]]-Input_Database[[#This Row],[Total Malaria Cases]] -> 663 | BD11: =_xlfn.IFNA(INDEX(TreatmentAcceptableRatio[],MATCH(Input_Database[[#This Row],[Country]],TreatmentAcceptableRatio[Commodity],0),2),"- ") -> - | BE11: =IF(Input_Database[[#This Row],[Total Malaria Cases]]=0,"- ",Input_Database[[#This Row],[Total Treatments Issued]]/Input_Database[[#This Row],[Total Malaria Cases]]) -> 21.09090909 | BF11: =IFERROR(DATE(Input_Database[[#This Row],[Year]],IF(Input_Database[[#This Row],[Month]]="January",1,IF(Input_Database[[#This Row],[Month]]="February",2,IF(Input_Database[[#This Row],[Month]]="March",3,IF(Input_Database[[#This Row],[Month]]="April",4,IF(Input_Database[[#This Row],[Month]]="May",5,IF(Input_Database[[#This Row],[Month]]="June",6,IF(Input_Database[[#This Row],[Month]]="July",7,IF(Input_Database[[#This Row],[Month]]="August",8,IF(Input_Database[[#This Row],[Month]]="September",9,IF(Input_Database[[#This Row],[Month]]="October",10,IF(Input_Database[[#This Row],[Month]]="November",11,IF(Input_Database[[#This Row],[Month]]="December",12,"Error")))))))))))),1),"- ") -> 2018-02-01
A12: BENIN | C12: NEW | D12: THIRD PHARMACY | E12: APRIL | F12: 2020 | G12: 11 | H12: 11 | I12: 100 | J12: 2880 | K12: 11 | L12: 11 | M12: 11 | N12: 11 | O12: 11 | P12: 11 | Q12: 11 | R12: 11 | T12: 11 | U12: 11 | V12: 11 | W12: 11 | X12: 11 | Y12: 11 | Z12: 11 | AA12: 11 | AB12: 11 | AC12: 11 | AD12: 11 | AE12: 3.666666667 | AF12: 11 | AG12: 11 | AH12: 11 | AI12: 11 | AJ12: 11 | AK12: 11 | AL12: ISRAEL | AM12: 2024-03-04T17:34:09 | AN12: =SUM(Input_Database[[#This Row],[ALU 6x1 (Artemether/Lumefantrine 20/120 mg Tablet, 6x1 tablets per Blister Pack)]:[ALU 6x4 (Artemether/Lumefantrine 20/120 mg Tablet, 6x4 tablets per Blister Pack)]]) -> 44 | AO12: =SUM(Input_Database[[#This Row],[Artesunate (w/ 1 Amp NaHCO3 5% + 1 Amp NaCl 0.9%) 60 mg Vial, 1 Set]:[Artesunate suppository 100 mg (Rectal Artesunate)]]) -> 33 | AP12: =SUM(Input_Database[[#This Row],[ASAQ 100/270 mg x 3 (Artesunate/Amodiaquine 100/270 mg Tablet, 3 Tablets per Blister Pack)]:[ASAQ 50/135 mg x3 (Artesunate/Amodiaquine 50/135 mg Tablet, 3 Tablets per Blister Pack)]]) -> 44 | AQ12: =SUM(Input_Database[[#This Row],[Chloroquine 150mg base Tablet (= Chloroquine Phosphate 250mg, or Chloroquine sulfate 200mg)]:[Chloroquine 50 mg base/5 mL Syrup, 60 mL]]) -> 22 | AR12: =SUM(Input_Database[[#This Row],[Primaquine 7.5 mg Tablet]:[Primaquine 15 mg Tablet]]) -> 22 | AS12: =SUM(Input_Database[[#This Row],[Quinine Sulfate 300 mg Tablet]:[Quinine Resorcine 400mg/4ml injectable]]) -> 33 | AT12: =SUM(Input_Database[[#This Row],[Long Lasting Insecticide Treated Nets (LLINs)]:[Long Lasting Insecticide Treated Hammock Net (LLIHN)]]) -> 22 | AU12: =SUM(Input_Database[[#This Row],[SP (Sulfadoxine/pyrimethamine 500mg/25mg, 3 tablets)]:[Dihydroartemisinin-Piperaquine (DHA-PPQ)]]) -> 36.66666667 | AV12: =Input_Database[[#This Row],[Total Confirmed Malaria Cases]] -> 11 | AW12: =SUM(Input_Database[[#This Row],[ALU 6x1 (Artemether/Lumefantrine 20/120 mg Tablet, 6x1 tablets per Blister Pack)]:[ALU 6x4 (Artemether/Lumefantrine 20/120 mg Tablet, 6x4 tablets per Blister Pack)]])+SUM(Input_Database[[#This Row],[ASAQ 100/270 mg x 3 (Artesunate/Amodiaquine 100/270 mg Tablet, 3 Tablets per Blister Pack)]:[ASAQ 50/135 mg x3 (Artesunate/Amodiaquine 50/135 mg Tablet, 3 Tablets per Blister Pack)]])+SUM(Input_Database[[#This Row],[Primaquine 7.5 mg Tablet]:[Primaquine 15 mg Tablet]])+SUM(Input_Database[[#This Row],[Dihydroartemisinin-Piperaquine (DHA-PPQ)]:[Pyronaridine-Artesunate]]) -> 132 | AX12: =IF(Input_Database[[#This Row],[Total Malaria Cases]]=0,"- ",Input_Database[[#This Row],[Total Treatments Issued]]/Input_Database[[#This Row],[Total Malaria Cases]]) -> 12 | AY12: =IF(Input_Database[[#This Row],[Total Severe Malaria Cases]]=0,"- ",Input_Database[[#This Row],[Total Artesunate]]/Input_Database[[#This Row],[Total Severe Malaria Cases]]) -> 3 | AZ12: =IF(Input_Database[[#This Row],[Total Suspected Malaria Cases Tested with mRDTs]]=0,"- ",Input_Database[[#This Row],[Total Malaria Cases]]/Input_Database[[#This Row],[Total Suspected Malaria Cases Tested with mRDTs]]) -> 0.11 | BA12: =IF(Input_Database[[#This Row],[Total Malaria Cases]]=0,"- ",Input_Database[[#This Row],[Total ALU]]/Input_Database[[#This Row],[Total Malaria Cases]]) -> 4 | BB12: =IF(Input_Database[[#This Row],[Total Monthly LLIN Clients]]=0,"- ",Input_Database[[#This Row],[Total LLINs]]/Input_Database[[#This Row],[Total Monthly LLIN Clients]]) -> 0.007638888889 | BC12: =Input_Database[[#This Row],[Total Treatments Issued]]-Input_Database[[#This Row],[Total Malaria Cases]] -> 121 | BD12: =_xlfn.IFNA(INDEX(TreatmentAcceptableRatio[],MATCH(Input_Database[[#This Row],[Country]],TreatmentAcceptableRatio[Commodity],0),2),"- ") -> - | BE12: =IF(Input_Database[[#This Row],[Total Malaria Cases]]=0,"- ",Input_Database[[#This Row],[Total Treatments Issued]]/Input_Database[[#This Row],[Total Malaria Cases]]) -> 12 | BF12: =IFERROR(DATE(Input_Database[[#This Row],[Year]],IF(Input_Database[[#This Row],[Month]]="January",1,IF(Input_Database[[#This Row],[Month]]="February",2,IF(Input_Database[[#This Row],[Month]]="March",3,IF(Input_Database[[#This Row],[Month]]="April",4,IF(Input_Database[[#This Row],[Month]]="May",5,IF(Input_Database[[#This Row],[Month]]="June",6,IF(Input_Database[[#This Row],[Month]]="July",7,IF(Input_Database[[#This Row],[Month]]="August",8,IF(Input_Database[[#This Row],[Month]]="September",9,IF(Input_Database[[#This Row],[Month]]="October",10,IF(Input_Database[[#This Row],[Month]]="November",11,IF(Input_Database[[#This Row],[Month]]="December",12,"Error")))))))))))),1),"- ") -> 2020-04-01
A13: NIUE ** | B13: WEST | C13: NEW | D13: THIRD PHARMACY | E13: APRIL | F13: 2024 | G13: 22 | H13: 1 | I13: 88 | J13: 5 | L13: 33 | M13: 4 | AL13: BB | AM13: 2024-03-09T17:34:09 | AN13: =SUM(Input_Database[[#This Row],[ALU 6x1 (Artemether/Lumefantrine 20/120 mg Tablet, 6x1 tablets per Blister Pack)]:[ALU 6x4 (Artemether/Lumefantrine 20/120 mg Tablet, 6x4 tablets per Blister Pack)]]) -> 37 | AO13: =SUM(Input_Database[[#This Row],[Artesunate (w/ 1 Amp NaHCO3 5% + 1 Amp NaCl 0.9%) 60 mg Vial, 1 Set]:[Artesunate suppository 100 mg (Rectal Artesunate)]]) -> 0 | AP13: =SUM(Input_Database[[#This Row],[ASAQ 100/270 mg x 3 (Artesunate/Amodiaquine 100/270 mg Tablet, 3 Tablets per Blister Pack)]:[ASAQ 50/135 mg x3 (Artesunate/Amodiaquine 50/135 mg Tablet, 3 Tablets per Blister Pack)]]) -> 0 | AQ13: =SUM(Input_Database[[#This Row],[Chloroquine 150mg base Tablet (= Chloroquine Phosphate 250mg, or Chloroquine sulfate 200mg)]:[Chloroquine 50 mg base/5 mL Syrup, 60 mL]]) -> 0 | AR13: =SUM(Input_Database[[#This Row],[Primaquine 7.5 mg Tablet]:[Primaquine 15 mg Tablet]]) -> 0 | AS13: =SUM(Input_Database[[#This Row],[Quinine Sulfate 300 mg Tablet]:[Quinine Resorcine 400mg/4ml injectable]]) -> 0 | AT13: =SUM(Input_Database[[#This Row],[Long Lasting Insecticide Treated Nets (LLINs)]:[Long Lasting Insecticide Treated Hammock Net (LLIHN)]]) -> 0 | AU13: =SUM(Input_Database[[#This Row],[SP (Sulfadoxine/pyrimethamine 500mg/25mg, 3 tablets)]:[Dihydroartemisinin-Piperaquine (DHA-PPQ)]]) -> 0 | AV13: =Input_Database[[#This Row],[Total Confirmed Malaria Cases]] -> 22 | AW13: =SUM(Input_Database[[#This Row],[ALU 6x1 (Artemether/Lumefantrine 20/120 mg Tablet, 6x1 tablets per Blister Pack)]:[ALU 6x4 (Artemether/Lumefantrine 20/120 mg Tablet, 6x4 tablets per Blister Pack)]])+SUM(Input_Database[[#This Row],[ASAQ 100/270 mg x 3 (Artesunate/Amodiaquine 100/270 mg Tablet, 3 Tablets per Blister Pack)]:[ASAQ 50/135 mg x3 (Artesunate/Amodiaquine 50/135 mg Tablet, 3 Tablets per Blister Pack)]])+SUM(Input_Database[[#This Row],[Primaquine 7.5 mg Tablet]:[Primaquine 15 mg Tablet]])+SUM(Input_Database[[#This Row],[Dihydroartemisinin-Piperaquine (DHA-PPQ)]:[Pyronaridine-Artesunate]]) -> 37 | AX13: =IF(Input_Database[[#This Row],[Total Malaria Cases]]=0,"- ",Input_Database[[#This Row],[Total Treatments Issued]]/Input_Database[[#This Row],[Total Malaria Cases]]) -> 1.681818182 | AY13: =IF(Input_Database[[#This Row],[Total Severe Malaria Cases]]=0,"- ",Input_Database[[#This Row],[Total Artesunate]]/Input_Database[[#This Row],[Total Severe Malaria Cases]]) -> 0 | AZ13: =IF(Input_Database[[#This Row],[Total Suspected Malaria Cases Tested with mRDTs]]=0,"- ",Input_Database[[#This Row],[Total Malaria Cases]]/Input_Database[[#This Row],[Total Suspected Malaria Cases Tested with mRDTs]]) -> 0.25 | BA13: =IF(Input_Database[[#This Row],[Total Malaria Cases]]=0,"- ",Input_Database[[#This Row],[Total ALU]]/Input_Database[[#This Row],[Total Malaria Cases]]) -> 1.681818182 | BB13: =IF(Input_Database[[#This Row],[Total Monthly LLIN Clients]]=0,"- ",Input_Database[[#This Row],[Total LLINs]]/Input_Database[[#This Row],[Total Monthly LLIN Clients]]) -> 0 | BC13: =Input_Database[[#This Row],[Total Treatments Issued]]-Input_Database[[#This Row],[Total Malaria Cases]] -> 15 | BD13: =_xlfn.IFNA(INDEX(TreatmentAcceptableRatio[],MATCH(Input_Database[[#This Row],[Country]],TreatmentAcceptableRatio[Commodity],0),2),"- ") -> - | BE13: =IF(Input_Database[[#This Row],[Total Malaria Cases]]=0,"- ",Input_Database[[#This Row],[Total Treatments Issued]]/Input_Database[[#This Row],[Total Malaria Cases]]) -> 1.681818182 | BF13: =IFERROR(DATE(Input_Database[[#This Row],[Year]],IF(Input_Database[[#This Row],[Month]]="January",1,IF(Input_Database[[#This Row],[Month]]="February",2,IF(Input_Database[[#This Row],[Month]]="March",3,IF(Input_Database[[#This Row],[Month]]="April",4,IF(Input_Database[[#This Row],[Month]]="May",5,IF(Input_Database[[#This Row],[Month]]="June",6,IF(Input_Database[[#This Row],[Month]]="July",7,IF(Input_Database[[#This Row],[Month]]="August",8,IF(Input_Database[[#This Row],[Month]]="September",9,IF(Input_Database[[#This Row],[Month]]="October",10,IF(Input_Database[[#This Row],[Month]]="November",11,IF(Input_Database[[#This Row],[Month]]="December",12,"Error")))))))))))),1),"- ") -> 2024-04-01
A14: NIUE ** | B14: WEST | C14: NEW | D14: THIRD PHARMACY | E14: APRIL | F14: 2024 | G14: 44 | H14: 32 | I14: 1 | J14: 8 | K14: 3 | AL14: AA | AM14: 2024-03-10T17:34:09 | AN14: =SUM(Input_Database[[#This Row],[ALU 6x1 (Artemether/Lumefantrine 20/120 mg Tablet, 6x1 tablets per Blister Pack)]:[ALU 6x4 (Artemether/Lumefantrine 20/120 mg Tablet, 6x4 tablets per Blister Pack)]]) -> 3 | AO14: =SUM(Input_Database[[#This Row],[Artesunate (w/ 1 Amp NaHCO3 5% + 1 Amp NaCl 0.9%) 60 mg Vial, 1 Set]:[Artesunate suppository 100 mg (Rectal Artesunate)]]) -> 0 | AP14: =SUM(Input_Database[[#This Row],[ASAQ 100/270 mg x 3 (Artesunate/Amodiaquine 100/270 mg Tablet, 3 Tablets per Blister Pack)]:[ASAQ 50/135 mg x3 (Artesunate/Amodiaquine 50/135 mg Tablet, 3 Tablets per Blister Pack)]]) -> 0 | AQ14: =SUM(Input_Database[[#This Row],[Chloroquine 150mg base Tablet (= Chloroquine Phosphate 250mg, or Chloroquine sulfate 200mg)]:[Chloroquine 50 mg base/5 mL Syrup, 60 mL]]) -> 0 | AR14: =SUM(Input_Database[[#This Row],[Primaquine 7.5 mg Tablet]:[Primaquine 15 mg Tablet]]) -> 0 | AS14: =SUM(Input_Database[[#This Row],[Quinine Sulfate 300 mg Tablet]:[Quinine Resorcine 400mg/4ml injectable]]) -> 0 | AT14: =SUM(Input_Database[[#This Row],[Long Lasting Insecticide Treated Nets (LLINs)]:[Long Lasting Insecticide Treated Hammock Net (LLIHN)]]) -> 0 | AU14: =SUM(Input_Database[[#This Row],[SP (Sulfadoxine/pyrimethamine 500mg/25mg, 3 tablets)]:[Dihydroartemisinin-Piperaquine (DHA-PPQ)]]) -> 0 | AV14: =Input_Database[[#This Row],[Total Confirmed Malaria Cases]] -> 44 | AW14: =SUM(Input_Database[[#This Row],[ALU 6x1 (Artemether/Lumefantrine 20/120 mg Tablet, 6x1 tablets per Blister Pack)]:[ALU 6x4 (Artemether/Lumefantrine 20/120 mg Tablet, 6x4 tablets per Blister Pack)]])+SUM(Input_Database[[#This Row],[ASAQ 100/270 mg x 3 (Artesunate/Amodiaquine 100/270 mg Tablet, 3 Tablets per Blister Pack)]:[ASAQ 50/135 mg x3 (Artesunate/Amodiaquine 50/135 mg Tablet, 3 Tablets per Blister Pack)]])+SUM(Input_Database[[#This Row],[Primaquine 7.5 mg Tablet]:[Primaquine 15 mg Tablet]])+SUM(Input_Database[[#This Row],[Dihydroartemisinin-Piperaquine (DHA-PPQ)]:[Pyronaridine-Artesunate]]) -> 3 | AX14: =IF(Input_Database[[#This Row],[Total Malaria Cases]]=0,"- ",Input_Database[[#This Row],[Total Treatments Issued]]/Input_Database[[#This Row],[Total Malaria Cases]]) -> 0.06818181818 | AY14: =IF(Input_Database[[#This Row],[Total Severe Malaria Cases]]=0,"- ",Input_Database[[#This Row],[Total Artesunate]]/Input_Database[[#This Row],[Total Severe Malaria Cases]]) -> 0 | AZ14: =IF(Input_Database[[#This Row],[Total Suspected Malaria Cases Tested with mRDTs]]=0,"- ",Input_Database[[#This Row],[Total Malaria Cases]]/Input_Database[[#This Row],[Total Suspected Malaria Cases Tested with mRDTs]]) -> 44 | BA14: =IF(Input_Database[[#This Row],[Total Malaria Cases]]=0,"- ",Input_Database[[#This Row],[Total ALU]]/Input_Database[[#This Row],[Total Malaria Cases]]) -> 0.06818181818 | BB14: =IF(Input_Database[[#This Row],[Total Monthly LLIN Clients]]=0,"- ",Input_Database[[#This Row],[Total LLINs]]/Input_Database[[#This Row],[Total Monthly LLIN Clients]]) -> 0 | BC14: =Input_Database[[#This Row],[Total Treatments Issued]]-Input_Database[[#This Row],[Total Malaria Cases]] -> -41 | BD14: =_xlfn.IFNA(INDEX(TreatmentAcceptableRatio[],MATCH(Input_Database[[#This Row],[Country]],TreatmentAcceptableRatio[Commodity],0),2),"- ") -> - | BE14: =IF(Input_Database[[#This Row],[Total Malaria Cases]]=0,"- ",Input_Database[[#This Row],[Total Treatments Issued]]/Input_Database[[#This Row],[Total Malaria Cases]]) -> 0.06818181818 | BF14: =IFERROR(DATE(Input_Database[[#This Row],[Year]],IF(Input_Database[[#This Row],[Month]]="January",1,IF(Input_Database[[#This Row],[Month]]="February",2,IF(Input_Database[[#This Row],[Month]]="March",3,IF(Input_Database[[#This Row],[Month]]="April",4,IF(Input_Database[[#This Row],[Month]]="May",5,IF(Input_Database[[#This Row],[Month]]="June",6,IF(Input_Database[[#This Row],[Month]]="July",7,IF(Input_Database[[#This Row],[Month]]="August",8,IF(Input_Database[[#This Row],[Month]]="September",9,IF(Input_Database[[#This Row],[Month]]="October",10,IF(Input_Database[[#This Row],[Month]]="November",11,IF(Input_Database[[#This Row],[Month]]="December",12,"Error")))))))))))),1),"- ") -> 2024-04-01
A15: NIUE ** | B15: WEST | C15: NEW | D15: THIRD PHARMACY | E15: APRIL | F15: 2024 | G15: 1 | H15: 1 | I15: 1 | J15: 1 | K15: 3 | AL15: ISRAEL | AM15: 2024-03-11T17:34:09 | AN15: =SUM(Input_Database[[#This Row],[ALU 6x1 (Artemether/Lumefantrine 20/120 mg Tablet, 6x1 tablets per Blister Pack)]:[ALU 6x4 (Artemether/Lumefantrine 20/120 mg Tablet, 6x4 tablets per Blister Pack)]]) -> 3 | AO15: =SUM(Input_Database[[#This Row],[Artesunate (w/ 1 Amp NaHCO3 5% + 1 Amp NaCl 0.9%) 60 mg Vial, 1 Set]:[Artesunate suppository 100 mg (Rectal Artesunate)]]) -> 0 | AP15: =SUM(Input_Database[[#This Row],[ASAQ 100/270 mg x 3 (Artesunate/Amodiaquine 100/270 mg Tablet, 3 Tablets per Blister Pack)]:[ASAQ 50/135 mg x3 (Artesunate/Amodiaquine 50/135 mg Tablet, 3 Tablets per Blister Pack)]]) -> 0 | AQ15: =SUM(Input_Database[[#This Row],[Chloroquine 150mg base Tablet (= Chloroquine Phosphate 250mg, or Chloroquine sulfate 200mg)]:[Chloroquine 50 mg base/5 mL Syrup, 60 mL]]) -> 0 | AR15: =SUM(Input_Database[[#This Row],[Primaquine 7.5 mg Tablet]:[Primaquine 15 mg Tablet]]) -> 0 | AS15: =SUM(Input_Database[[#This Row],[Quinine Sulfate 300 mg Tablet]:[Quinine Resorcine 400mg/4ml injectable]]) -> 0 | AT15: =SUM(Input_Database[[#This Row],[Long Lasting Insecticide Treated Nets (LLINs)]:[Long Lasting Insecticide Treated Hammock Net (LLIHN)]]) -> 0 | AU15: =SUM(Input_Database[[#This Row],[SP (Sulfadoxine/pyrimethamine 500mg/25mg, 3 tablets)]:[Dihydroartemisinin-Piperaquine (DHA-PPQ)]]) -> 0 | AV15: =Input_Database[[#This Row],[Total Confirmed Malaria Cases]] -> 1 | AW15: =SUM(Input_Database[[#This Row],[ALU 6x1 (Artemether/Lumefantrine 20/120 mg Tablet, 6x1 tablets per Blister Pack)]:[ALU 6x4 (Artemether/Lumefantrine 20/120 mg Tablet, 6x4 tablets per Blister Pack)]])+SUM(Input_Database[[#This Row],[ASAQ 100/270 mg x 3 (Artesunate/Amodiaquine 100/270 mg Tablet, 3 Tablets per Blister Pack)]:[ASAQ 50/135 mg x3 (Artesunate/Amodiaquine 50/135 mg Tablet, 3 Tablets per Blister Pack)]])+SUM(Input_Database[[#This Row],[Primaquine 7.5 mg Tablet]:[Primaquine 15 mg Tablet]])+SUM(Input_Database[[#This Row],[Dihydroartemisinin-Piperaquine (DHA-PPQ)]:[Pyronaridine-Artesunate]]) -> 3 | AX15: =IF(Input_Database[[#This Row],[Total Malaria Cases]]=0,"- ",Input_Database[[#This Row],[Total Treatments Issued]]/Input_Database[[#This Row],[Total Malaria Cases]]) -> 3 | AY15: =IF(Input_Database[[#This Row],[Total Severe Malaria Cases]]=0,"- ",Input_Database[[#This Row],[Total Artesunate]]/Input_Database[[#This Row],[Total Severe Malaria Cases]]) -> 0 | AZ15: =IF(Input_Database[[#This Row],[Total Suspected Malaria Cases Tested with mRDTs]]=0,"- ",Input_Database[[#This Row],[Total Malaria Cases]]/Input_Database[[#This Row],[Total Suspected Malaria Cases Tested with mRDTs]]) -> 1 | BA15: =IF(Input_Database[[#This Row],[Total Malaria Cases]]=0,"- ",Input_Database[[#This Row],[Total ALU]]/Input_Database[[#This Row],[Total Malaria Cases]]) -> 3 | BB15: =IF(Input_Database[[#This Row],[Total Monthly LLIN Clients]]=0,"- ",Input_Database[[#This Row],[Total LLINs]]/Input_Database[[#This Row],[Total Monthly LLIN Clients]]) -> 0 | BC15: =Input_Database[[#This Row],[Total Treatments Issued]]-Input_Database[[#This Row],[Total Malaria Cases]] -> 2 | BD15: =_xlfn.IFNA(INDEX(TreatmentAcceptableRatio[],MATCH(Input_Database[[#This Row],[Country]],TreatmentAcceptableRatio[Commodity],0),2),"- ") -> - | BE15: =IF(Input_Database[[#This Row],[Total Malaria Cases]]=0,"- ",Input_Database[[#This Row],[Total Treatments Issued]]/Input_Database[[#This Row],[Total Malaria Cases]]) -> 3 | BF15: =IFERROR(DATE(Input_Database[[#This Row],[Year]],IF(Input_Database[[#This Row],[Month]]="January",1,IF(Input_Database[[#This Row],[Month]]="February",2,IF(Input_Database[[#This Row],[Month]]="March",3,IF(Input_Database[[#This Row],[Month]]="April",4,IF(Input_Database[[#This Row],[Month]]="May",5,IF(Input_Database[[#This Row],[Month]]="June",6,IF(Input_Database[[#This Row],[Month]]="July",7,IF(Input_Database[[#This Row],[Month]]="August",8,IF(Input_Database[[#This Row],[Month]]="September",9,IF(Input_Database[[#This Row],[Month]]="October",10,IF(Input_Database[[#This Row],[Month]]="November",11,IF(Input_Database[[#This Row],[Month]]="December",12,"Error")))))))))))),1),"- ") -> 2024-04-01
A16: NIUE ** | B16: WEST | C16: NEW | D16: THIRD PHARMACY | E16: MAY | F16: 2019 | G16: 4 | H16: 4 | I16: 4 | J16: 4 | N16: 99 | AL16: ISRAEL | AM16: 2024-03-12T17:34:09 | AN16: =SUM(Input_Database[[#This Row],[ALU 6x1 (Artemether/Lumefantrine 20/120 mg Tablet, 6x1 tablets per Blister Pack)]:[ALU 6x4 (Artemether/Lumefantrine 20/120 mg Tablet, 6x4 tablets per Blister Pack)]]) -> 99 | AO16: =SUM(Input_Database[[#This Row],[Artesunate (w/ 1 Amp NaHCO3 5% + 1 Amp NaCl 0.9%) 60 mg Vial, 1 Set]:[Artesunate suppository 100 mg (Rectal Artesunate)]]) -> 0 | AP16: =SUM(Input_Database[[#This Row],[ASAQ 100/270 mg x 3 (Artesunate/Amodiaquine 100/270 mg Tablet, 3 Tablets per Blister Pack)]:[ASAQ 50/135 mg x3 (Artesunate/Amodiaquine 50/135 mg Tablet, 3 Tablets per Blister Pack)]]) -> 0 | AQ16: =SUM(Input_Database[[#This Row],[Chloroquine 150mg base Tablet (= Chloroquine Phosphate 250mg, or Chloroquine sulfate 200mg)]:[Chloroquine 50 mg base/5 mL Syrup, 60 mL]]) -> 0 | AR16: =SUM(Input_Database[[#This Row],[Primaquine 7.5 mg Tablet]:[Primaquine 15 mg Tablet]]) -> 0 | AS16: =SUM(Input_Database[[#This Row],[Quinine Sulfate 300 mg Tablet]:[Quinine Resorcine 400mg/4ml injectable]]) -> 0 | AT16: =SUM(Input_Database[[#This Row],[Long Lasting Insecticide Treated Nets (LLINs)]:[Long Lasting Insecticide Treated Hammock Net (LLIHN)]]) -> 0 | AU16: =SUM(Input_Database[[#This Row],[SP (Sulfadoxine/pyrimethamine 500mg/25mg, 3 tablets)]:[Dihydroartemisinin-Piperaquine (DHA-PPQ)]]) -> 0 | AV16: =Input_Database[[#This Row],[Total Confirmed Malaria Cases]] -> 4 | AW16: =SUM(Input_Database[[#This Row],[ALU 6x1 (Artemether/Lumefantrine 20/120 mg Tablet, 6x1 tablets per Blister Pack)]:[ALU 6x4 (Artemether/Lumefantrine 20/120 mg Tablet, 6x4 tablets per Blister Pack)]])+SUM(Input_Database[[#This Row],[ASAQ 100/270 mg x 3 (Artesunate/Amodiaquine 100/270 mg Tablet, 3 Tablets per Blister Pack)]:[ASAQ 50/135 mg x3 (Artesunate/Amodiaquine 50/135 mg Tablet, 3 Tablets per Blister Pack)]])+SUM(Input_Database[[#This Row],[Primaquine 7.5 mg Tablet]:[Primaquine 15 mg Tablet]])+SUM(Input_Database[[#This Row],[Dihydroartemisinin-Piperaquine (DHA-PPQ)]:[Pyronaridine-Artesunate]]) -> 99 | AX16: =IF(Input_Database[[#This Row],[Total Malaria Cases]]=0,"- ",Input_Database[[#This Row],[Total Treatments Issued]]/Input_Database[[#This Row],[Total Malaria Cases]]) -> 24.75 | AY16: =IF(Input_Database[[#This Row],[Total Severe Malaria Cases]]=0,"- ",Input_Database[[#This Row],[Total Artesunate]]/Input_Database[[#This Row],[Total Severe Malaria Cases]]) -> 0 | AZ16: =IF(Input_Database[[#This Row],[Total Suspected Malaria Cases Tested with mRDTs]]=0,"- ",Input_Database[[#This Row],[Total Malaria Cases]]/Input_Database[[#This Row],[Total Suspected Malaria Cases Tested with mRDTs]]) -> 1 | BA16: =IF(Input_Database[[#This Row],[Total Malaria Cases]]=0,"- ",Input_Database[[#This Row],[Total ALU]]/Input_Database[[#This Row],[Total Malaria Cases]]) -> 24.75 | BB16: =IF(Input_Database[[#This Row],[Total Monthly LLIN Clients]]=0,"- ",Input_Database[[#This Row],[Total LLINs]]/Input_Database[[#This Row],[Total Monthly LLIN Clients]]) -> 0 | BC16: =Input_Database[[#This Row],[Total Treatments Issued]]-Input_Database[[#This Row],[Total Malaria Cases]] -> 95 | BD16: =_xlfn.IFNA(INDEX(TreatmentAcceptableRatio[],MATCH(Input_Database[[#This Row],[Country]],TreatmentAcceptableRatio[Commodity],0),2),"- ") -> - | BE16: =IF(Input_Database[[#This Row],[Total Malaria Cases]]=0,"- ",Input_Database[[#This Row],[Total Treatments Issued]]/Input_Database[[#This Row],[Total Malaria Cases]]) -> 24.75 | BF16: =IFERROR(DATE(Input_Database[[#This Row],[Year]],IF(Input_Database[[#This Row],[Month]]="January",1,IF(Input_Database[[#This Row],[Month]]="February",2,IF(Input_Database[[#This Row],[Month]]="March",3,IF(Input_Database[[#This Row],[Month]]="April",4,IF(Input_Database[[#This Row],[Month]]="May",5,IF(Input_Database[[#This Row],[Month]]="June",6,IF(Input_Database[[#This Row],[Month]]="July",7,IF(Input_Database[[#This Row],[Month]]="August",8,IF(Input_Database[[#This Row],[Month]]="September",9,IF(Input_Database[[#This Row],[Month]]="October",10,IF(Input_Database[[#This Row],[Month]]="November",11,IF(Input_Database[[#This Row],[Month]]="December",12,"Error")))))))))))),1),"- ") -> 2019-05-01
A17: NIUE ** | B17: WEST | C17: NEW | D17: THIRD PHARMACY | E17: APRIL | F17: 2024 | G17: 3 | H17: 3 | I17: 3 | J17: 3 | K17: 44 | AL17: ISRAEL | AM17: 2024-03-13T17:34:09 | AN17: =SUM(Input_Database[[#This Row],[ALU 6x1 (Artemether/Lumefantrine 20/120 mg Tablet, 6x1 tablets per Blister Pack)]:[ALU 6x4 (Artemether/Lumefantrine 20/120 mg Tablet, 6x4 tablets per Blister Pack)]]) -> 44 | AO17: =SUM(Input_Database[[#This Row],[Artesunate (w/ 1 Amp NaHCO3 5% + 1 Amp NaCl 0.9%) 60 mg Vial, 1 Set]:[Artesunate suppository 100 mg (Rectal Artesunate)]]) -> 0 | AP17: =SUM(Input_Database[[#This Row],[ASAQ 100/270 mg x 3 (Artesunate/Amodiaquine 100/270 mg Tablet, 3 Tablets per Blister Pack)]:[ASAQ 50/135 mg x3 (Artesunate/Amodiaquine 50/135 mg Tablet, 3 Tablets per Blister Pack)]]) -> 0 | AQ17: =SUM(Input_Database[[#This Row],[Chloroquine 150mg base Tablet (= Chloroquine Phosphate 250mg, or Chloroquine sulfate 200mg)]:[Chloroquine 50 mg base/5 mL Syrup, 60 mL]]) -> 0 | AR17: =SUM(Input_Database[[#This Row],[Primaquine 7.5 mg Tablet]:[Primaquine 15 mg Tablet]]) -> 0 | AS17: =SUM(Input_Database[[#This Row],[Quinine Sulfate 300 mg Tablet]:[Quinine Resorcine 400mg/4ml injectable]]) -> 0 | AT17: =SUM(Input_Database[[#This Row],[Long Lasting Insecticide Treated Nets (LLINs)]:[Long Lasting Insecticide Treated Hammock Net (LLIHN)]]) -> 0 | AU17: =SUM(Input_Database[[#This Row],[SP (Sulfadoxine/pyrimethamine 500mg/25mg, 3 tablets)]:[Dihydroartemisinin-Piperaquine (DHA-PPQ)]]) -> 0 | AV17: =Input_Database[[#This Row],[Total Confirmed Malaria Cases]] -> 3 | AW17: =SUM(Input_Database[[#This Row],[ALU 6x1 (Artemether/Lumefantrine 20/120 mg Tablet, 6x1 tablets per Blister Pack)]:[ALU 6x4 (Artemether/Lumefantrine 20/120 mg Tablet, 6x4 tablets per Blister Pack)]])+SUM(Input_Database[[#This Row],[ASAQ 100/270 mg x 3 (Artesunate/Amodiaquine 100/270 mg Tablet, 3 Tablets per Blister Pack)]:[ASAQ 50/135 mg x3 (Artesunate/Amodiaquine 50/135 mg Tablet, 3 Tablets per Blister Pack)]])+SUM(Input_Database[[#This Row],[Primaquine 7.5 mg Tablet]:[Primaquine 15 mg Tablet]])+SUM(Input_Database[[#This Row],[Dihydroartemisinin-Piperaquine (DHA-PPQ)]:[Pyronaridine-Artesunate]]) -> 44 | AX17: =IF(Input_Database[[#This Row],[Total Malaria Cases]]=0,"- ",Input_Database[[#This Row],[Total Treatments Issued]]/Input_Database[[#This Row],[Total Malaria Cases]]) -> 14.66666667 | AY17: =IF(Input_Database[[#This Row],[Total Severe Malaria Cases]]=0,"- ",Input_Database[[#This Row],[Total Artesunate]]/Input_Database[[#This Row],[Total Severe Malaria Cases]]) -> 0 | AZ17: =IF(Input_Database[[#This Row],[Total Suspected Malaria Cases Tested with mRDTs]]=0,"- ",Input_Database[[#This Row],[Total Malaria Cases]]/Input_Database[[#This Row],[Total Suspected Malaria Cases Tested with mRDTs]]) -> 1 | BA17: =IF(Input_Database[[#This Row],[Total Malaria Cases]]=0,"- ",Input_Database[[#This Row],[Total ALU]]/Input_Database[[#This Row],[Total Malaria Cases]]) -> 14.66666667 | BB17: =IF(Input_Database[[#This Row],[Total Monthly LLIN Clients]]=0,"- ",Input_Database[[#This Row],[Total LLINs]]/Input_Database[[#This Row],[Total Monthly LLIN Clients]]) -> 0 | BC17: =Input_Database[[#This Row],[Total Treatments Issued]]-Input_Database[[#This Row],[Total Malaria Cases]] -> 41 | BD17: =_xlfn.IFNA(INDEX(TreatmentAcceptableRatio[],MATCH(Input_Database[[#This Row],[Country]],TreatmentAcceptableRatio[Commodity],0),2),"- ") -> - | BE17: =IF(Input_Database[[#This Row],[Total Malaria Cases]]=0,"- ",Input_Database[[#This Row],[Total Treatments Issued]]/Input_Database[[#This Row],[Total Malaria Cases]]) -> 14.66666667 | BF17: =IFERROR(DATE(Input_Database[[#This Row],[Year]],IF(Input_Database[[#This Row],[Month]]="January",1,IF(Input_Database[[#This Row],[Month]]="February",2,IF(Input_Database[[#This Row],[Month]]="March",3,IF(Input_Database[[#This Row],[Month]]="April",4,IF(Input_Database[[#This Row],[Month]]="May",5,IF(Input_Database[[#This Row],[Month]]="June",6,IF(Input_Database[[#This Row],[Month]]="July",7,IF(Input_Database[[#This Row],[Month]]="August",8,IF(Input_Database[[#This Row],[Month]]="September",9,IF(Input_Database[[#This Row],[Month]]="October",10,IF(Input_Database[[#This Row],[Month]]="November",11,IF(Input_Database[[#This Row],[Month]]="December",12,"Error")))))))))))),1),"- ") -> 2024-04-01
A18: NIUE ** | B18: WEST | C18: NEW | D18: THIRD PHARMACY | E18: APRIL | F18: 2024 | G18: 9 | H18: 9 | I18: 9 | J18: 9 | K18: 43 | L18: 43 | AL18: ISRAEL | AM18: 2024-03-14T17:34:09 | AN18: =SUM(Input_Database[[#This Row],[ALU 6x1 (Artemether/Lumefantrine 20/120 mg Tablet, 6x1 tablets per Blister Pack)]:[ALU 6x4 (Artemether/Lumefantrine 20/120 mg Tablet, 6x4 tablets per Blister Pack)]]) -> 86 | AO18: =SUM(Input_Database[[#This Row],[Artesunate (w/ 1 Amp NaHCO3 5% + 1 Amp NaCl 0.9%) 60 mg Vial, 1 Set]:[Artesunate suppository 100 mg (Rectal Artesunate)]]) -> 0 | AP18: =SUM(Input_Database[[#This Row],[ASAQ 100/270 mg x 3 (Artesunate/Amodiaquine 100/270 mg Tablet, 3 Tablets per Blister Pack)]:[ASAQ 50/135 mg x3 (Artesunate/Amodiaquine 50/135 mg Tablet, 3 Tablets per Blister Pack)]]) -> 0 | AQ18: =SUM(Input_Database[[#This Row],[Chloroquine 150mg base Tablet (= Chloroquine Phosphate 250mg, or Chloroquine sulfate 200mg)]:[Chloroquine 50 mg base/5 mL Syrup, 60 mL]]) -> 0 | AR18: =SUM(Input_Database[[#This Row],[Primaquine 7.5 mg Tablet]:[Primaquine 15 mg Tablet]]) -> 0 | AS18: =SUM(Input_Database[[#This Row],[Quinine Sulfate 300 mg Tablet]:[Quinine Resorcine 400mg/4ml injectable]]) -> 0 | AT18: =SUM(Input_Database[[#This Row],[Long Lasting Insecticide Treated Nets (LLINs)]:[Long Lasting Insecticide Treated Hammock Net (LLIHN)]]) -> 0 | AU18: =SUM(Input_Database[[#This Row],[SP (Sulfadoxine/pyrimethamine 500mg/25mg, 3 tablets)]:[Dihydroartemisinin-Piperaquine (DHA-PPQ)]]) -> 0 | AV18: =Input_Database[[#This Row],[Total Confirmed Malaria Cases]] -> 9 | AW18: =SUM(Input_Database[[#This Row],[ALU 6x1 (Artemether/Lumefantrine 20/120 mg Tablet, 6x1 tablets per Blister Pack)]:[ALU 6x4 (Artemether/Lumefantrine 20/120 mg Tablet, 6x4 tablets per Blister Pack)]])+SUM(Input_Database[[#This Row],[ASAQ 100/270 mg x 3 (Artesunate/Amodiaquine 100/270 mg Tablet, 3 Tablets per Blister Pack)]:[ASAQ 50/135 mg x3 (Artesunate/Amodiaquine 50/135 mg Tablet, 3 Tablets per Blister Pack)]])+SUM(Input_Database[[#This Row],[Primaquine 7.5 mg Tablet]:[Primaquine 15 mg Tablet]])+SUM(Input_Database[[#This Row],[Dihydroartemisinin-Piperaquine (DHA-PPQ)]:[Pyronaridine-Artesunate]]) -> 86 | AX18: =IF(Input_Database[[#This Row],[Total Malaria Cases]]=0,"- ",Input_Database[[#This Row],[Total Treatments Issued]]/Input_Database[[#This Row],[Total Malaria Cases]]) -> 9.555555556 | AY18: =IF(Input_Database[[#This Row],[Total Severe Malaria Cases]]=0,"- ",Input_Database[[#This Row],[Total Artesunate]]/Input_Database[[#This Row],[Total Severe Malaria Cases]]) -> 0 | AZ18: =IF(Input_Database[[#This Row],[Total Suspected Malaria Cases Tested with mRDTs]]=0,"- ",Input_Database[[#This Row],[Total Malaria Cases]]/Input_Database[[#This Row],[Total Suspected Malaria Cases Tested with mRDTs]]) -> 1 | BA18: =IF(Input_Database[[#This Row],[Total Malaria Cases]]=0,"- ",Input_Database[[#This Row],[Total ALU]]/Input_Database[[#This Row],[Total Malaria Cases]]) -> 9.555555556 | BB18: =IF(Input_Database[[#This Row],[Total Monthly LLIN Clients]]=0,"- ",Input_Database[[#This Row],[Total LLINs]]/Input_Database[[#This Row],[Total Monthly LLIN Clients]]) -> 0 | BC18: =Input_Database[[#This Row],[Total Treatments Issued]]-Input_Database[[#This Row],[Total Malaria Cases]] -> 77 | BD18: =_xlfn.IFNA(INDEX(TreatmentAcceptableRatio[],MATCH(Input_Database[[#This Row],[Country]],TreatmentAcceptableRatio[Commodity],0),2),"- ") -> - | BE18: =IF(Input_Database[[#This Row],[Total Malaria Cases]]=0,"- ",Input_Database[[#This Row],[Total Treatments Issued]]/Input_Database[[#This Row],[Total Malaria Cases]]) -> 9.555555556 | BF18: =IFERROR(DATE(Input_Database[[#This Row],[Year]],IF(Input_Database[[#This Row],[Month]]="January",1,IF(Input_Database[[#This Row],[Month]]="February",2,IF(Input_Database[[#This Row],[Month]]="March",3,IF(Input_Database[[#This Row],[Month]]="April",4,IF(Input_Database[[#This Row],[Month]]="May",5,IF(Input_Database[[#This Row],[Month]]="June",6,IF(Input_Database[[#This Row],[Month]]="July",7,IF(Input_Database[[#This Row],[Month]]="August",8,IF(Input_Database[[#This Row],[Month]]="September",9,IF(Input_Database[[#This Row],[Month]]="October",10,IF(Input_Database[[#This Row],[Month]]="November",11,IF(Input_Database[[#This Row],[Month]]="December",12,"Error")))))))))))),1),"- ") -> 2024-04-01
A19: NIUE ** | B19: WEST | C19: NEW | D19: THIRD PHARMACY | E19: APRIL | F19: 2024 | G19: 1 | H19: 1 | I19: 1 | J19: 1 | K19: 2 | AL19: ISRAEL | AM19: 2024-03-15T17:34:09 | AN19: =SUM(Input_Database[[#This Row],[ALU 6x1 (Artemether/Lumefantrine 20/120 mg Tablet, 6x1 tablets per Blister Pack)]:[ALU 6x4 (Artemether/Lumefantrine 20/120 mg Tablet, 6x4 tablets per Blister Pack)]]) -> 2 | AO19: =SUM(Input_Database[[#This Row],[Artesunate (w/ 1 Amp NaHCO3 5% + 1 Amp NaCl 0.9%) 60 mg Vial, 1 Set]:[Artesunate suppository 100 mg (Rectal Artesunate)]]) -> 0 | AP19: =SUM(Input_Database[[#This Row],[ASAQ 100/270 mg x 3 (Artesunate/Amodiaquine 100/270 mg Tablet, 3 Tablets per Blister Pack)]:[ASAQ 50/135 mg x3 (Artesunate/Amodiaquine 50/135 mg Tablet, 3 Tablets per Blister Pack)]]) -> 0 | AQ19: =SUM(Input_Database[[#This Row],[Chloroquine 150mg base Tablet (= Chloroquine Phosphate 250mg, or Chloroquine sulfate 200mg)]:[Chloroquine 50 mg base/5 mL Syrup, 60 mL]]) -> 0 | AR19: =SUM(Input_Database[[#This Row],[Primaquine 7.5 mg Tablet]:[Primaquine 15 mg Tablet]]) -> 0 | AS19: =SUM(Input_Database[[#This Row],[Quinine Sulfate 300 mg Tablet]:[Quinine Resorcine 400mg/4ml injectable]]) -> 0 | AT19: =SUM(Input_Database[[#This Row],[Long Lasting Insecticide Treated Nets (LLINs)]:[Long Lasting Insecticide Treated Hammock Net (LLIHN)]]) -> 0 | AU19: =SUM(Input_Database[[#This Row],[SP (Sulfadoxine/pyrimethamine 500mg/25mg, 3 tablets)]:[Dihydroartemisinin-Piperaquine (DHA-PPQ)]]) -> 0 | AV19: =Input_Database[[#This Row],[Total Confirmed Malaria Cases]] -> 1 | AW19: =SUM(Input_Database[[#This Row],[ALU 6x1 (Artemether/Lumefantrine 20/120 mg Tablet, 6x1 tablets per Blister Pack)]:[ALU 6x4 (Artemether/Lumefantrine 20/120 mg Tablet, 6x4 tablets per Blister Pack)]])+SUM(Input_Database[[#This Row],[ASAQ 100/270 mg x 3 (Artesunate/Amodiaquine 100/270 mg Tablet, 3 Tablets per Blister Pack)]:[ASAQ 50/135 mg x3 (Artesunate/Amodiaquine 50/135 mg Tablet, 3 Tablets per Blister Pack)]])+SUM(Input_Database[[#This Row],[Primaquine 7.5 mg Tablet]:[Primaquine 15 mg Tablet]])+SUM(Input_Database[[#This Row],[Dihydroartemisinin-Piperaquine (DHA-PPQ)]:[Pyronaridine-Artesunate]]) -> 2 | AX19: =IF(Input_Database[[#This Row],[Total Malaria Cases]]=0,"- ",Input_Database[[#This Row],[Total Treatments Issued]]/Input_Database[[#This Row],[Total Malaria Cases]]) -> 2 | AY19: =IF(Input_Database[[#This Row],[Total Severe Malaria Cases]]=0,"- ",Input_Database[[#This Row],[Total Artesunate]]/Input_Database[[#This Row],[Total Severe Malaria Cases]]) -> 0 | AZ19: =IF(Input_Database[[#This Row],[Total Suspected Malaria Cases Tested with mRDTs]]=0,"- ",Input_Database[[#This Row],[Total Malaria Cases]]/Input_Database[[#This Row],[Total Suspected Malaria Cases Tested with mRDTs]]) -> 1 | BA19: =IF(Input_Database[[#This Row],[Total Malaria Cases]]=0,"- ",Input_Database[[#This Row],[Total ALU]]/Input_Database[[#This Row],[Total Malaria Cases]]) -> 2 | BB19: =IF(Input_Database[[#This Row],[Total Monthly LLIN Clients]]=0,"- ",Input_Database[[#This Row],[Total LLINs]]/Input_Database[[#This Row],[Total Monthly LLIN Clients]]) -> 0 | BC19: =Input_Database[[#This Row],[Total Treatments Issued]]-Input_Database[[#This Row],[Total Malaria Cases]] -> 1 | BD19: =_xlfn.IFNA(INDEX(TreatmentAcceptableRatio[],MATCH(Input_Database[[#This Row],[Country]],TreatmentAcceptableRatio[Commodity],0),2),"- ") -> - | BE19: =IF(Input_Database[[#This Row],[Total Malaria Cases]]=0,"- ",Input_Database[[#This Row],[Total Treatments Issued]]/Input_Database[[#This Row],[Total Malaria Cases]]) -> 2 | BF19: =IFERROR(DATE(Input_Database[[#This Row],[Year]],IF(Input_Database[[#This Row],[Month]]="January",1,IF(Input_Database[[#This Row],[Month]]="February",2,IF(Input_Database[[#This Row],[Month]]="March",3,IF(Input_Database[[#This Row],[Month]]="April",4,IF(Input_Database[[#This Row],[Month]]="May",5,IF(Input_Database[[#This Row],[Month]]="June",6,IF(Input_Database[[#This Row],[Month]]="July",7,IF(Input_Database[[#This Row],[Month]]="August",8,IF(Input_Database[[#This Row],[Month]]="September",9,IF(Input_Database[[#This Row],[Month]]="October",10,IF(Input_Database[[#This Row],[Month]]="November",11,IF(Input_Database[[#This Row],[Month]]="December",12,"Error")))))))))))),1),"- ") -> 2024-04-01
A20: NIUE ** | B20: WEST | C20: NEW | D20: THIRD PHARMACY | E20: APRIL | F20: 2024 | G20: 3 | H20: 3 | I20: 3 | J20: 3 | K20: 21 | AL20: ISRAEL | AM20: 2024-03-16T17:34:09 | AN20: =SUM(Input_Database[[#This Row],[ALU 6x1 (Artemether/Lumefantrine 20/120 mg Tablet, 6x1 tablets per Blister Pack)]:[ALU 6x4 (Artemether/Lumefantrine 20/120 mg Tablet, 6x4 tablets per Blister Pack)]]) -> 21 | AO20: =SUM(Input_Database[[#This Row],[Artesunate (w/ 1 Amp NaHCO3 5% + 1 Amp NaCl 0.9%) 60 mg Vial, 1 Set]:[Artesunate suppository 100 mg (Rectal Artesunate)]]) -> 0 | AP20: =SUM(Input_Database[[#This Row],[ASAQ 100/270 mg x 3 (Artesunate/Amodiaquine 100/270 mg Tablet, 3 Tablets per Blister Pack)]:[ASAQ 50/135 mg x3 (Artesunate/Amodiaquine 50/135 mg Tablet, 3 Tablets per Blister Pack)]]) -> 0 | AQ20: =SUM(Input_Database[[#This Row],[Chloroquine 150mg base Tablet (= Chloroquine Phosphate 250mg, or Chloroquine sulfate 200mg)]:[Chloroquine 50 mg base/5 mL Syrup, 60 mL]]) -> 0 | AR20: =SUM(Input_Database[[#This Row],[Primaquine 7.5 mg Tablet]:[Primaquine 15 mg Tablet]]) -> 0 | AS20: =SUM(Input_Database[[#This Row],[Quinine Sulfate 300 mg Tablet]:[Quinine Resorcine 400mg/4ml injectable]]) -> 0 | AT20: =SUM(Input_Database[[#This Row],[Long Lasting Insecticide Treated Nets (LLINs)]:[Long Lasting Insecticide Treated Hammock Net (LLIHN)]]) -> 0 | AU20: =SUM(Input_Database[[#This Row],[SP (Sulfadoxine/pyrimethamine 500mg/25mg, 3 tablets)]:[Dihydroartemisinin-Piperaquine (DHA-PPQ)]]) -> 0 | AV20: =Input_Database[[#This Row],[Total Confirmed Malaria Cases]] -> 3 | AW20: =SUM(Input_Database[[#This Row],[ALU 6x1 (Artemether/Lumefantrine 20/120 mg Tablet, 6x1 tablets per Blister Pack)]:[ALU 6x4 (Artemether/Lumefantrine 20/120 mg Tablet, 6x4 tablets per Blister Pack)]])+SUM(Input_Database[[#This Row],[ASAQ 100/270 mg x 3 (Artesunate/Amodiaquine 100/270 mg Tablet, 3 Tablets per Blister Pack)]:[ASAQ 50/135 mg x3 (Artesunate/Amodiaquine 50/135 mg Tablet, 3 Tablets per Blister Pack)]])+SUM(Input_Database[[#This Row],[Primaquine 7.5 mg Tablet]:[Primaquine 15 mg Tablet]])+SUM(Input_Database[[#This Row],[Dihydroartemisinin-Piperaquine (DHA-PPQ)]:[Pyronaridine-Artesunate]]) -> 21 | AX20: =IF(Input_Database[[#This Row],[Total Malaria Cases]]=0,"- ",Input_Database[[#This Row],[Total Treatments Issued]]/Input_Database[[#This Row],[Total Malaria Cases]]) -> 7 | AY20: =IF(Input_Database[[#This Row],[Total Severe Malaria Cases]]=0,"- ",Input_Database[[#This Row],[Total Artesunate]]/Input_Database[[#This Row],[Total Severe Malaria Cases]]) -> 0 | AZ20: =IF(Input_Database[[#This Row],[Total Suspected Malaria Cases Tested with mRDTs]]=0,"- ",Input_Database[[#This Row],[Total Malaria Cases]]/Input_Database[[#This Row],[Total Suspected Malaria Cases Tested with mRDTs]]) -> 1 | BA20: =IF(Input_Database[[#This Row],[Total Malaria Cases]]=0,"- ",Input_Database[[#This Row],[Total ALU]]/Input_Database[[#This Row],[Total Malaria Cases]]) -> 7 | BB20: =IF(Input_Database[[#This Row],[Total Monthly LLIN Clients]]=0,"- ",Input_Database[[#This Row],[Total LLINs]]/Input_Database[[#This Row],[Total Monthly LLIN Clients]]) -> 0 | BC20: =Input_Database[[#This Row],[Total Treatments Issued]]-Input_Database[[#This Row],[Total Malaria Cases]] -> 18 | BD20: =_xlfn.IFNA(INDEX(TreatmentAcceptableRatio[],MATCH(Input_Database[[#This Row],[Country]],TreatmentAcceptableRatio[Commodity],0),2),"- ") -> - | BE20: =IF(Input_Database[[#This Row],[Total Malaria Cases]]=0,"- ",Input_Database[[#This Row],[Total Treatments Issued]]/Input_Database[[#This Row],[Total Malaria Cases]]) -> 7 | BF20: =IFERROR(DATE(Input_Database[[#This Row],[Year]],IF(Input_Database[[#This Row],[Month]]="January",1,IF(Input_Database[[#This Row],[Month]]="February",2,IF(Input_Database[[#This Row],[Month]]="March",3,IF(Input_Database[[#This Row],[Month]]="April",4,IF(Input_Database[[#This Row],[Month]]="May",5,IF(Input_Database[[#This Row],[Month]]="June",6,IF(Input_Database[[#This Row],[Month]]="July",7,IF(Input_Database[[#This Row],[Month]]="August",8,IF(Input_Database[[#This Row],[Month]]="September",9,IF(Input_Database[[#This Row],[Month]]="October",10,IF(Input_Database[[#This Row],[Month]]="November",11,IF(Input_Database[[#This Row],[Month]]="December",12,"Error")))))))))))),1),"- ") -> 2024-04-01
A21: NIUE ** | B21: WEST | C21: NEW | D21: THIRD PHARMACY | E21: APRIL | F21: 2024 | G21: 10 | H21: 10 | I21: 10 | J21: 10 | K21: 100 | AL21: ISRAEL | AM21: 2024-03-17T17:34:09 | AN21: =SUM(Input_Database[[#This Row],[ALU 6x1 (Artemether/Lumefantrine 20/120 mg Tablet, 6x1 tablets per Blister Pack)]:[ALU 6x4 (Artemether/Lumefantrine 20/120 mg Tablet, 6x4 tablets per Blister Pack)]]) -> 100 | AO21: =SUM(Input_Database[[#This Row],[Artesunate (w/ 1 Amp NaHCO3 5% + 1 Amp NaCl 0.9%) 60 mg Vial, 1 Set]:[Artesunate suppository 100 mg (Rectal Artesunate)]]) -> 0 | AP21: =SUM(Input_Database[[#This Row],[ASAQ 100/270 mg x 3 (Artesunate/Amodiaquine 100/270 mg Tablet, 3 Tablets per Blister Pack)]:[ASAQ 50/135 mg x3 (Artesunate/Amodiaquine 50/135 mg Tablet, 3 Tablets per Blister Pack)]]) -> 0 | AQ21: =SUM(Input_Database[[#This Row],[Chloroquine 150mg base Tablet (= Chloroquine Phosphate 250mg, or Chloroquine sulfate 200mg)]:[Chloroquine 50 mg base/5 mL Syrup, 60 mL]]) -> 0 | AR21: =SUM(Input_Database[[#This Row],[Primaquine 7.5 mg Tablet]:[Primaquine 15 mg Tablet]]) -> 0 | AS21: =SUM(Input_Database[[#This Row],[Quinine Sulfate 300 mg Tablet]:[Quinine Resorcine 400mg/4ml injectable]]) -> 0 | AT21: =SUM(Input_Database[[#This Row],[Long Lasting Insecticide Treated Nets (LLINs)]:[Long Lasting Insecticide Treated Hammock Net (LLIHN)]]) -> 0 | AU21: =SUM(Input_Database[[#This Row],[SP (Sulfadoxine/pyrimethamine 500mg/25mg, 3 tablets)]:[Dihydroartemisinin-Piperaquine (DHA-PPQ)]]) -> 0 | AV21: =Input_Database[[#This Row],[Total Confirmed Malaria Cases]] -> 10 | AW21: =SUM(Input_Database[[#This Row],[ALU 6x1 (Artemether/Lumefantrine 20/120 mg Tablet, 6x1 tablets per Blister Pack)]:[ALU 6x4 (Artemether/Lumefantrine 20/120 mg Tablet, 6x4 tablets per Blister Pack)]])+SUM(Input_Database[[#This Row],[ASAQ 100/270 mg x 3 (Artesunate/Amodiaquine 100/270 mg Tablet, 3 Tablets per Blister Pack)]:[ASAQ 50/135 mg x3 (Artesunate/Amodiaquine 50/135 mg Tablet, 3 Tablets per Blister Pack)]])+SUM(Input_Database[[#This Row],[Primaquine 7.5 mg Tablet]:[Primaquine 15 mg Tablet]])+SUM(Input_Database[[#This Row],[Dihydroartemisinin-Piperaquine (DHA-PPQ)]:[Pyronaridine-Artesunate]]) -> 100 | AX21: =IF(Input_Database[[#This Row],[Total Malaria Cases]]=0,"- ",Input_Database[[#This Row],[Total Treatments Issued]]/Input_Database[[#This Row],[Total Malaria Cases]]) -> 10 | AY21: =IF(Input_Database[[#This Row],[Total Severe Malaria Cases]]=0,"- ",Input_Database[[#This Row],[Total Artesunate]]/Input_Database[[#This Row],[Total Severe Malaria Cases]]) -> 0 | AZ21: =IF(Input_Database[[#This Row],[Total Suspected Malaria Cases Tested with mRDTs]]=0,"- ",Input_Database[[#This Row],[Total Malaria Cases]]/Input_Database[[#This Row],[Total Suspected Malaria Cases Tested with mRDTs]]) -> 1 | BA21: =IF(Input_Database[[#This Row],[Total Malaria Cases]]=0,"- ",Input_Database[[#This Row],[Total ALU]]/Input_Database[[#This Row],[Total Malaria Cases]]) -> 10 | BB21: =IF(Input_Database[[#This Row],[Total Monthly LLIN Clients]]=0,"- ",Input_Database[[#This Row],[Total LLINs]]/Input_Database[[#This Row],[Total Monthly LLIN Clients]]) -> 0 | BC21: =Input_Database[[#This Row],[Total Treatments Issued]]-Input_Database[[#This Row],[Total Malaria Cases]] -> 90 | BD21: =_xlfn.IFNA(INDEX(TreatmentAcceptableRatio[],MATCH(Input_Database[[#This Row],[Country]],TreatmentAcceptableRatio[Commodity],0),2),"- ") -> - | BE21: =IF(Input_Database[[#This Row],[Total Malaria Cases]]=0,"- ",Input_Database[[#This Row],[Total Treatments Issued]]/Input_Database[[#This Row],[Total Malaria Cases]]) -> 10 | BF21: =IFERROR(DATE(Input_Database[[#This Row],[Year]],IF(Input_Database[[#This Row],[Month]]="January",1,IF(Input_Database[[#This Row],[Month]]="February",2,IF(Input_Database[[#This Row],[Month]]="March",3,IF(Input_Database[[#This Row],[Month]]="April",4,IF(Input_Database[[#This Row],[Month]]="May",5,IF(Input_Database[[#This Row],[Month]]="June",6,IF(Input_Database[[#This Row],[Month]]="July",7,IF(Input_Database[[#This Row],[Month]]="August",8,IF(Input_Database[[#This Row],[Month]]="September",9,IF(Input_Database[[#This Row],[Month]]="October",10,IF(Input_Database[[#This Row],[Month]]="November",11,IF(Input_Database[[#This Row],[Month]]="December",12,"Error")))))))))))),1),"- ") -> 2024-04-01
A22: NIUE ** | B22: SOUTH | C22: NEW | D22: THIRD PHARMACY | E22: APRIL | F22: 2024 | G22: 4 | H22: 4 | I22: 4 | J22: 4 | K22: 33 | L22: 33 | M22: 33 | N22: 33 | AL22: JOHN | AM22: 2024-03-18T17:34:09 | AN22: =SUM(Input_Database[[#This Row],[ALU 6x1 (Artemether/Lumefantrine 20/120 mg Tablet, 6x1 tablets per Blister Pack)]:[ALU 6x4 (Artemether/Lumefantrine 20/120 mg Tablet, 6x4 tablets per Blister Pack)]]) -> 132 | AO22: =SUM(Input_Database[[#This Row],[Artesunate (w/ 1 Amp NaHCO3 5% + 1 Amp NaCl 0.9%) 60 mg Vial, 1 Set]:[Artesunate suppository 100 mg (Rectal Artesunate)]]) -> 0 | AP22: =SUM(Input_Database[[#This Row],[ASAQ 100/270 mg x 3 (Artesunate/Amodiaquine 100/270 mg Tablet, 3 Tablets per Blister Pack)]:[ASAQ 50/135 mg x3 (Artesunate/Amodiaquine 50/135 mg Tablet, 3 Tablets per Blister Pack)]]) -> 0 | AQ22: =SUM(Input_Database[[#This Row],[Chloroquine 150mg base Tablet (= Chloroquine Phosphate 250mg, or Chloroquine sulfate 200mg)]:[Chloroquine 50 mg base/5 mL Syrup, 60 mL]]) -> 0 | AR22: =SUM(Input_Database[[#This Row],[Primaquine 7.5 mg Tablet]:[Primaquine 15 mg Tablet]]) -> 0 | AS22: =SUM(Input_Database[[#This Row],[Quinine Sulfate 300 mg Tablet]:[Quinine Resorcine 400mg/4ml injectable]]) -> 0 | AT22: =SUM(Input_Database[[#This Row],[Long Lasting Insecticide Treated Nets (LLINs)]:[Long Lasting Insecticide Treated Hammock Net (LLIHN)]]) -> 0 | AU22: =SUM(Input_Database[[#This Row],[SP (Sulfadoxine/pyrimethamine 500mg/25mg, 3 tablets)]:[Dihydroartemisinin-Piperaquine (DHA-PPQ)]]) -> 0 | AV22: =Input_Database[[#This Row],[Total Confirmed Malaria Cases]] -> 4 | AW22: =SUM(Input_Database[[#This Row],[ALU 6x1 (Artemether/Lumefantrine 20/120 mg Tablet, 6x1 tablets per Blister Pack)]:[ALU 6x4 (Artemether/Lumefantrine 20/120 mg Tablet, 6x4 tablets per Blister Pack)]])+SUM(Input_Database[[#This Row],[ASAQ 100/270 mg x 3 (Artesunate/Amodiaquine 100/270 mg Tablet, 3 Tablets per Blister Pack)]:[ASAQ 50/135 mg x3 (Artesunate/Amodiaquine 50/135 mg Tablet, 3 Tablets per Blister Pack)]])+SUM(Input_Database[[#This Row],[Primaquine 7.5 mg Tablet]:[Primaquine 15 mg Tablet]])+SUM(Input_Database[[#This Row],[Dihydroartemisinin-Piperaquine (DHA-PPQ)]:[Pyronaridine-Artesunate]]) -> 132 | AX22: =IF(Input_Database[[#This Row],[Total Malaria Cases]]=0,"- ",Input_Database[[#This Row],[Total Treatments Issued]]/Input_Database[[#This Row],[Total Malaria Cases]]) -> 33 | AY22: =IF(Input_Database[[#This Row],[Total Severe Malaria Cases]]=0,"- ",Input_Database[[#This Row],[Total Artesunate]]/Input_Database[[#This Row],[Total Severe Malaria Cases]]) -> 0 | AZ22: =IF(Input_Database[[#This Row],[Total Suspected Malaria Cases Tested with mRDTs]]=0,"- ",Input_Database[[#This Row],[Total Malaria Cases]]/Input_Database[[#This Row],[Total Suspected Malaria Cases Tested with mRDTs]]) -> 1 | BA22: =IF(Input_Database[[#This Row],[Total Malaria Cases]]=0,"- ",Input_Database[[#This Row],[Total ALU]]/Input_Database[[#This Row],[Total Malaria Cases]]) -> 33 | BB22: =IF(Input_Database[[#This Row],[Total Monthly LLIN Clients]]=0,"- ",Input_Database[[#This Row],[Total LLINs]]/Input_Database[[#This Row],[Total Monthly LLIN Clients]]) -> 0 | BC22: =Input_Database[[#This Row],[Total Treatments Issued]]-Input_Database[[#This Row],[Total Malaria Cases]] -> 128 | BD22: =_xlfn.IFNA(INDEX(TreatmentAcceptableRatio[],MATCH(Input_Database[[#This Row],[Country]],TreatmentAcceptableRatio[Commodity],0),2),"- ") -> - | BE22: =IF(Input_Database[[#This Row],[Total Malaria Cases]]=0,"- ",Input_Database[[#This Row],[Total Treatments Issued]]/Input_Database[[#This Row],[Total Malaria Cases]]) -> 33 | BF22: =IFERROR(DATE(Input_Database[[#This Row],[Year]],IF(Input_Database[[#This Row],[Month]]="January",1,IF(Input_Database[[#This Row],[Month]]="February",2,IF(Input_Database[[#This Row],[Month]]="March",3,IF(Input_Database[[#This Row],[Month]]="April",4,IF(Input_Database[[#This Row],[Month]]="May",5,IF(Input_Database[[#This Row],[Month]]="June",6,IF(Input_Database[[#This Row],[Month]]="July",7,IF(Input_Database[[#This Row],[Month]]="August",8,IF(Input_Database[[#This Row],[Month]]="September",9,IF(Input_Database[[#This Row],[Month]]="October",10,IF(Input_Database[[#This Row],[Month]]="November",11,IF(Input_Database[[#This Row],[Month]]="December",12,"Error")))))))))))),1),"- ") -> 2024-04-01
A23: NIUE ** | B23: SOUTH | C23: NEW | D23: THIRD PHARMACY | E23: APRIL | F23: 2024 | G23: 1 | H23: 1 | I23: 1 | J23: 1 | K23: 8 | AL23: HERMES | AM23: 2024-03-19T17:34:09 | AN23: =SUM(Input_Database[[#This Row],[ALU 6x1 (Artemether/Lumefantrine 20/120 mg Tablet, 6x1 tablets per Blister Pack)]:[ALU 6x4 (Artemether/Lumefantrine 20/120 mg Tablet, 6x4 tablets per Blister Pack)]]) -> 8 | AO23: =SUM(Input_Database[[#This Row],[Artesunate (w/ 1 Amp NaHCO3 5% + 1 Amp NaCl 0.9%) 60 mg Vial, 1 Set]:[Artesunate suppository 100 mg (Rectal Artesunate)]]) -> 0 | AP23: =SUM(Input_Database[[#This Row],[ASAQ 100/270 mg x 3 (Artesunate/Amodiaquine 100/270 mg Tablet, 3 Tablets per Blister Pack)]:[ASAQ 50/135 mg x3 (Artesunate/Amodiaquine 50/135 mg Tablet, 3 Tablets per Blister Pack)]]) -> 0 | AQ23: =SUM(Input_Database[[#This Row],[Chloroquine 150mg base Tablet (= Chloroquine Phosphate 250mg, or Chloroquine sulfate 200mg)]:[Chloroquine 50 mg base/5 mL Syrup, 60 mL]]) -> 0 | AR23: =SUM(Input_Database[[#This Row],[Primaquine 7.5 mg Tablet]:[Primaquine 15 mg Tablet]]) -> 0 | AS23: =SUM(Input_Database[[#This Row],[Quinine Sulfate 300 mg Tablet]:[Quinine Resorcine 400mg/4ml injectable]]) -> 0 | AT23: =SUM(Input_Database[[#This Row],[Long Lasting Insecticide Treated Nets (LLINs)]:[Long Lasting Insecticide Treated Hammock Net (LLIHN)]]) -> 0 | AU23: =SUM(Input_Database[[#This Row],[SP (Sulfadoxine/pyrimethamine 500mg/25mg, 3 tablets)]:[Dihydroartemisinin-Piperaquine (DHA-PPQ)]]) -> 0 | AV23: =Input_Database[[#This Row],[Total Confirmed Malaria Cases]] -> 1 | AW23: =SUM(Input_Database[[#This Row],[ALU 6x1 (Artemether/Lumefantrine 20/120 mg Tablet, 6x1 tablets per Blister Pack)]:[ALU 6x4 (Artemether/Lumefantrine 20/120 mg Tablet, 6x4 tablets per Blister Pack)]])+SUM(Input_Database[[#This Row],[ASAQ 100/270 mg x 3 (Artesunate/Amodiaquine 100/270 mg Tablet, 3 Tablets per Blister Pack)]:[ASAQ 50/135 mg x3 (Artesunate/Amodiaquine 50/135 mg Tablet, 3 Tablets per Blister Pack)]])+SUM(Input_Database[[#This Row],[Primaquine 7.5 mg Tablet]:[Primaquine 15 mg Tablet]])+SUM(Input_Database[[#This Row],[Dihydroartemisinin-Piperaquine (DHA-PPQ)]:[Pyronaridine-Artesunate]]) -> 8 | AX23: =IF(Input_Database[[#This Row],[Total Malaria Cases]]=0,"- ",Input_Database[[#This Row],[Total Treatments Issued]]/Input_Database[[#This Row],[Total Malaria Cases]]) -> 8 | AY23: =IF(Input_Database[[#This Row],[Total Severe Malaria Cases]]=0,"- ",Input_Database[[#This Row],[Total Artesunate]]/Input_Database[[#This Row],[Total Severe Malaria Cases]]) -> 0 | AZ23: =IF(Input_Database[[#This Row],[Total Suspected Malaria Cases Tested with mRDTs]]=0,"- ",Input_Database[[#This Row],[Total Malaria Cases]]/Input_Database[[#This Row],[Total Suspected Malaria Cases Tested with mRDTs]]) -> 1 | BA23: =IF(Input_Database[[#This Row],[Total Malaria Cases]]=0,"- ",Input_Database[[#This Row],[Total ALU]]/Input_Database[[#This Row],[Total Malaria Cases]]) -> 8 | BB23: =IF(Input_Database[[#This Row],[Total Monthly LLIN Clients]]=0,"- ",Input_Database[[#This Row],[Total LLINs]]/Input_Database[[#This Row],[Total Monthly LLIN Clients]]) -> 0 | BC23: =Input_Database[[#This Row],[Total Treatments Issued]]-Input_Database[[#This Row],[Total Malaria Cases]] -> 7 | BD23: =_xlfn.IFNA(INDEX(TreatmentAcceptableRatio[],MATCH(Input_Database[[#This Row],[Country]],TreatmentAcceptableRatio[Commodity],0),2),"- ") -> - | BE23: =IF(Input_Database[[#This Row],[Total Malaria Cases]]=0,"- ",Input_Database[[#This Row],[Total Treatments Issued]]/Input_Database[[#This Row],[Total Malaria Cases]]) -> 8 | BF23: =IFERROR(DATE(Input_Database[[#This Row],[Year]],IF(Input_Database[[#This Row],[Month]]="January",1,IF(Input_Database[[#This Row],[Month]]="February",2,IF(Input_Database[[#This Row],[Month]]="March",3,IF(Input_Database[[#This Row],[Month]]="April",4,IF(Input_Database[[#This Row],[Month]]="May",5,IF(Input_Database[[#This Row],[Month]]="June",6,IF(Input_Database[[#This Row],[Month]]="July",7,IF(Input_Database[[#This Row],[Month]]="August",8,IF(Input_Database[[#This Row],[Month]]="September",9,IF(Input_Database[[#This Row],[Month]]="October",10,IF(Input_Database[[#This Row],[Month]]="November",11,IF(Input_Database[[#This Row],[Month]]="December",12,"Error")))))))))))),1),"- ") -> 2024-04-01
A24: NIUE ** | B24: EAST | C24: NEW | D24: OTHER PHARMACY | E24: APRIL | F24: 2024 | G24: 5 | H24: 6 | I24: 7 | J24: 8 | K24: 1 | L24: 2 | M24: 3 | N24: 4 | AL24: JOHN | AM24: 2024-03-20T17:34:09 | AN24: =SUM(Input_Database[[#This Row],[ALU 6x1 (Artemether/Lumefantrine 20/120 mg Tablet, 6x1 tablets per Blister Pack)]:[ALU 6x4 (Artemether/Lumefantrine 20/120 mg Tablet, 6x4 tablets per Blister Pack)]]) -> 10 | AO24: =SUM(Input_Database[[#This Row],[Artesunate (w/ 1 Amp NaHCO3 5% + 1 Amp NaCl 0.9%) 60 mg Vial, 1 Set]:[Artesunate suppository 100 mg (Rectal Artesunate)]]) -> 0 | AP24: =SUM(Input_Database[[#This Row],[ASAQ 100/270 mg x 3 (Artesunate/Amodiaquine 100/270 mg Tablet, 3 Tablets per Blister Pack)]:[ASAQ 50/135 mg x3 (Artesunate/Amodiaquine 50/135 mg Tablet, 3 Tablets per Blister Pack)]]) -> 0 | AQ24: =SUM(Input_Database[[#This Row],[Chloroquine 150mg base Tablet (= Chloroquine Phosphate 250mg, or Chloroquine sulfate 200mg)]:[Chloroquine 50 mg base/5 mL Syrup, 60 mL]]) -> 0 | AR24: =SUM(Input_Database[[#This Row],[Primaquine 7.5 mg Tablet]:[Primaquine 15 mg Tablet]]) -> 0 | AS24: =SUM(Input_Database[[#This Row],[Quinine Sulfate 300 mg Tablet]:[Quinine Resorcine 400mg/4ml injectable]]) -> 0 | AT24: =SUM(Input_Database[[#This Row],[Long Lasting Insecticide Treated Nets (LLINs)]:[Long Lasting Insecticide Treated Hammock Net (LLIHN)]]) -> 0 | AU24: =SUM(Input_Database[[#This Row],[SP (Sulfadoxine/pyrimethamine 500mg/25mg, 3 tablets)]:[Dihydroartemisinin-Piperaquine (DHA-PPQ)]]) -> 0 | AV24: =Input_Database[[#This Row],[Total Confirmed Malaria Cases]] -> 5 | AW24: =SUM(Input_Database[[#This Row],[ALU 6x1 (Artemether/Lumefantrine 20/120 mg Tablet, 6x1 tablets per Blister Pack)]:[ALU 6x4 (Artemether/Lumefantrine 20/120 mg Tablet, 6x4 tablets per Blister Pack)]])+SUM(Input_Database[[#This Row],[ASAQ 100/270 mg x 3 (Artesunate/Amodiaquine 100/270 mg Tablet, 3 Tablets per Blister Pack)]:[ASAQ 50/135 mg x3 (Artesunate/Amodiaquine 50/135 mg Tablet, 3 Tablets per Blister Pack)]])+SUM(Input_Database[[#This Row],[Primaquine 7.5 mg Tablet]:[Primaquine 15 mg Tablet]])+SUM(Input_Database[[#This Row],[Dihydroartemisinin-Piperaquine (DHA-PPQ)]:[Pyronaridine-Artesunate]]) -> 10 | AX24: =IF(Input_Database[[#This Row],[Total Malaria Cases]]=0,"- ",Input_Database[[#This Row],[Total Treatments Issued]]/Input_Database[[#This Row],[Total Malaria Cases]]) -> 2 | AY24: =IF(Input_Database[[#This Row],[Total Severe Malaria Cases]]=0,"- ",Input_Database[[#This Row],[Total Artesunate]]/Input_Database[[#This Row],[Total Severe Malaria Cases]]) -> 0 | AZ24: =IF(Input_Database[[#This Row],[Total Suspected Malaria Cases Tested with mRDTs]]=0,"- ",Input_Database[[#This Row],[Total Malaria Cases]]/Input_Database[[#This Row],[Total Suspected Malaria Cases Tested with mRDTs]]) -> 0.7142857143 | BA24: =IF(Input_Database[[#This Row],[Total Malaria Cases]]=0,"- ",Input_Database[[#This Row],[Total ALU]]/Input_Database[[#This Row],[Total Malaria Cases]]) -> 2 | BB24: =IF(Input_Database[[#This Row],[Total Monthly LLIN Clients]]=0,"- ",Input_Database[[#This Row],[Total LLINs]]/Input_Database[[#This Row],[Total Monthly LLIN Clients]]) -> 0 | BC24: =Input_Database[[#This Row],[Total Treatments Issued]]-Input_Database[[#This Row],[Total Malaria Cases]] -> 5 | BD24: =_xlfn.IFNA(INDEX(TreatmentAcceptableRatio[],MATCH(Input_Database[[#This Row],[Country]],TreatmentAcceptableRatio[Commodity],0),2),"- ") -> - | BE24: =IF(Input_Database[[#This Row],[Total Malaria Cases]]=0,"- ",Input_Database[[#This Row],[Total Treatments Issued]]/Input_Database[[#This Row],[Total Malaria Cases]]) -> 2 | BF24: =IFERROR(DATE(Input_Database[[#This Row],[Year]],IF(Input_Database[[#This Row],[Month]]="January",1,IF(Input_Database[[#This Row],[Month]]="February",2,IF(Input_Database[[#This Row],[Month]]="March",3,IF(Input_Database[[#This Row],[Month]]="April",4,IF(Input_Database[[#This Row],[Month]]="May",5,IF(Input_Database[[#This Row],[Month]]="June",6,IF(Input_Database[[#This Row],[Month]]="July",7,IF(Input_Database[[#This Row],[Month]]="August",8,IF(Input_Database[[#This Row],[Month]]="September",9,IF(Input_Database[[#This Row],[Month]]="October",10,IF(Input_Database[[#This Row],[Month]]="November",11,IF(Input_Database[[#This Row],[Month]]="December",12,"Error")))))))))))),1),"- ") -> 2024-04-01
A25: NIUE ** | B25: EAST | C25: NEW | D25: OTHER PHARMACY | E25: APRIL | F25: 2024 | G25: 1 | H25: 1 | I25: 1 | J25: 3 | K25: 1 | AL25: JOHN | AM25: 2024-03-21T17:34:09 | AN25: =SUM(Input_Database[[#This Row],[ALU 6x1 (Artemether/Lumefantrine 20/120 mg Tablet, 6x1 tablets per Blister Pack)]:[ALU 6x4 (Artemether/Lumefantrine 20/120 mg Tablet, 6x4 tablets per Blister Pack)]]) -> 1 | AO25: =SUM(Input_Database[[#This Row],[Artesunate (w/ 1 Amp NaHCO3 5% + 1 Amp NaCl 0.9%) 60 mg Vial, 1 Set]:[Artesunate suppository 100 mg (Rectal Artesunate)]]) -> 0 | AP25: =SUM(Input_Database[[#This Row],[ASAQ 100/270 mg x 3 (Artesunate/Amodiaquine 100/270 mg Tablet, 3 Tablets per Blister Pack)]:[ASAQ 50/135 mg x3 (Artesunate/Amodiaquine 50/135 mg Tablet, 3 Tablets per Blister Pack)]]) -> 0 | AQ25: =SUM(Input_Database[[#This Row],[Chloroquine 150mg base Tablet (= Chloroquine Phosphate 250mg, or Chloroquine sulfate 200mg)]:[Chloroquine 50 mg base/5 mL Syrup, 60 mL]]) -> 0 | AR25: =SUM(Input_Database[[#This Row],[Primaquine 7.5 mg Tablet]:[Primaquine 15 mg Tablet]]) -> 0 | AS25: =SUM(Input_Database[[#This Row],[Quinine Sulfate 300 mg Tablet]:[Quinine Resorcine 400mg/4ml injectable]]) -> 0 | AT25: =SUM(Input_Database[[#This Row],[Long Lasting Insecticide Treated Nets (LLINs)]:[Long Lasting Insecticide Treated Hammock Net (LLIHN)]]) -> 0 | AU25: =SUM(Input_Database[[#This Row],[SP (Sulfadoxine/pyrimethamine 500mg/25mg, 3 tablets)]:[Dihydroartemisinin-Piperaquine (DHA-PPQ)]]) -> 0 | AV25: =Input_Database[[#This Row],[Total Confirmed Malaria Cases]] -> 1 | AW25: =SUM(Input_Database[[#This Row],[ALU 6x1 (Artemether/Lumefantrine 20/120 mg Tablet, 6x1 tablets per Blister Pack)]:[ALU 6x4 (Artemether/Lumefantrine 20/120 mg Tablet, 6x4 tablets per Blister Pack)]])+SUM(Input_Database[[#This Row],[ASAQ 100/270 mg x 3 (Artesunate/Amodiaquine 100/270 mg Tablet, 3 Tablets per Blister Pack)]:[ASAQ 50/135 mg x3 (Artesunate/Amodiaquine 50/135 mg Tablet, 3 Tablets per Blister Pack)]])+SUM(Input_Database[[#This Row],[Primaquine 7.5 mg Tablet]:[Primaquine 15 mg Tablet]])+SUM(Input_Database[[#This Row],[Dihydroartemisinin-Piperaquine (DHA-PPQ)]:[Pyronaridine-Artesunate]]) -> 1 | AX25: =IF(Input_Database[[#This Row],[Total Malaria Cases]]=0,"- ",Input_Database[[#This Row],[Total Treatments Issued]]/Input_Database[[#This Row],[Total Malaria Cases]]) -> 1 | AY25: =IF(Input_Database[[#This Row],[Total Severe Malaria Cases]]=0,"- ",Input_Database[[#This Row],[Total Artesunate]]/Input_Database[[#This Row],[Total Severe Malaria Cases]]) -> 0 | AZ25: =IF(Input_Database[[#This Row],[Total Suspected Malaria Cases Tested with mRDTs]]=0,"- ",Input_Database[[#This Row],[Total Malaria Cases]]/Input_Database[[#This Row],[Total Suspected Malaria Cases Tested with mRDTs]]) -> 1 | BA25: =IF(Input_Database[[#This Row],[Total Malaria Cases]]=0,"- ",Input_Database[[#This Row],[Total ALU]]/Input_Database[[#This Row],[Total Malaria Cases]]) -> 1 | BB25: =IF(Input_Database[[#This Row],[Total Monthly LLIN Clients]]=0,"- ",Input_Database[[#This Row],[Total LLINs]]/Input_Database[[#This Row],[Total Monthly LLIN Clients]]) -> 0 | BC25: =Input_Database[[#This Row],[Total Treatments Issued]]-Input_Database[[#This Row],[Total Malaria Cases]] -> 0 | BD25: =_xlfn.IFNA(INDEX(TreatmentAcceptableRatio[],MATCH(Input_Database[[#This Row],[Country]],TreatmentAcceptableRatio[Commodity],0),2),"- ") -> - | BE25: =IF(Input_Database[[#This Row],[Total Malaria Cases]]=0,"- ",Input_Database[[#This Row],[Total Treatments Issued]]/Input_Database[[#This Row],[Total Malaria Cases]]) -> 1 | BF25: =IFERROR(DATE(Input_Database[[#This Row],[Year]],IF(Input_Database[[#This Row],[Month]]="January",1,IF(Input_Database[[#This Row],[Month]]="February",2,IF(Input_Database[[#This Row],[Month]]="March",3,IF(Input_Database[[#This Row],[Month]]="April",4,IF(Input_Database[[#This Row],[Month]]="May",5,IF(Input_Database[[#This Row],[Month]]="June",6,IF(Input_Database[[#This Row],[Month]]="July",7,IF(Input_Database[[#This Row],[Month]]="August",8,IF(Input_Database[[#This Row],[Month]]="September",9,IF(Input_Database[[#This Row],[Month]]="October",10,IF(Input_Database[[#This Row],[Month]]="November",11,IF(Input_Database[[#This Row],[Month]]="December",12,"Error")))))))))))),1),"- ") -> 2024-04-01
A26: MALAWI | E26: APRIL | F26: 2024 | G26: 2 | H26: 2 | I26: 2 | J26: 2 | K26: 0.1666666667 | L26: 0.08333333333 | M26: 0.05555555556 | N26: 0.04166666667 | T26: 0.6666666667 | U26: 0.3333333333 | V26: 0.6666666667 | W26: 0.6666666667 | AM26: 2024-03-22T17:34:09 | AN26: =SUM(Input_Database[[#This Row],[ALU 6x1 (Artemether/Lumefantrine 20/120 mg Tablet, 6x1 tablets per Blister Pack)]:[ALU 6x4 (Artemether/Lumefantrine 20/120 mg Tablet, 6x4 tablets per Blister Pack)]]) -> 0.3472222222 | AO26: =SUM(Input_Database[[#This Row],[Artesunate (w/ 1 Amp NaHCO3 5% + 1 Amp NaCl 0.9%) 60 mg Vial, 1 Set]:[Artesunate suppository 100 mg (Rectal Artesunate)]]) -> 0 | AP26: =SUM(Input_Database[[#This Row],[ASAQ 100/270 mg x 3 (Artesunate/Amodiaquine 100/270 mg Tablet, 3 Tablets per Blister Pack)]:[ASAQ 50/135 mg x3 (Artesunate/Amodiaquine 50/135 mg Tablet, 3 Tablets per Blister Pack)]]) -> 2.333333333 | AQ26: =SUM(Input_Database[[#This Row],[Chloroquine 150mg base Tablet (= Chloroquine Phosphate 250mg, or Chloroquine sulfate 200mg)]:[Chloroquine 50 mg base/5 mL Syrup, 60 mL]]) -> 0 | AR26: =SUM(Input_Database[[#This Row],[Primaquine 7.5 mg Tablet]:[Primaquine 15 mg Tablet]]) -> 0 | AS26: =SUM(Input_Database[[#This Row],[Quinine Sulfate 300 mg Tablet]:[Quinine Resorcine 400mg/4ml injectable]]) -> 0 | AT26: =SUM(Input_Database[[#This Row],[Long Lasting Insecticide Treated Nets (LLINs)]:[Long Lasting Insecticide Treated Hammock Net (LLIHN)]]) -> 0 | AU26: =SUM(Input_Database[[#This Row],[SP (Sulfadoxine/pyrimethamine 500mg/25mg, 3 tablets)]:[Dihydroartemisinin-Piperaquine (DHA-PPQ)]]) -> 0 | AV26: =Input_Database[[#This Row],[Total Confirmed Malaria Cases]] -> 2 | AW26: =SUM(Input_Database[[#This Row],[ALU 6x1 (Artemether/Lumefantrine 20/120 mg Tablet, 6x1 tablets per Blister Pack)]:[ALU 6x4 (Artemether/Lumefantrine 20/120 mg Tablet, 6x4 tablets per Blister Pack)]])+SUM(Input_Database[[#This Row],[ASAQ 100/270 mg x 3 (Artesunate/Amodiaquine 100/270 mg Tablet, 3 Tablets per Blister Pack)]:[ASAQ 50/135 mg x3 (Artesunate/Amodiaquine 50/135 mg Tablet, 3 Tablets per Blister Pack)]])+SUM(Input_Database[[#This Row],[Primaquine 7.5 mg Tablet]:[Primaquine 15 mg Tablet]])+SUM(Input_Database[[#This Row],[Dihydroartemisinin-Piperaquine (DHA-PPQ)]:[Pyronaridine-Artesunate]]) -> 2.680555556 | AX26: =IF(Input_Database[[#This Row],[Total Malaria Cases]]=0,"- ",Input_Database[[#This Row],[Total Treatments Issued]]/Input_Database[[#This Row],[Total Malaria Cases]]) -> 1.340277778 | AY26: =IF(Input_Database[[#This Row],[Total Severe Malaria Cases]]=0,"- ",Input_Database[[#This Row],[Total Artesunate]]/Input_Database[[#This Row],[Total Severe Malaria Cases]]) -> 0 | AZ26: =IF(Input_Database[[#This Row],[Total Suspected Malaria Cases Tested with mRDTs]]=0,"- ",Input_Database[[#This Row],[Total Malaria Cases]]/Input_Database[[#This Row],[Total Suspected Malaria Cases Tested with mRDTs]]) -> 1 | BA26: =IF(Input_Database[[#This Row],[Total Malaria Cases]]=0,"- ",Input_Database[[#This Row],[Total ALU]]/Input_Database[[#This Row],[Total Malaria Cases]]) -> 0.1736111111 | BB26: =IF(Input_Database[[#This Row],[Total Monthly LLIN Clients]]=0,"- ",Input_Database[[#This Row],[Total LLINs]]/Input_Database[[#This Row],[Total Monthly LLIN Clients]]) -> 0 | BC26: =Input_Database[[#This Row],[Total Treatments Issued]]-Input_Database[[#This Row],[Total Malaria Cases]] -> 0.6805555556 | BD26: =_xlfn.IFNA(INDEX(TreatmentAcceptableRatio[],MATCH(Input_Database[[#This Row],[Country]],TreatmentAcceptableRatio[Commodity],0),2),"- ") -> - | BE26: =IF(Input_Database[[#This Row],[Total Malaria Cases]]=0,"- ",Input_Database[[#This Row],[Total Treatments Issued]]/Input_Database[[#This Row],[Total Malaria Cases]]) -> 1.340277778 | BF26: =IFERROR(DATE(Input_Database[[#This Row],[Year]],IF(Input_Database[[#This Row],[Month]]="January",1,IF(Input_Database[[#This Row],[Month]]="February",2,IF(Input_Database[[#This Row],[Month]]="March",3,IF(Input_Database[[#This Row],[Month]]="April",4,IF(Input_Database[[#This Row],[Month]]="May",5,IF(Input_Database[[#This Row],[Month]]="June",6,IF(Input_Database[[#This Row],[Month]]="July",7,IF(Input_Database[[#This Row],[Month]]="August",8,IF(Input_Database[[#This Row],[Month]]="September",9,IF(Input_Database[[#This Row],[Month]]="October",10,IF(Input_Database[[#This Row],[Month]]="November",11,IF(Input_Database[[#This Row],[Month]]="December",12,"Error")))))))))))),1),"- ") -> 2024-04-01
A27: NIUE ** | B27: CENTRAL | C27: NEW | D27: THIRD PHARMACY | E27: JUNE | F27: 2024 | G27: 5000 | H27: 500 | I27: 500 | J27: 500 | K27: 60000 | L27: 200 | M27: 100 | N27: 30 | O27: 9000 | P27: 33 | Q27: 500 | R27: 500 | S27: 500 | T27: 40 | U27: 20 | V27: 20 | W27: 20 | X27: 22 | Y27: 22 | Z27: 22 | AA27: 10 | AB27: 10 | AC27: 5 | AD27: 8 | AE27: 6 | AF27: 8 | AG27: 1000 | AH27: 5 | AI27: 6 | AJ27: 4 | AK27: 8 | AL27: JOHN | AM27: 2024-03-23T17:34:09 | AN27: =SUM(Input_Database[[#This Row],[ALU 6x1 (Artemether/Lumefantrine 20/120 mg Tablet, 6x1 tablets per Blister Pack)]:[ALU 6x4 (Artemether/Lumefantrine 20/120 mg Tablet, 6x4 tablets per Blister Pack)]]) -> 60330 | AO27: =SUM(Input_Database[[#This Row],[Artesunate (w/ 1 Amp NaHCO3 5% + 1 Amp NaCl 0.9%) 60 mg Vial, 1 Set]:[Artesunate suppository 100 mg (Rectal Artesunate)]]) -> 1533 | AP27: =SUM(Input_Database[[#This Row],[ASAQ 100/270 mg x 3 (Artesunate/Amodiaquine 100/270 mg Tablet, 3 Tablets per Blister Pack)]:[ASAQ 50/135 mg x3 (Artesunate/Amodiaquine 50/135 mg Tablet, 3 Tablets per Blister Pack)]]) -> 100 | AQ27: =SUM(Input_Database[[#This Row],[Chloroquine 150mg base Tablet (= Chloroquine Phosphate 250mg, or Chloroquine sulfate 200mg)]:[Chloroquine 50 mg base/5 mL Syrup, 60 mL]]) -> 44 | AR27: =SUM(Input_Database[[#This Row],[Primaquine 7.5 mg Tablet]:[Primaquine 15 mg Tablet]]) -> 32 | AS27: =SUM(Input_Database[[#This Row],[Quinine Sulfate 300 mg Tablet]:[Quinine Resorcine 400mg/4ml injectable]]) -> 23 | AT27: =SUM(Input_Database[[#This Row],[Long Lasting Insecticide Treated Nets (LLINs)]:[Long Lasting Insecticide Treated Hammock Net (LLIHN)]]) -> 1008 | AU27: =SUM(Input_Database[[#This Row],[SP (Sulfadoxine/pyrimethamine 500mg/25mg, 3 tablets)]:[Dihydroartemisinin-Piperaquine (DHA-PPQ)]]) -> 1019 | AV27: =Input_Database[[#This Row],[Total Confirmed Malaria Cases]] -> 5000 | AW27: =SUM(Input_Database[[#This Row],[ALU 6x1 (Artemether/Lumefantrine 20/120 mg Tablet, 6x1 tablets per Blister Pack)]:[ALU 6x4 (Artemether/Lumefantrine 20/120 mg Tablet, 6x4 tablets per Blister Pack)]])+SUM(Input_Database[[#This Row],[ASAQ 100/270 mg x 3 (Artesunate/Amodiaquine 100/270 mg Tablet, 3 Tablets per Blister Pack)]:[ASAQ 50/135 mg x3 (Artesunate/Amodiaquine 50/135 mg Tablet, 3 Tablets per Blister Pack)]])+SUM(Input_Database[[#This Row],[Primaquine 7.5 mg Tablet]:[Primaquine 15 mg Tablet]])+SUM(Input_Database[[#This Row],[Dihydroartemisinin-Piperaquine (DHA-PPQ)]:[Pyronaridine-Artesunate]]) -> 60473 | AX27: =IF(Input_Database[[#This Row],[Total Malaria Cases]]=0,"- ",Input_Database[[#This Row],[Total Treatments Issued]]/Input_Database[[#This Row],[Total Malaria Cases]]) -> 12.0946 | AY27: =IF(Input_Database[[#This Row],[Total Severe Malaria Cases]]=0,"- ",Input_Database[[#This Row],[Total Artesunate]]/Input_Database[[#This Row],[Total Severe Malaria Cases]]) -> 3.066 | AZ27: =IF(Input_Database[[#This Row],[Total Suspected Malaria Cases Tested with mRDTs]]=0,"- ",Input_Database[[#This Row],[Total Malaria Cases]]/Input_Database[[#This Row],[Total Suspected Malaria Cases Tested with mRDTs]]) -> 10 | BA27: =IF(Input_Database[[#This Row],[Total Malaria Cases]]=0,"- ",Input_Database[[#This Row],[Total ALU]]/Input_Database[[#This Row],[Total Malaria Cases]]) -> 12.066 | BB27: =IF(Input_Database[[#This Row],[Total Monthly LLIN Clients]]=0,"- ",Input_Database[[#This Row],[Total LLINs]]/Input_Database[[#This Row],[Total Monthly LLIN Clients]]) -> 2.016 | BC27: =Input_Database[[#This Row],[Total Treatments Issued]]-Input_Database[[#This Row],[Total Malaria Cases]] -> 55473 | BD27: =_xlfn.IFNA(INDEX(TreatmentAcceptableRatio[],MATCH(Input_Database[[#This Row],[Country]],TreatmentAcceptableRatio[Commodity],0),2),"- ") -> - | BE27: =IF(Input_Database[[#This Row],[Total Malaria Cases]]=0,"- ",Input_Database[[#This Row],[Total Treatments Issued]]/Input_Database[[#This Row],[Total Malaria Cases]]) -> 12.0946 | BF27: =IFERROR(DATE(Input_Database[[#This Row],[Year]],IF(Input_Database[[#This Row],[Month]]="January",1,IF(Input_Database[[#This Row],[Month]]="February",2,IF(Input_Database[[#This Row],[Month]]="March",3,IF(Input_Database[[#This Row],[Month]]="April",4,IF(Input_Database[[#This Row],[Month]]="May",5,IF(Input_Database[[#This Row],[Month]]="June",6,IF(Input_Database[[#This Row],[Month]]="July",7,IF(Input_Database[[#This Row],[Month]]="August",8,IF(Input_Database[[#This Row],[Month]]="September",9,IF(Input_Database[[#This Row],[Month]]="October",10,IF(Input_Database[[#This Row],[Month]]="November",11,IF(Input_Database[[#This Row],[Month]]="December",12,"Error")))))))))))),1),"- ") -> 2024-06-01
A28: NIUE ** | B28: CENTRAL | C28: NEW | D28: THIRD PHARMACY | E28: JUNE | F28: 2024 | G28: 2 | H28: 2 | I28: 2 | J28: 2 | K28: 6 | AL28: HERMES | AM28: 2024-03-24T17:34:09 | AN28: =SUM(Input_Database[[#This Row],[ALU 6x1 (Artemether/Lumefantrine 20/120 mg Tablet, 6x1 tablets per Blister Pack)]:[ALU 6x4 (Artemether/Lumefantrine 20/120 mg Tablet, 6x4 tablets per Blister Pack)]]) -> 6 | AO28: =SUM(Input_Database[[#This Row],[Artesunate (w/ 1 Amp NaHCO3 5% + 1 Amp NaCl 0.9%) 60 mg Vial, 1 Set]:[Artesunate suppository 100 mg (Rectal Artesunate)]]) -> 0 | AP28: =SUM(Input_Database[[#This Row],[ASAQ 100/270 mg x 3 (Artesunate/Amodiaquine 100/270 mg Tablet, 3 Tablets per Blister Pack)]:[ASAQ 50/135 mg x3 (Artesunate/Amodiaquine 50/135 mg Tablet, 3 Tablets per Blister Pack)]]) -> 0 | AQ28: =SUM(Input_Database[[#This Row],[Chloroquine 150mg base Tablet (= Chloroquine Phosphate 250mg, or Chloroquine sulfate 200mg)]:[Chloroquine 50 mg base/5 mL Syrup, 60 mL]]) -> 0 | AR28: =SUM(Input_Database[[#This Row],[Primaquine 7.5 mg Tablet]:[Primaquine 15 mg Tablet]]) -> 0 | AS28: =SUM(Input_Database[[#This Row],[Quinine Sulfate 300 mg Tablet]:[Quinine Resorcine 400mg/4ml injectable]]) -> 0 | AT28: =SUM(Input_Database[[#This Row],[Long Lasting Insecticide Treated Nets (LLINs)]:[Long Lasting Insecticide Treated Hammock Net (LLIHN)]]) -> 0 | AU28: =SUM(Input_Database[[#This Row],[SP (Sulfadoxine/pyrimethamine 500mg/25mg, 3 tablets)]:[Dihydroartemisinin-Piperaquine (DHA-PPQ)]]) -> 0 | AV28: =Input_Database[[#This Row],[Total Confirmed Malaria Cases]] -> 2 | AW28: =SUM(Input_Database[[#This Row],[ALU 6x1 (Artemether/Lumefantrine 20/120 mg Tablet, 6x1 tablets per Blister Pack)]:[ALU 6x4 (Artemether/Lumefantrine 20/120 mg Tablet, 6x4 tablets per Blister Pack)]])+SUM(Input_Database[[#This Row],[ASAQ 100/270 mg x 3 (Artesunate/Amodiaquine 100/270 mg Tablet, 3 Tablets per Blister Pack)]:[ASAQ 50/135 mg x3 (Artesunate/Amodiaquine 50/135 mg Tablet, 3 Tablets per Blister Pack)]])+SUM(Input_Database[[#This Row],[Primaquine 7.5 mg Tablet]:[Primaquine 15 mg Tablet]])+SUM(Input_Database[[#This Row],[Dihydroartemisinin-Piperaquine (DHA-PPQ)]:[Pyronaridine-Artesunate]]) -> 6 | AX28: =IF(Input_Database[[#This Row],[Total Malaria Cases]]=0,"- ",Input_Database[[#This Row],[Total Treatments Issued]]/Input_Database[[#This Row],[Total Malaria Cases]]) -> 3 | AY28: =IF(Input_Database[[#This Row],[Total Severe Malaria Cases]]=0,"- ",Input_Database[[#This Row],[Total Artesunate]]/Input_Database[[#This Row],[Total Severe Malaria Cases]]) -> 0 | AZ28: =IF(Input_Database[[#This Row],[Total Suspected Malaria Cases Tested with mRDTs]]=0,"- ",Input_Database[[#This Row],[Total Malaria Cases]]/Input_Database[[#This Row],[Total Suspected Malaria Cases Tested with mRDTs]]) -> 1 | BA28: =IF(Input_Database[[#This Row],[Total Malaria Cases]]=0,"- ",Input_Database[[#This Row],[Total ALU]]/Input_Database[[#This Row],[Total Malaria Cases]]) -> 3 | BB28: =IF(Input_Database[[#This Row],[Total Monthly LLIN Clients]]=0,"- ",Input_Database[[#This Row],[Total LLINs]]/Input_Database[[#This Row],[Total Monthly LLIN Clients]]) -> 0 | BC28: =Input_Database[[#This Row],[Total Treatments Issued]]-Input_Database[[#This Row],[Total Malaria Cases]] -> 4 | BD28: =_xlfn.IFNA(INDEX(TreatmentAcceptableRatio[],MATCH(Input_Database[[#This Row],[Country]],TreatmentAcceptableRatio[Commodity],0),2),"- ") -> - | BE28: =IF(Input_Database[[#This Row],[Total Malaria Cases]]=0,"- ",Input_Database[[#This Row],[Total Treatments Issued]]/Input_Database[[#This Row],[Total Malaria Cases]]) -> 3 | BF28: =IFERROR(DATE(Input_Database[[#This Row],[Year]],IF(Input_Database[[#This Row],[Month]]="January",1,IF(Input_Database[[#This Row],[Month]]="February",2,IF(Input_Database[[#This Row],[Month]]="March",3,IF(Input_Database[[#This Row],[Month]]="April",4,IF(Input_Database[[#This Row],[Month]]="May",5,IF(Input_Database[[#This Row],[Month]]="June",6,IF(Input_Database[[#This Row],[Month]]="July",7,IF(Input_Database[[#This Row],[Month]]="August",8,IF(Input_Database[[#This Row],[Month]]="September",9,IF(Input_Database[[#This Row],[Month]]="October",10,IF(Input_Database[[#This Row],[Month]]="November",11,IF(Input_Database[[#This Row],[Month]]="December",12,"Error")))))))))))),1),"- ") -> 2024-06-01
A29: ZAMBIA | B29: NORTH | C29: NEW | D29: FIRST PHARMACY | E29: APRIL | F29: 2024 | G29: 11 | H29: 11 | I29: 11 | J29: 11 | K29: 5.5 | AL29: JOE | AM29: 2024-03-25T17:34:09 | AN29: =SUM(Input_Database[[#This Row],[ALU 6x1 (Artemether/Lumefantrine 20/120 mg Tablet, 6x1 tablets per Blister Pack)]:[ALU 6x4 (Artemether/Lumefantrine 20/120 mg Tablet, 6x4 tablets per Blister Pack)]]) -> 5.5 | AO29: =SUM(Input_Database[[#This Row],[Artesunate (w/ 1 Amp NaHCO3 5% + 1 Amp NaCl 0.9%) 60 mg Vial, 1 Set]:[Artesunate suppository 100 mg (Rectal Artesunate)]]) -> 0 | AP29: =SUM(Input_Database[[#This Row],[ASAQ 100/270 mg x 3 (Artesunate/Amodiaquine 100/270 mg Tablet, 3 Tablets per Blister Pack)]:[ASAQ 50/135 mg x3 (Artesunate/Amodiaquine 50/135 mg Tablet, 3 Tablets per Blister Pack)]]) -> 0 | AQ29: =SUM(Input_Database[[#This Row],[Chloroquine 150mg base Tablet (= Chloroquine Phosphate 250mg, or Chloroquine sulfate 200mg)]:[Chloroquine 50 mg base/5 mL Syrup, 60 mL]]) -> 0 | AR29: =SUM(Input_Database[[#This Row],[Primaquine 7.5 mg Tablet]:[Primaquine 15 mg Tablet]]) -> 0 | AS29: =SUM(Input_Database[[#This Row],[Quinine Sulfate 300 mg Tablet]:[Quinine Resorcine 400mg/4ml injectable]]) -> 0 | AT29: =SUM(Input_Database[[#This Row],[Long Lasting Insecticide Treated Nets (LLINs)]:[Long Lasting Insecticide Treated Hammock Net (LLIHN)]]) -> 0 | AU29: =SUM(Input_Database[[#This Row],[SP (Sulfadoxine/pyrimethamine 500mg/25mg, 3 tablets)]:[Dihydroartemisinin-Piperaquine (DHA-PPQ)]]) -> 0 | AV29: =Input_Database[[#This Row],[Total Confirmed Malaria Cases]] -> 11 | AW29: =SUM(Input_Database[[#This Row],[ALU 6x1 (Artemether/Lumefantrine 20/120 mg Tablet, 6x1 tablets per Blister Pack)]:[ALU 6x4 (Artemether/Lumefantrine 20/120 mg Tablet, 6x4 tablets per Blister Pack)]])+SUM(Input_Database[[#This Row],[ASAQ 100/270 mg x 3 (Artesunate/Amodiaquine 100/270 mg Tablet, 3 Tablets per Blister Pack)]:[ASAQ 50/135 mg x3 (Artesunate/Amodiaquine 50/135 mg Tablet, 3 Tablets per Blister Pack)]])+SUM(Input_Database[[#This Row],[Primaquine 7.5 mg Tablet]:[Primaquine 15 mg Tablet]])+SUM(Input_Database[[#This Row],[Dihydroartemisinin-Piperaquine (DHA-PPQ)]:[Pyronaridine-Artesunate]]) -> 5.5 | AX29: =IF(Input_Database[[#This Row],[Total Malaria Cases]]=0,"- ",Input_Database[[#This Row],[Total Treatments Issued]]/Input_Database[[#This Row],[Total Malaria Cases]]) -> 0.5 | AY29: =IF(Input_Database[[#This Row],[Total Severe Malaria Cases]]=0,"- ",Input_Database[[#This Row],[Total Artesunate]]/Input_Database[[#This Row],[Total Severe Malaria Cases]]) -> 0 | AZ29: =IF(Input_Database[[#This Row],[Total Suspected Malaria Cases Tested with mRDTs]]=0,"- ",Input_Database[[#This Row],[Total Malaria Cases]]/Input_Database[[#This Row],[Total Suspected Malaria Cases Tested with mRDTs]]) -> 1 | BA29: =IF(Input_Database[[#This Row],[Total Malaria Cases]]=0,"- ",Input_Database[[#This Row],[Total ALU]]/Input_Database[[#This Row],[Total Malaria Cases]]) -> 0.5 | BB29: =IF(Input_Database[[#This Row],[Total Monthly LLIN Clients]]=0,"- ",Input_Database[[#This Row],[Total LLINs]]/Input_Database[[#This Row],[Total Monthly LLIN Clients]]) -> 0 | BC29: =Input_Database[[#This Row],[Total Treatments Issued]]-Input_Database[[#This Row],[Total Malaria Cases]] -> -5.5 | BD29: =_xlfn.IFNA(INDEX(TreatmentAcceptableRatio[],MATCH(Input_Database[[#This Row],[Country]],TreatmentAcceptableRatio[Commodity],0),2),"- ") -> - | BE29: =IF(Input_Database[[#This Row],[Total Malaria Cases]]=0,"- ",Input_Database[[#This Row],[Total Treatments Issued]]/Input_Database[[#This Row],[Total Malaria Cases]]) -> 0.5 | BF29: =IFERROR(DATE(Input_Database[[#This Row],[Year]],IF(Input_Database[[#This Row],[Month]]="January",1,IF(Input_Database[[#This Row],[Month]]="February",2,IF(Input_Database[[#This Row],[Month]]="March",3,IF(Input_Database[[#This Row],[Month]]="April",4,IF(Input_Database[[#This Row],[Month]]="May",5,IF(Input_Database[[#This Row],[Month]]="June",6,IF(Input_Database[[#This Row],[Month]]="July",7,IF(Input_Database[[#This Row],[Month]]="August",8,IF(Input_Database[[#This Row],[Month]]="September",9,IF(Input_Database[[#This Row],[Month]]="October",10,IF(Input_Database[[#This Row],[Month]]="November",11,IF(Input_Database[[#This Row],[Month]]="December",12,"Error")))))))))))),1),"- ") -> 2024-04-01
A30: NIUE ** | B30: CENTRAL | C30: NEW | D30: THIRD PHARMACY | E30: MARCH | F30: 2020 | AL30: HERMES | AM30: 2024-04-04T14:12:30 | AN30: =SUM(Input_Database[[#This Row],[ALU 6x1 (Artemether/Lumefantrine 20/120 mg Tablet, 6x1 tablets per Blister Pack)]:[ALU 6x4 (Artemether/Lumefantrine 20/120 mg Tablet, 6x4 tablets per Blister Pack)]]) -> 0 | AO30: =SUM(Input_Database[[#This Row],[Artesunate (w/ 1 Amp NaHCO3 5% + 1 Amp NaCl 0.9%) 60 mg Vial, 1 Set]:[Artesunate suppository 100 mg (Rectal Artesunate)]]) -> 0 | AP30: =SUM(Input_Database[[#This Row],[ASAQ 100/270 mg x 3 (Artesunate/Amodiaquine 100/270 mg Tablet, 3 Tablets per Blister Pack)]:[ASAQ 50/135 mg x3 (Artesunate/Amodiaquine 50/135 mg Tablet, 3 Tablets per Blister Pack)]]) -> 0 | AQ30: =SUM(Input_Database[[#This Row],[Chloroquine 150mg base Tablet (= Chloroquine Phosphate 250mg, or Chloroquine sulfate 200mg)]:[Chloroquine 50 mg base/5 mL Syrup, 60 mL]]) -> 0 | AR30: =SUM(Input_Database[[#This Row],[Primaquine 7.5 mg Tablet]:[Primaquine 15 mg Tablet]]) -> 0 | AS30: =SUM(Input_Database[[#This Row],[Quinine Sulfate 300 mg Tablet]:[Quinine Resorcine 400mg/4ml injectable]]) -> 0 | AT30: =SUM(Input_Database[[#This Row],[Long Lasting Insecticide Treated Nets (LLINs)]:[Long Lasting Insecticide Treated Hammock Net (LLIHN)]]) -> 0 | AU30: =SUM(Input_Database[[#This Row],[SP (Sulfadoxine/pyrimethamine 500mg/25mg, 3 tablets)]:[Dihydroartemisinin-Piperaquine (DHA-PPQ)]]) -> 0 | AV30: =Input_Database[[#This Row],[Total Confirmed Malaria Cases]] -> 0 | AW30: =SUM(Input_Database[[#This Row],[ALU 6x1 (Artemether/Lumefantrine 20/120 mg Tablet, 6x1 tablets per Blister Pack)]:[ALU 6x4 (Artemether/Lumefantrine 20/120 mg Tablet, 6x4 tablets per Blister Pack)]])+SUM(Input_Database[[#This Row],[ASAQ 100/270 mg x 3 (Artesunate/Amodiaquine 100/270 mg Tablet, 3 Tablets per Blister Pack)]:[ASAQ 50/135 mg x3 (Artesunate/Amodiaquine 50/135 mg Tablet, 3 Tablets per Blister Pack)]])+SUM(Input_Database[[#This Row],[Primaquine 7.5 mg Tablet]:[Primaquine 15 mg Tablet]])+SUM(Input_Database[[#This Row],[Dihydroartemisinin-Piperaquine (DHA-PPQ)]:[Pyronaridine-Artesunate]]) -> 0 | AX30: =IF(Input_Database[[#This Row],[Total Malaria Cases]]=0,"- ",Input_Database[[#This Row],[Total Treatments Issued]]/Input_Database[[#This Row],[Total Malaria Cases]]) -> - | AY30: =IF(Input_Database[[#This Row],[Total Severe Malaria Cases]]=0,"- ",Input_Database[[#This Row],[Total Artesunate]]/Input_Database[[#This Row],[Total Severe Malaria Cases]]) -> - | AZ30: =IF(Input_Database[[#This Row],[Total Suspected Malaria Cases Tested with mRDTs]]=0,"- ",Input_Database[[#This Row],[Total Malaria Cases]]/Input_Database[[#This Row],[Total Suspected Malaria Cases Tested with mRDTs]]) -> - | BA30: =IF(Input_Database[[#This Row],[Total Malaria Cases]]=0,"- ",Input_Database[[#This Row],[Total ALU]]/Input_Database[[#This Row],[Total Malaria Cases]]) -> - | BB30: =IF(Input_Database[[#This Row],[Total Monthly LLIN Clients]]=0,"- ",Input_Database[[#This Row],[Total LLINs]]/Input_Database[[#This Row],[Total Monthly LLIN Clients]]) -> - | BC30: =Input_Database[[#This Row],[Total Treatments Issued]]-Input_Database[[#This Row],[Total Malaria Cases]] -> 0 | BD30: =_xlfn.IFNA(INDEX(TreatmentAcceptableRatio[],MATCH(Input_Database[[#This Row],[Country]],TreatmentAcceptableRatio[Commodity],0),2),"- ") -> - | BE30: =IF(Input_Database[[#This Row],[Total Malaria Cases]]=0,"- ",Input_Database[[#This Row],[Total Treatments Issued]]/Input_Database[[#This Row],[Total Malaria Cases]]) -> - | BF30: =IFERROR(DATE(Input_Database[[#This Row],[Year]],IF(Input_Database[[#This Row],[Month]]="January",1,IF(Input_Database[[#This Row],[Month]]="February",2,IF(Input_Database[[#This Row],[Month]]="March",3,IF(Input_Database[[#This Row],[Month]]="April",4,IF(Input_Database[[#This Row],[Month]]="May",5,IF(Input_Database[[#This Row],[Month]]="June",6,IF(Input_Database[[#This Row],[Month]]="July",7,IF(Input_Database[[#This Row],[Month]]="August",8,IF(Input_Database[[#This Row],[Month]]="September",9,IF(Input_Database[[#This Row],[Month]]="October",10,IF(Input_Database[[#This Row],[Month]]="November",11,IF(Input_Database[[#This Row],[Month]]="December",12,"Error")))))))))))),1),"- ") -> 2020-03-01
A31: BAHAMAS | B31: THANJA | C31: A | D31: TA | E31: JANUARY | F31: 2023 | G31: 350 | H31: 12 | I31: 12000 | J31: 120 | K31: 50 | L31: 100 | M31: 150 | N31: 200 | O31: 15000 | P31: 6 | Q31: 6 | R31: 8 | T31: 15 | U31: 10 | V31: 10 | W31: 15 | AE31: 3000 | AF31: 150 | AL31: NOSA IGB | AM31: 2024-04-04T22:07:27 | AN31: =SUM(Input_Database[[#This Row],[ALU 6x1 (Artemether/Lumefantrine 20/120 mg Tablet, 6x1 tablets per Blister Pack)]:[ALU 6x4 (Artemether/Lumefantrine 20/120 mg Tablet, 6x4 tablets per Blister Pack)]]) -> 500 | AO31: =SUM(Input_Database[[#This Row],[Artesunate (w/ 1 Amp NaHCO3 5% + 1 Amp NaCl 0.9%) 60 mg Vial, 1 Set]:[Artesunate suppository 100 mg (Rectal Artesunate)]]) -> 20 | AP31: =SUM(Input_Database[[#This Row],[ASAQ 100/270 mg x 3 (Artesunate/Amodiaquine 100/270 mg Tablet, 3 Tablets per Blister Pack)]:[ASAQ 50/135 mg x3 (Artesunate/Amodiaquine 50/135 mg Tablet, 3 Tablets per Blister Pack)]]) -> 50 | AQ31: =SUM(Input_Database[[#This Row],[Chloroquine 150mg base Tablet (= Chloroquine Phosphate 250mg, or Chloroquine sulfate 200mg)]:[Chloroquine 50 mg base/5 mL Syrup, 60 mL]]) -> 0 | AR31: =SUM(Input_Database[[#This Row],[Primaquine 7.5 mg Tablet]:[Primaquine 15 mg Tablet]]) -> 0 | AS31: =SUM(Input_Database[[#This Row],[Quinine Sulfate 300 mg Tablet]:[Quinine Resorcine 400mg/4ml injectable]]) -> 0 | AT31: =SUM(Input_Database[[#This Row],[Long Lasting Insecticide Treated Nets (LLINs)]:[Long Lasting Insecticide Treated Hammock Net (LLIHN)]]) -> 150 | AU31: =SUM(Input_Database[[#This Row],[SP (Sulfadoxine/pyrimethamine 500mg/25mg, 3 tablets)]:[Dihydroartemisinin-Piperaquine (DHA-PPQ)]]) -> 3150 | AV31: =Input_Database[[#This Row],[Total Confirmed Malaria Cases]] -> 350 | AW31: =SUM(Input_Database[[#This Row],[ALU 6x1 (Artemether/Lumefantrine 20/120 mg Tablet, 6x1 tablets per Blister Pack)]:[ALU 6x4 (Artemether/Lumefantrine 20/120 mg Tablet, 6x4 tablets per Blister Pack)]])+SUM(Input_Database[[#This Row],[ASAQ 100/270 mg x 3 (Artesunate/Amodiaquine 100/270 mg Tablet, 3 Tablets per Blister Pack)]:[ASAQ 50/135 mg x3 (Artesunate/Amodiaquine 50/135 mg Tablet, 3 Tablets per Blister Pack)]])+SUM(Input_Database[[#This Row],[Primaquine 7.5 mg Tablet]:[Primaquine 15 mg Tablet]])+SUM(Input_Database[[#This Row],[Dihydroartemisinin-Piperaquine (DHA-PPQ)]:[Pyronaridine-Artesunate]]) -> 550 | AX31: =IF(Input_Database[[#This Row],[Total Malaria Cases]]=0,"- ",Input_Database[[#This Row],[Total Treatments Issued]]/Input_Database[[#This Row],[Total Malaria Cases]]) -> 1.571428571 | AY31: =IF(Input_Database[[#This Row],[Total Severe Malaria Cases]]=0,"- ",Input_Database[[#This Row],[Total Artesunate]]/Input_Database[[#This Row],[Total Severe Malaria Cases]]) -> 1.666666667 | AZ31: =IF(Input_Database[[#This Row],[Total Suspected Malaria Cases Tested with mRDTs]]=0,"- ",Input_Database[[#This Row],[Total Malaria Cases]]/Input_Database[[#This Row],[Total Suspected Malaria Cases Tested with mRDTs]]) -> 0.02916666667 | BA31: =IF(Input_Database[[#This Row],[Total Malaria Cases]]=0,"- ",Input_Database[[#This Row],[Total ALU]]/Input_Database[[#This Row],[Total Malaria Cases]]) -> 1.428571429 | BB31: =IF(Input_Database[[#This Row],[Total Monthly LLIN Clients]]=0,"- ",Input_Database[[#This Row],[Total LLINs]]/Input_Database[[#This Row],[Total Monthly LLIN Clients]]) -> 1.25 | BC31: =Input_Database[[#This Row],[Total Treatments Issued]]-Input_Database[[#This Row],[Total Malaria Cases]] -> 200 | BD31: =_xlfn.IFNA(INDEX(TreatmentAcceptableRatio[],MATCH(Input_Database[[#This Row],[Country]],TreatmentAcceptableRatio[Commodity],0),2),"- ") -> - | BE31: =IF(Input_Database[[#This Row],[Total Malaria Cases]]=0,"- ",Input_Database[[#This Row],[Total Treatments Issued]]/Input_Database[[#This Row],[Total Malaria Cases]]) -> 1.571428571 | BF31: =IFERROR(DATE(Input_Database[[#This Row],[Year]],IF(Input_Database[[#This Row],[Month]]="January",1,IF(Input_Database[[#This Row],[Month]]="February",2,IF(Input_Database[[#This Row],[Month]]="March",3,IF(Input_Database[[#This Row],[Month]]="April",4,IF(Input_Database[[#This Row],[Month]]="May",5,IF(Input_Database[[#This Row],[Month]]="June",6,IF(Input_Database[[#This Row],[Month]]="July",7,IF(Input_Database[[#This Row],[Month]]="August",8,IF(Input_Database[[#This Row],[Month]]="September",9,IF(Input_Database[[#This Row],[Month]]="October",10,IF(Input_Database[[#This Row],[Month]]="November",11,IF(Input_Database[[#This Row],[Month]]="December",12,"Error")))))))))))),1),"- ") -> 2023-01-01
A32: BAHAMAS | B32: THANJA | C32: A | D32: TA | E32: FEBRUARY | F32: 2023 | G32: 225 | H32: 13 | I32: 20000 | J32: 124 | K32: 80 | L32: 70 | M32: 150 | N32: 55 | O32: 22000 | P32: 5 | Q32: 9 | R32: 4 | AE32: 4500 | AF32: 179 | AL32: NOSA IGB | AM32: 2024-04-04T22:10:23 | AN32: =SUM(Input_Database[[#This Row],[ALU 6x1 (Artemether/Lumefantrine 20/120 mg Tablet, 6x1 tablets per Blister Pack)]:[ALU 6x4 (Artemether/Lumefantrine 20/120 mg Tablet, 6x4 tablets per Blister Pack)]]) -> 355 | AO32: =SUM(Input_Database[[#This Row],[Artesunate (w/ 1 Amp NaHCO3 5% + 1 Amp NaCl 0.9%) 60 mg Vial, 1 Set]:[Artesunate suppository 100 mg (Rectal Artesunate)]]) -> 18 | AP32: =SUM(Input_Database[[#This Row],[ASAQ 100/270 mg x 3 (Artesunate/Amodiaquine 100/270 mg Tablet, 3 Tablets per Blister Pack)]:[ASAQ 50/135 mg x3 (Artesunate/Amodiaquine 50/135 mg Tablet, 3 Tablets per Blister Pack)]]) -> 0 | AQ32: =SUM(Input_Database[[#This Row],[Chloroquine 150mg base Tablet (= Chloroquine Phosphate 250mg, or Chloroquine sulfate 200mg)]:[Chloroquine 50 mg base/5 mL Syrup, 60 mL]]) -> 0 | AR32: =SUM(Input_Database[[#This Row],[Primaquine 7.5 mg Tablet]:[Primaquine 15 mg Tablet]]) -> 0 | AS32: =SUM(Input_Database[[#This Row],[Quinine Sulfate 300 mg Tablet]:[Quinine Resorcine 400mg/4ml injectable]]) -> 0 | AT32: =SUM(Input_Database[[#This Row],[Long Lasting Insecticide Treated Nets (LLINs)]:[Long Lasting Insecticide Treated Hammock Net (LLIHN)]]) -> 179 | AU32: =SUM(Input_Database[[#This Row],[SP (Sulfadoxine/pyrimethamine 500mg/25mg, 3 tablets)]:[Dihydroartemisinin-Piperaquine (DHA-PPQ)]]) -> 4679 | AV32: =Input_Database[[#This Row],[Total Confirmed Malaria Cases]] -> 225 | AW32: =SUM(Input_Database[[#This Row],[ALU 6x1 (Artemether/Lumefantrine 20/120 mg Tablet, 6x1 tablets per Blister Pack)]:[ALU 6x4 (Artemether/Lumefantrine 20/120 mg Tablet, 6x4 tablets per Blister Pack)]])+SUM(Input_Database[[#This Row],[ASAQ 100/270 mg x 3 (Artesunate/Amodiaquine 100/270 mg Tablet, 3 Tablets per Blister Pack)]:[ASAQ 50/135 mg x3 (Artesunate/Amodiaquine 50/135 mg Tablet, 3 Tablets per Blister Pack)]])+SUM(Input_Database[[#This Row],[Primaquine 7.5 mg Tablet]:[Primaquine 15 mg Tablet]])+SUM(Input_Database[[#This Row],[Dihydroartemisinin-Piperaquine (DHA-PPQ)]:[Pyronaridine-Artesunate]]) -> 355 | AX32: =IF(Input_Database[[#This Row],[Total Malaria Cases]]=0,"- ",Input_Database[[#This Row],[Total Treatments Issued]]/Input_Database[[#This Row],[Total Malaria Cases]]) -> 1.577777778 | AY32: =IF(Input_Database[[#This Row],[Total Severe Malaria Cases]]=0,"- ",Input_Database[[#This Row],[Total Artesunate]]/Input_Database[[#This Row],[Total Severe Malaria Cases]]) -> 1.384615385 | AZ32: =IF(Input_Database[[#This Row],[Total Suspected Malaria Cases Tested with mRDTs]]=0,"- ",Input_Database[[#This Row],[Total Malaria Cases]]/Input_Database[[#This Row],[Total Suspected Malaria Cases Tested with mRDTs]]) -> 0.01125 | BA32: =IF(Input_Database[[#This Row],[Total Malaria Cases]]=0,"- ",Input_Database[[#This Row],[Total ALU]]/Input_Database[[#This Row],[Total Malaria Cases]]) -> 1.577777778 | BB32: =IF(Input_Database[[#This Row],[Total Monthly LLIN Clients]]=0,"- ",Input_Database[[#This Row],[Total LLINs]]/Input_Database[[#This Row],[Total Monthly LLIN Clients]]) -> 1.443548387 | BC32: =Input_Database[[#This Row],[Total Treatments Issued]]-Input_Database[[#This Row],[Total Malaria Cases]] -> 130 | BD32: =_xlfn.IFNA(INDEX(TreatmentAcceptableRatio[],MATCH(Input_Database[[#This Row],[Country]],TreatmentAcceptableRatio[Commodity],0),2),"- ") -> - | BE32: =IF(Input_Database[[#This Row],[Total Malaria Cases]]=0,"- ",Input_Database[[#This Row],[Total Treatments Issued]]/Input_Database[[#This Row],[Total Malaria Cases]]) -> 1.577777778 | BF32: =IFERROR(DATE(Input_Database[[#This Row],[Year]],IF(Input_Database[[#This Row],[Month]]="January",1,IF(Input_Database[[#This Row],[Month]]="February",2,IF(Input_Database[[#This Row],[Month]]="March",3,IF(Input_Database[[#This Row],[Month]]="April",4,IF(Input_Database[[#This Row],[Month]]="May",5,IF(Input_Database[[#This Row],[Month]]="June",6,IF(Input_Database[[#This Row],[Month]]="July",7,IF(Input_Database[[#This Row],[Month]]="August",8,IF(Input_Database[[#This Row],[Month]]="September",9,IF(Input_Database[[#This Row],[Month]]="October",10,IF(Input_Database[[#This Row],[Month]]="November",11,IF(Input_Database[[#This Row],[Month]]="December",12,"Error")))))))))))),1),"- ") -> 2023-02-01
A33: BAHAMAS | B33: LANSA | C33: C | D33: LC | E33: JANUARY | F33: 2023 | G33: 176 | H33: 8 | I33: 17890 | J33: 690 | K33: 100 | L33: 120 | M33: 25 | N33: 55 | O33: 23000 | P33: 5 | Q33: 4 | R33: 7 | T33: 15 | U33: 10 | V33: 15 | W33: 10 | AE33: 4500 | AF33: 455 | AL33: LANRE AHM | AM33: 2024-04-04T22:13:03 | AN33: =SUM(Input_Database[[#This Row],[ALU 6x1 (Artemether/Lumefantrine 20/120 mg Tablet, 6x1 tablets per Blister Pack)]:[ALU 6x4 (Artemether/Lumefantrine 20/120 mg Tablet, 6x4 tablets per Blister Pack)]]) -> 300 | AO33: =SUM(Input_Database[[#This Row],[Artesunate (w/ 1 Amp NaHCO3 5% + 1 Amp NaCl 0.9%) 60 mg Vial, 1 Set]:[Artesunate suppository 100 mg (Rectal Artesunate)]]) -> 16 | AP33: =SUM(Input_Database[[#This Row],[ASAQ 100/270 mg x 3 (Artesunate/Amodiaquine 100/270 mg Tablet, 3 Tablets per Blister Pack)]:[ASAQ 50/135 mg x3 (Artesunate/Amodiaquine 50/135 mg Tablet, 3 Tablets per Blister Pack)]]) -> 50 | AQ33: =SUM(Input_Database[[#This Row],[Chloroquine 150mg base Tablet (= Chloroquine Phosphate 250mg, or Chloroquine sulfate 200mg)]:[Chloroquine 50 mg base/5 mL Syrup, 60 mL]]) -> 0 | AR33: =SUM(Input_Database[[#This Row],[Primaquine 7.5 mg Tablet]:[Primaquine 15 mg Tablet]]) -> 0 | AS33: =SUM(Input_Database[[#This Row],[Quinine Sulfate 300 mg Tablet]:[Quinine Resorcine 400mg/4ml injectable]]) -> 0 | AT33: =SUM(Input_Database[[#This Row],[Long Lasting Insecticide Treated Nets (LLINs)]:[Long Lasting Insecticide Treated Hammock Net (LLIHN)]]) -> 455 | AU33: =SUM(Input_Database[[#This Row],[SP (Sulfadoxine/pyrimethamine 500mg/25mg, 3 tablets)]:[Dihydroartemisinin-Piperaquine (DHA-PPQ)]]) -> 4955 | AV33: =Input_Database[[#This Row],[Total Confirmed Malaria Cases]] -> 176 | AW33: =SUM(Input_Database[[#This Row],[ALU 6x1 (Artemether/Lumefantrine 20/120 mg Tablet, 6x1 tablets per Blister Pack)]:[ALU 6x4 (Artemether/Lumefantrine 20/120 mg Tablet, 6x4 tablets per Blister Pack)]])+SUM(Input_Database[[#This Row],[ASAQ 100/270 mg x 3 (Artesunate/Amodiaquine 100/270 mg Tablet, 3 Tablets per Blister Pack)]:[ASAQ 50/135 mg x3 (Artesunate/Amodiaquine 50/135 mg Tablet, 3 Tablets per Blister Pack)]])+SUM(Input_Database[[#This Row],[Primaquine 7.5 mg Tablet]:[Primaquine 15 mg Tablet]])+SUM(Input_Database[[#This Row],[Dihydroartemisinin-Piperaquine (DHA-PPQ)]:[Pyronaridine-Artesunate]]) -> 350 | AX33: =IF(Input_Database[[#This Row],[Total Malaria Cases]]=0,"- ",Input_Database[[#This Row],[Total Treatments Issued]]/Input_Database[[#This Row],[Total Malaria Cases]]) -> 1.988636364 | AY33: =IF(Input_Database[[#This Row],[Total Severe Malaria Cases]]=0,"- ",Input_Database[[#This Row],[Total Artesunate]]/Input_Database[[#This Row],[Total Severe Malaria Cases]]) -> 2 | AZ33: =IF(Input_Database[[#This Row],[Total Suspected Malaria Cases Tested with mRDTs]]=0,"- ",Input_Database[[#This Row],[Total Malaria Cases]]/Input_Database[[#This Row],[Total Suspected Malaria Cases Tested with mRDTs]]) -> 0.009837898267 | BA33: =IF(Input_Database[[#This Row],[Total Malaria Cases]]=0,"- ",Input_Database[[#This Row],[Total ALU]]/Input_Database[[#This Row],[Total Malaria Cases]]) -> 1.704545455 | BB33: =IF(Input_Database[[#This Row],[Total Monthly LLIN Clients]]=0,"- ",Input_Database[[#This Row],[Total LLINs]]/Input_Database[[#This Row],[Total Monthly LLIN Clients]]) -> 0.6594202899 | BC33: =Input_Database[[#This Row],[Total Treatments Issued]]-Input_Database[[#This Row],[Total Malaria Cases]] -> 174 | BD33: =_xlfn.IFNA(INDEX(TreatmentAcceptableRatio[],MATCH(Input_Database[[#This Row],[Country]],TreatmentAcceptableRatio[Commodity],0),2),"- ") -> - | BE33: =IF(Input_Database[[#This Row],[Total Malaria Cases]]=0,"- ",Input_Database[[#This Row],[Total Treatments Issued]]/Input_Database[[#This Row],[Total Malaria Cases]]) -> 1.988636364 | BF33: =IFERROR(DATE(Input_Database[[#This Row],[Year]],IF(Input_Database[[#This Row],[Month]]="January",1,IF(Input_Database[[#This Row],[Month]]="February",2,IF(Input_Database[[#This Row],[Month]]="March",3,IF(Input_Database[[#This Row],[Month]]="April",4,IF(Input_Database[[#This Row],[Month]]="May",5,IF(Input_Database[[#This Row],[Month]]="June",6,IF(Input_Database[[#This Row],[Month]]="July",7,IF(Input_Database[[#This Row],[Month]]="August",8,IF(Input_Database[[#This Row],[Month]]="September",9,IF(Input_Database[[#This Row],[Month]]="October",10,IF(Input_Database[[#This Row],[Month]]="November",11,IF(Input_Database[[#This Row],[Month]]="December",12,"Error")))))))))))),1),"- ") -> 2023-01-01
A34: BAHAMAS | B34: LANSA | C34: C | D34: LC | E34: FEBRUARY | F34: 2023 | G34: 4300 | H34: 35 | I34: 16700 | J34: 430 | K34: 1000 | L34: 1500 | M34: 2000 | N34: 500 | O34: 18500 | P34: 20 | Q34: 16 | R34: 5 | T34: 75 | U34: 200 | V34: 50 | W34: 25 | AE34: 7800 | AF34: 560 | AG34: 120 | AL34: LANRE AHM | AM34: 2024-04-04T22:16:03 | AN34: =SUM(Input_Database[[#This Row],[ALU 6x1 (Artemether/Lumefantrine 20/120 mg Tablet, 6x1 tablets per Blister Pack)]:[ALU 6x4 (Artemether/Lumefantrine 20/120 mg Tablet, 6x4 tablets per Blister Pack)]]) -> 5000 | AO34: =SUM(Input_Database[[#This Row],[Artesunate (w/ 1 Amp NaHCO3 5% + 1 Amp NaCl 0.9%) 60 mg Vial, 1 Set]:[Artesunate suppository 100 mg (Rectal Artesunate)]]) -> 41 | AP34: =SUM(Input_Database[[#This Row],[ASAQ 100/270 mg x 3 (Artesunate/Amodiaquine 100/270 mg Tablet, 3 Tablets per Blister Pack)]:[ASAQ 50/135 mg x3 (Artesunate/Amodiaquine 50/135 mg Tablet, 3 Tablets per Blister Pack)]]) -> 350 | AQ34: =SUM(Input_Database[[#This Row],[Chloroquine 150mg base Tablet (= Chloroquine Phosphate 250mg, or Chloroquine sulfate 200mg)]:[Chloroquine 50 mg base/5 mL Syrup, 60 mL]]) -> 0 | AR34: =SUM(Input_Database[[#This Row],[Primaquine 7.5 mg Tablet]:[Primaquine 15 mg Tablet]]) -> 0 | AS34: =SUM(Input_Database[[#This Row],[Quinine Sulfate 300 mg Tablet]:[Quinine Resorcine 400mg/4ml injectable]]) -> 0 | AT34: =SUM(Input_Database[[#This Row],[Long Lasting Insecticide Treated Nets (LLINs)]:[Long Lasting Insecticide Treated Hammock Net (LLIHN)]]) -> 680 | AU34: =SUM(Input_Database[[#This Row],[SP (Sulfadoxine/pyrimethamine 500mg/25mg, 3 tablets)]:[Dihydroartemisinin-Piperaquine (DHA-PPQ)]]) -> 8480 | AV34: =Input_Database[[#This Row],[Total Confirmed Malaria Cases]] -> 4300 | AW34: =SUM(Input_Database[[#This Row],[ALU 6x1 (Artemether/Lumefantrine 20/120 mg Tablet, 6x1 tablets per Blister Pack)]:[ALU 6x4 (Artemether/Lumefantrine 20/120 mg Tablet, 6x4 tablets per Blister Pack)]])+SUM(Input_Database[[#This Row],[ASAQ 100/270 mg x 3 (Artesunate/Amodiaquine 100/270 mg Tablet, 3 Tablets per Blister Pack)]:[ASAQ 50/135 mg x3 (Artesunate/Amodiaquine 50/135 mg Tablet, 3 Tablets per Blister Pack)]])+SUM(Input_Database[[#This Row],[Primaquine 7.5 mg Tablet]:[Primaquine 15 mg Tablet]])+SUM(Input_Database[[#This Row],[Dihydroartemisinin-Piperaquine (DHA-PPQ)]:[Pyronaridine-Artesunate]]) -> 5350 | AX34: =IF(Input_Database[[#This Row],[Total Malaria Cases]]=0,"- ",Input_Database[[#This Row],[Total Treatments Issued]]/Input_Database[[#This Row],[Total Malaria Cases]]) -> 1.244186047 | AY34: =IF(Input_Database[[#This Row],[Total Severe Malaria Cases]]=0,"- ",Input_Database[[#This Row],[Total Artesunate]]/Input_Database[[#This Row],[Total Severe Malaria Cases]]) -> 1.171428571 | AZ34: =IF(Input_Database[[#This Row],[Total Suspected Malaria Cases Tested with mRDTs]]=0,"- ",Input_Database[[#This Row],[Total Malaria Cases]]/Input_Database[[#This Row],[Total Suspected Malaria Cases Tested with mRDTs]]) -> 0.2574850299 | BA34: =IF(Input_Database[[#This Row],[Total Malaria Cases]]=0,"- ",Input_Database[[#This Row],[Total ALU]]/Input_Database[[#This Row],[Total Malaria Cases]]) -> 1.162790698 | BB34: =IF(Input_Database[[#This Row],[Total Monthly LLIN Clients]]=0,"- ",Input_Database[[#This Row],[Total LLINs]]/Input_Database[[#This Row],[Total Monthly LLIN Clients]]) -> 1.581395349 | BC34: =Input_Database[[#This Row],[Total Treatments Issued]]-Input_Database[[#This Row],[Total Malaria Cases]] -> 1050 | BD34: =_xlfn.IFNA(INDEX(TreatmentAcceptableRatio[],MATCH(Input_Database[[#This Row],[Country]],TreatmentAcceptableRatio[Commodity],0),2),"- ") -> - | BE34: =IF(Input_Database[[#This Row],[Total Malaria Cases]]=0,"- ",Input_Database[[#This Row],[Total Treatments Issued]]/Input_Database[[#This Row],[Total Malaria Cases]]) -> 1.244186047 | BF34: =IFERROR(DATE(Input_Database[[#This Row],[Year]],IF(Input_Database[[#This Row],[Month]]="January",1,IF(Input_Database[[#This Row],[Month]]="February",2,IF(Input_Database[[#This Row],[Month]]="March",3,IF(Input_Database[[#This Row],[Month]]="April",4,IF(Input_Database[[#This Row],[Month]]="May",5,IF(Input_Database[[#This Row],[Month]]="June",6,IF(Input_Database[[#This Row],[Month]]="July",7,IF(Input_Database[[#This Row],[Month]]="August",8,IF(Input_Database[[#This Row],[Month]]="September",9,IF(Input_Database[[#This Row],[Month]]="October",10,IF(Input_Database[[#This Row],[Month]]="November",11,IF(Input_Database[[#This Row],[Month]]="December",12,"Error")))))))))))),1),"- ") -> 2023-02-01

Sheet Facility
A1: COUNTRY | B1: REGION/PROVINCE/STATE | C1: DISTRICT | D1: FACILITY | E1: DATA COLLECTOR 1 | F1: DATA COLLECTOR 2 | G1: DATA COLLECTOR 3
A2: NIUE ** | B2: EAST | C2: NEW | D2: PHARMACY | E2: STEVE | F2: John Smith | G2: Clara Red
A3: NIUE ** | B3: EAST | C3: NEW | D3: OTHER PHARMACY | E3: JOHN | F3: Tim Burton | G3: Steven Spiellberg
A4: NIUE ** | B4: EAST | C4: NEW | D4: THIRD PHARMACY | E4: ISRAEL
A5: NIUE ** | B5: EAST | C5: NEW | D5: PHARMACY | E5: ELIZABETH
A6: NIUE ** | B6: EAST | C6: NEW | D6: OTHER PHARMACY | E6: TIM
A7: NIUE ** | B7: CENTRAL | C7: NEW | D7: THIRD PHARMACY | E7: JOHN
A8: NIUE ** | B8: WEST | C8: NEW | D8: PHARMACY | E8: GELF
A9: NIUE ** | B9: WEST | C9: NEW | D9: OTHER PHARMACY | E9: JOSE
A10: NIUE ** | B10: CENTRAL | C10: NEW | D10: THIRD PHARMACY | E10: HERMES
A11: NIUE ** | B11: WEST | C11: NEW | D11: PHARMACY | E11: STEVE
A12: NIUE ** | B12: WEST | C12: NEW | D12: OTHER PHARMACY | E12: JOHN
A13: NIUE ** | B13: CENTRAL | C13: NEW | D13: THIRD PHARMACY | E13: ISRAEL | F13: AA | G13: BB
A14: NIUE ** | B14: SOUTH | C14: NEW | D14: PHARMACY | E14: ELIZABETH | F14: CC | G14: DD
A15: NIUE ** | B15: SOUTH | C15: NEW | D15: OTHER PHARMACY | E15: TIM
A16: NIUE ** | B16: SOUTH | C16: NEW | D16: THIRD PHARMACY | E16: JOHN
A17: NIUE ** | B17: SOUTH | C17: NEW | D17: PHARMACY | E17: GELF
A18: NIUE ** | B18: SOUTH | C18: NEW | D18: OTHER PHARMACY | E18: JOSE
A19: NIUE ** | B19: SOUTH | C19: NEW | D19: THIRD PHARMACY | E19: HERMES
A20: NIUE ** | B20: SOUTH | C20: NEW | D20: PHARMACY | E20: STEVE
A21: NIUE ** | B21: SOUTH | C21: NEW | D21: OTHER PHARMACY | E21: JOHN
A22: NIUE ** | B22: SOUTH | C22: NEW | D22: THIRD PHARMACY | E22: ISRAEL
A23: NIUE ** | B23: SOUTH | C23: NEW | D23: PHARMACY | E23: ELIZABETH
A24: NIUE ** | B24: SOUTH | C24: NEW | D24: OTHER PHARMACY | E24: TIM
A25: NIUE ** | B25: SOUTH | C25: NEW | D25: THIRD PHARMACY | E25: JOHN
A26: NIUE ** | B26: SOUTH | C26: NEW | D26: PHARMACY | E26: GELF
A27: NIUE ** | B27: SOUTH | C27: NEW | D27: OTHER PHARMACY | E27: JOSE
A28: NIUE ** | B28: SOUTH | C28: NEW | D28: THIRD PHARMACY | E28: HERMES
A29: NIUE ** | B29: SOUTH | C29: NEW | D29: PHARMACY | E29: STEVE
A30: NIUE ** | B30: SOUTH | C30: NEW | D30: OTHER PHARMACY | E30: JOHN
A31: NIUE ** | B31: SOUTH | C31: NEW | D31: THIRD PHARMACY | E31: ISRAEL
A32: NIUE ** | B32: SOUTH | C32: NEW | D32: PHARMACY | E32: ELIZABETH
A33: NIUE ** | B33: SOUTH | C33: NEW | D33: OTHER PHARMACY | E33: TIM
A34: LIBERIA | B34: SOUTH | C34: NEW | D34: THIRD PHARMACY | E34: JOHN
A35: MOZAMBIQUE | B35: SOUTH | C35: NEW | D35: THIRD PHARMACY | E35: JOHN
A36: NIGER | B36: SOUTH | C36: NEW | D36: THIRD PHARMACY | E36: JOHN
A37: ZAMBIA | B37: SOUTH | C37: NEW | D37: THIRD PHARMACY | E37: JOHN
A38: BENIN | B38: SOUTH | C38: NEW | D38: THIRD PHARMACY | E38: JOHN
A39: MALAWI | B39: SOUTH | C39: NEW | D39: THIRD PHARMACY | E39: JOHN
A40: TANZANIA | B40: SOUTHEAST | C40: NEW | D40: THIRD PHARMACY | E40: JOHN
A41: ZAMBIA | B41: NORTH | C41: NEW | D41: FIRST PHARMACY | E41: JOE
A42: ZAMBIA | B42: NORTH | C42: NEW | D42: THIRD PHARMACY | E42: JIM
A43: ZAMBIA | B43: SOUTH | C43: NEW | D43: FIRST PHARMACY | E43: BOB
A44: BAHAMAS | B44: THANJA | C44: A | D44: TA | E44: NOSA IGB
A45: BAHAMAS | B45: THANJA | C45: B | D45: TB | E45: NOSA IGB
A46: BAHAMAS | B46: LANSA | C46: C | D46: LC | E46: LANRE AHM
A47: BAHAMAS | B47: LANSA | C47: D | D47: LD | E47: LANRE AHM
A48: GUATEMALA | B48: BOOM | C48: C | D48: C | E48: STEVE

Sheet ActAcceptable
A1: Commodity | B1: ActAcceptableRatio
A2: ACT | B2: 1.15
A3: mRDT | B3: 1.15
A4: LLIN | B4: 1.15
A5: Severe Malaria | B5: 1.15
A6: Other | B6: 1.2

Sheet Total Malaria Cases
A1: Analysis Tools
A2: Dashboard
A4: Total Malaria Cases
A6: Total Monthly Treatments Issued
A8: Total Monthly ACTs Consumed/Total Malaria Cases
A10: Total Monthly Treatments/Total Malaria Cases
A12: Severe Malaria Consumed/Severe Services
A14: Total Monthly Malaria Cases/Total Suspected Malaria Cases Tested with mRDTs
A16: Total Monthly LLINs Distributed/Total Monthly LLIN Clients
C42: Country | D42: BAHAMAS
C43: Region/Province/State | D43: THANJA
C44: District | D44: (All)
C46: Row Labels | D46: Sum of Total Malaria Cases
C47: 2023-01-01 | D47: 350
C48: 2023-02-01 | D48: 225
C49: Grand Total | D49: 575

Sheet Total Monthly Treatments Issued
A1: Analysis Tools
A2: Dashboard
A4: Total Malaria Cases
A6: Total Monthly Treatments Issued
A8: Total Monthly ACTs Consumed/Total Malaria Cases
A10: Total Monthly Treatments/Total Malaria Cases
A12: Severe Malaria Consumed/Severe Services
A14: Total Monthly Malaria Cases/Total Suspected Malaria Cases Tested with mRDTs
A16: Total Monthly LLINs Distributed/Total Monthly LLIN Clients
C38: Country | D38: BAHAMAS
C39: Region/Province/State | D39: THANJA
C40: District | D40: (All)
C42: Row Labels | D42: Sum of Total Treatments Issued
C43: 2023-01-01 | D43: 550
C44: 2023-02-01 | D44: 355
C45: Grand Total | D45: 905

Sheet All ACTs vs Malaria Cases
A1: Analysis Tools
A2: Dashboard
A4: Total Malaria Cases
A6: Total Monthly Treatments Issued
A8: Total Monthly ACTs Consumed/Total Malaria Cases
A10: Total Monthly Treatments/Total Malaria Cases
A12: Severe Malaria Consumed/Severe Services
A14: Total Monthly Malaria Cases/Total Suspected Malaria Cases Tested with mRDTs
A16: Total Monthly LLINs Distributed/Total Monthly LLIN Clients
C38: Country | D38: BAHAMAS
C39: Region/Province/State | D39: THANJA
C40: District | D40: (All)
C42: Row Labels | D42: Sum of Total Treatments Issued | E42: Sum of Total Malaria Cases | F42: Ratio of Treatments to Cases
C43: 2023-01-01 | D43: 550 | E43: 350 | F43: 1.571428571
C44: 2023-02-01 | D44: 355 | E44: 225 | F44: 1.577777778
C45: Grand Total | D45: 905 | E45: 575 | F45: 1.573913043

Sheet ALU Only vs Malaria Cases
A1: Analysis Tools
A2: Dashboard
A4: Total Malaria Cases
A6: Total Monthly Treatments Issued
A8: Total Monthly ACTs Consumed/Total Malaria Cases
A10: Total Monthly Treatments/Total Malaria Cases
A12: Severe Malaria Consumed/Severe Services
A14: Total Monthly Malaria Cases/Total Suspected Malaria Cases Tested with mRDTs
A16: Total Monthly LLINs Distributed/Total Monthly LLIN Clients
C38: Country | D38: BAHAMAS
C39: Region/Province/State | D39: THANJA
C40: District | D40: (All)
C42: Row Labels | D42: Sum of Total ALU | E42: Sum of Total Malaria Cases | F42: Ratio of ALU to Cases
C43: 2023-01-01 | D43: 500 | E43: 350 | F43: 1.428571429
C44: 2023-02-01 | D44: 355 | E44: 225 | F44: 1.577777778
C45: Grand Total | D45: 855 | E45: 575 | F45: 1.486956522

Sheet Sev Treatments vs Sev Cases
A1: Analysis Tools
A2: Dashboard
A4: Total Malaria Cases
A6: Total Monthly Treatments Issued
A8: Total Monthly ACTs Consumed/Total Malaria Cases
A10: Total Monthly Treatments/Total Malaria Cases
A12: Severe Malaria Consumed/Severe Services
A14: Total Monthly Malaria Cases/Total Suspected Malaria Cases Tested with mRDTs
A16: Total Monthly LLINs Distributed/Total Monthly LLIN Clients
C38: Country | D38: BAHAMAS
C39: Region/Province/State | D39: THANJA
C40: District | D40: (All)
C42: Row Labels | D42: Sum of Total Artesunate | E42: Sum of Total Severe Malaria Cases | F42: Ratio of Severe Treatments to Severe Cases
C43: 2023-01-01 | D43: 20 | E43: 12 | F43: 1.666666667
C44: 2023-02-01 | D44: 18 | E44: 13 | F44: 1.384615385
C45: Grand Total | D45: 38 | E45: 25 | F45: 1.52

Sheet mRDTs vs Malaria Testing
A1: Analysis Tools
A2: Dashboard
A4: Total Malaria Cases
A6: Total Monthly Treatments Issued
A8: Total Monthly ACTs Consumed/Total Malaria Cases
A10: Total Monthly Treatments/Total Malaria Cases
A12: Severe Malaria Consumed/Severe Services
A14: Total Monthly Malaria Cases/Total Suspected Malaria Cases Tested with mRDTs
A16: Total Monthly LLINs Distributed/Total Monthly LLIN Clients
C38: Country | D38: BAHAMAS
C39: Region/Province/State | D39: THANJA
C40: District | D40: (All)
C42: Row Labels | D42: Sum of mRDT | E42: Sum of Total Suspected Malaria Cases Tested with mRDTs | F42: Ratio of Malaria Tests (mRDTs) to Tested Cases
C43: 2023-01-01 | D43: 15000 | E43: 12000 | F43: 1.25
C44: 2023-02-01 | D44: 22000 | E44: 20000 | F44: 1.1
C45: Grand Total | D45: 37000 | E45: 32000 | F45: 1.15625

Sheet LLINs
A1: Analysis Tools
A2: Dashboard
A4: Total Malaria Cases
A6: Total Monthly Treatments Issued
A8: Total Monthly ACTs Consumed/Total Malaria Cases
A10: Total Monthly Treatments/Total Malaria Cases
A12: Severe Malaria Consumed/Severe Services
A14: Total Monthly Malaria Cases/Total Suspected Malaria Cases Tested with mRDTs
A16: Total Monthly LLINs Distributed/Total Monthly LLIN Clients
C38: Country | D38: BAHAMAS
C39: Region/Province/State | D39: THANJA
C40: District | D40: (All)
C42: Row Labels | D42: Sum of Total LLINs | E42: Sum of Total Monthly LLIN Clients | F42: Ratio of LLINs to Clients
C43: 2023-01-01 | D43: 150 | E43: 120 | F43: 1.25
C44: 2023-02-01 | D44: 179 | E44: 124 | F44: 1.443548387
C45: Grand Total | D45: 329 | E45: 244 | F45: 1.348360656

Sheet Form Glossary
A1: Term | B1: Description | C1: Examples | D1: Common Mistakes
A2: Consumption | B2: Refers broadly to any form of commodity utilization whether dispensed or issued or in some cases distribution data when used as a proxy for commodities issued or dispensed | C2: 1000 treatments of AL 6x1 were dispensed during the previous month.
A3: Service Data | B3: Service data refers broadly to quantitative data on services provided ; hence for the purposes of this process malaria services data will refer to malaria cases treated (ACTs and Severe malaria medicines) or people tested for malaria(MRDTs) or number of recipients (LLINs). | C3: There were 100 people tested for malaria using mRDTs during the previous month.
A4: Dispensing | B4: This is when a health care worker gives the prescribed medicine to a patient. This occurs normally at the treating facility level (health care service delivery points) at the dispensaries/pharmacies, or consultation rooms | C4: A patient received medicines from a health care worker
A5: Issuance | B5: This is the act of on supply chain actor issuing another supply chain actor a given amount of product. Note that issuance often means the issuing of commodities from “one hand to another’ and distribution refers to commodity movement between supply chain levels or several supply chain facilities. | C5: Medicines were issued from the pharmacy stores (stock cards) to the dispensaries (no records)
A6: Prescription | B6: This is the patients’ treatments/medicines along with patients’ diagnosis. | C6: Patients’ treatments and diagnosis were documented in register books
A7: Accetpable Discrepancy Ratio | B7: The ADR is a pre-defined acceptable ratio comparing tha amount of commodities consumed vs the amount of malaria services provided. This is set prior to a site visit and is used as a standard of performance. | C7: The the site visit team used the ADR as a standard of performance when reviewing the site's performance.
A8: Deviation ratio | B8: This is a ratio comparing the sites performance against the ADR for a particular commodity. When the sites ratio of commodities consumed to malaria services provided is calculated it is then compared against the performance standard of the ADR. The DR is then used to help guide improvement discussions. | C8: The sites team compared the DR to the ADR and used this comparison in discussions for identifying improvement actions.

Sheet Data Flow Chart

Sheet Action Plan Template
A1: Date | B1: Action Number | C1: Site Name | D1: Site Area | E1: Action Identified | F1: Proposed Solution | G1: Proposed Timeline | H1: Responsible Party

Sheet Drop Down (hidden)
A1: COUNTRY
A2: NIUE **
A3: LIBERIA
A4: MOZAMBIQUE
A5: NIGER
A6: ZAMBIA
A7: BENIN
A8: MALAWI
A9: TANZANIA
A10: BAHAMAS
A11: GUATEMALA

Sheet Dropdown (hidden)
A1: Countries (eng) | B1: Upper
A2: Afghanistan | B2: =UPPER(A2) -> AFGHANISTAN
A3: Albania | B3: ALBANIA
A4: Algeria | B4: ALGERIA
A5: Andorra | B5: ANDORRA
A6: Angola | B6: ANGOLA
A7: Antigua and Barbuda | B7: ANTIGUA AND BARBUDA
A8: Argentina | B8: ARGENTINA
A9: Armenia | B9: ARMENIA
A10: Australia | B10: AUSTRALIA
A11: Austria | B11: AUSTRIA
A12: Azerbaijan | B12: AZERBAIJAN
A13: Bahamas | B13: BAHAMAS
A14: Bahrain | B14: BAHRAIN
A15: Bangladesh | B15: BANGLADESH
A16: Barbados | B16: BARBADOS
A17: Belarus | B17: BELARUS
A18: Belgium | B18: BELGIUM
A19: Belize | B19: BELIZE
A20: Benin | B20: BENIN
A21: Bhutan | B21: BHUTAN
A22: Bolivia | B22: BOLIVIA
A23: Bosnia and Herzegovina | B23: BOSNIA AND HERZEGOVINA
A24: Botswana | B24: BOTSWANA
A25: Brazil | B25: BRAZIL
A26: Brunei Darussalam | B26: BRUNEI DARUSSALAM
A27: Bulgaria | B27: BULGARIA
A28: Burkina Faso | B28: BURKINA FASO
A29: Burundi | B29: BURUNDI
A30: Cabo Verde | B30: CABO VERDE
A31: Cambodia | B31: CAMBODIA
A32: Cameroon | B32: CAMEROON
A33: Canada | B33: CANADA
A34: Central African Republic | B34: =UPPER(A34) -> CENTRAL AFRICAN REPUBLIC
A35: Chad | B35: CHAD
A36: Chile | B36: CHILE
A37: China | B37: CHINA
A38: Colombia | B38: COLOMBIA
A39: Comoros | B39: COMOROS
A40: Congo | B40: CONGO
A41: Cook Islands ** | B41: COOK ISLANDS **
A42: Costa Rica | B42: COSTA RICA
A43: Côte d'Ivoire | B43: CÔTE D'IVOIRE
A44: Croatia | B44: CROATIA
A45: Cuba | B45: CUBA
A46: Cyprus | B46: CYPRUS
A47: Czechia | B47: CZECHIA
A48: Democratic People's Republic of Korea | B48: DEMOCRATIC PEOPLE'S REPUBLIC OF KOREA
A49: Democratic Republic of the Congo | B49: DEMOCRATIC REPUBLIC OF THE CONGO
A50: Denmark | B50: DENMARK
A51: Djibouti | B51: DJIBOUTI
A52: Dominica | B52: DOMINICA
A53: Dominican Republic | B53: DOMINICAN REPUBLIC
A54: Ecuador | B54: ECUADOR
A55: Egypt | B55: EGYPT
A56: El Salvador | B56: EL SALVADOR
A57: Equatorial Guinea | B57: EQUATORIAL GUINEA
A58: Eritrea | B58: ERITREA
A59: Estonia | B59: ESTONIA
A60: Eswatini | B60: ESWATINI
A61: Ethiopia | B61: ETHIOPIA
A62: Fiji | B62: FIJI
A63: Finland | B63: FINLAND
A64: France | B64: FRANCE
A65: Gabon | B65: GABON
A66: Gambia | B66: =UPPER(A66) -> GAMBIA
A67: Georgia | B67: GEORGIA
A68: Germany | B68: GERMANY
A69: Ghana | B69: GHANA
A70: Greece | B70: GREECE
A71: Grenada | B71: GRENADA
A72: Guatemala | B72: GUATEMALA
A73: Guinea | B73: GUINEA
A74: Guinea-Bissau | B74: GUINEA-BISSAU
A75: Guyana | B75: GUYANA
A76: Haiti | B76: HAITI
A77: Holy See * | B77: HOLY SEE *
A78: Honduras | B78: HONDURAS
A79: Hungary | B79: HUNGARY
A80: Iceland | B80: ICELAND
A81: India | B81: INDIA
A82: Indonesia | B82: INDONESIA
A83: Iran | B83: IRAN
A84: Iraq | B84: IRAQ
A85: Ireland | B85: IRELAND
A86: Israel | B86: ISRAEL
A87: Italy | B87: ITALY
A88: Jamaica | B88: JAMAICA
A89: Japan | B89: JAPAN
A90: Jordan | B90: JORDAN
A91: Kazakhstan | B91: KAZAKHSTAN
A92: Kenya | B92: KENYA
A93: Kiribati | B93: KIRIBATI
A94: Kuwait | B94: KUWAIT
A95: Kyrgyzstan | B95: KYRGYZSTAN
A96: Laos | B96: LAOS
A97: Latvia | B97: LATVIA
A98: Lebanon | B98: =UPPER(A98) -> LEBANON
A99: Lesotho | B99: LESOTHO
A100: Liberia | B100: LIBERIA
A101: Libya | B101: LIBYA
A102: Liechtenstein | B102: LIECHTENSTEIN
A103: Lithuania | B103: LITHUANIA
A104: Luxembourg | B104: LUXEMBOURG
A105: Madagascar | B105: MADAGASCAR
A106: Malawi | B106: MALAWI
A107: Malaysia | B107: MALAYSIA
A108: Maldives | B108: MALDIVES
A109: Mali | B109: MALI
A110: Malta | B110: MALTA
A111: Marshall Islands | B111: MARSHALL ISLANDS
A112: Mauritania | B112: MAURITANIA
A113: Mauritius | B113: MAURITIUS
A114: Mexico | B114: MEXICO
A115: Micronesia (Federated States of) | B115: MICRONESIA (FEDERATED STATES OF)
A116: Monaco | B116: MONACO
A117: Mongolia | B117: MONGOLIA
A118: Montenegro | B118: MONTENEGRO
A119: Morocco | B119: MOROCCO
A120: Mozambique | B120: MOZAMBIQUE
A121: Myanmar | B121: MYANMAR
A122: Namibia | B122: NAMIBIA
A123: Nauru | B123: NAURU
A124: Nepal | B124: NEPAL
A125: Netherlands | B125: NETHERLANDS
A126: New Zealand | B126: NEW ZEALAND
A127: Nicaragua | B127: NICARAGUA
A128: Niger | B128: NIGER
A129: Nigeria | B129: NIGERIA
A130: Niue ** | B130: =UPPER(A130) -> NIUE **
A131: North Macedonia | B131: NORTH MACEDONIA
A132: Norway | B132: NORWAY
A133: Oman | B133: OMAN
A134: Pakistan | B134: PAKISTAN
A135: Palau | B135: PALAU
A136: Panama | B136: PANAMA
A137: Papua New Guinea | B137: PAPUA NEW GUINEA
A138: Paraguay | B138: PARAGUAY
A139: Peru | B139: PERU
A140: Philippines | B140: PHILIPPINES
A141: Poland | B141: POLAND
A142: Portugal | B142: PORTUGAL
A143: Qatar | B143: QATAR
A144: Republic of Korea | B144: REPUBLIC OF KOREA
A145: Republic of Moldova | B145: REPUBLIC OF MOLDOVA
A146: Romania | B146: ROMANIA
A147: Russian Federation | B147: RUSSIAN FEDERATION
A148: Rwanda | B148: RWANDA
A149: Saint Kitts and Nevis | B149: SAINT KITTS AND NEVIS
A150: Saint Lucia | B150: SAINT LUCIA
A151: Saint Vincent and the Grenadines | B151: SAINT VINCENT AND THE GRENADINES
A152: Samoa | B152: SAMOA
A153: San Marino | B153: SAN MARINO
A154: Sao Tome and Principe | B154: SAO TOME AND PRINCIPE
A155: Saudi Arabia | B155: SAUDI ARABIA
A156: Senegal | B156: SENEGAL
A157: Serbia | B157: SERBIA
A158: Seychelles | B158: SEYCHELLES
A159: Sierra Leone | B159: SIERRA LEONE
A160: Singapore | B160: SINGAPORE
A161: Slovakia | B161: SLOVAKIA
A162: Slovenia | B162: =UPPER(A162) -> SLOVENIA
A163: Solomon Islands | B163: SOLOMON ISLANDS
A164: Somalia | B164: SOMALIA
A165: South Africa | B165: SOUTH AFRICA
A166: South Sudan | B166: SOUTH SUDAN
A167: Spain | B167: SPAIN
A168: Sri Lanka | B168: SRI LANKA
A169: State of Palestine * | B169: STATE OF PALESTINE *
A170: Sudan | B170: SUDAN
A171: Suriname | B171: SURINAME
A172: Sweden | B172: SWEDEN
A173: Switzerland | B173: SWITZERLAND
A174: Syria | B174: SYRIA
A175: Tajikistan | B175: TAJIKISTAN
A176: Tanzania | B176: TANZANIA
A177: Thailand | B177: THAILAND
A178: Timor-Leste | B178: TIMOR-LESTE
A179: Togo | B179: TOGO
A180: Tonga | B180: TONGA
A181: Trinidad and Tobago | B181: TRINIDAD AND TOBAGO
A182: Tunisia | B182: TUNISIA
A183: Turkey | B183: TURKEY
A184: Turkmenistan | B184: TURKMENISTAN
A185: Tuvalu | B185: TUVALU
A186: Uganda | B186: UGANDA
A187: Ukraine | B187: UKRAINE
A188: United Arab Emirates | B188: UNITED ARAB EMIRATES
A189: United Kingdom of Great Britain and Northern Ireland | B189: UNITED KINGDOM OF GREAT BRITAIN AND NORTHERN IRELAND
A190: United States of America | B190: UNITED STATES OF AMERICA
A191: Uruguay | B191: URUGUAY
A192: Uzbekistan | B192: UZBEKISTAN
A193: Vanuatu | B193: VANUATU
A194: Venezuela | B194: =UPPER(A194) -> VENEZUELA
A195: Viet Nam | B195: VIET NAM
A196: Yemen | B196: YEMEN
A197: Zambia | B197: ZAMBIA
A198: Zimbabwe | B198: ZIMBABWE
A200: *Observer State
A201: **Member of specialized agencies
